﻿Department Family,Entity,Date,Expense Type,Expense Area,Supplier,Transaction Number,Amount,Item Description
BEIS,UKRI - AHRC,03/05/2022,Non-staff travel and subsistance,Operations,Unspecified,99587714,39,Non-staff travel and subsistance
BEIS,UKRI - AHRC,03/05/2022,Non-staff travel and subsistance,Operations,Unspecified,99587715,20.3,Non-staff travel and subsistance
BEIS,UKRI - AHRC,03/05/2022,Non-staff travel and subsistance,Operations,Unspecified,99587716,121,Non-staff travel and subsistance
BEIS,UKRI - AHRC,03/05/2022,Fees (Including College Members),Operations,Unspecified,99587717,170,Fees (Including College Members)
BEIS,UKRI - AHRC,03/05/2022,Fees (Including College Members),Operations,Unspecified,99587718,170,Fees (Including College Members)
BEIS,UKRI - AHRC,03/05/2022,Fees (Including College Members),Operations,Unspecified,99587719,170,Fees (Including College Members)
BEIS,UKRI - AHRC,03/05/2022,Fees (Including College Members),Operations,Unspecified,99587720,230,Fees (Including College Members)
BEIS,UKRI - AHRC,03/05/2022,T&S UK - Other Charges,Strategy and Evidence,Unspecified,99593789,1.65,T&S UK - Other Charges
BEIS,UKRI - AHRC,03/05/2022,T&S UK - Public Transport,Industrial Strategy Challenge Fund (ISCF) - Creative Clusters,Unspecified,99593789,31.02,T&S UK - Public Transport
BEIS,UKRI - AHRC,03/05/2022,T&S UK - Public Transport,Strategy and Evidence,Unspecified,99593789,27.41,T&S UK - Public Transport
BEIS,UKRI - AHRC,03/05/2022,T&S UK - Subsistence,Industrial Strategy Challenge Fund (ISCF) - Creative Clusters,Unspecified,99593789,25,T&S UK - Subsistence
BEIS,UKRI - AHRC,03/05/2022,T&S UK - Subsistence,Industrial Strategy Challenge Fund (ISCF) - Creative Clusters,Unspecified,99593789,8.95,T&S UK - Subsistence
BEIS,UKRI - AHRC,03/05/2022,T&S UK - Public Transport,Industrial Strategy Challenge Fund (ISCF) - Creative Clusters,Unspecified,99593790,4.6,T&S UK - Public Transport
BEIS,UKRI - AHRC,03/05/2022,T&S UK - Subsistence,Industrial Strategy Challenge Fund (ISCF) - Creative Clusters,Unspecified,99593790,25,T&S UK - Subsistence
BEIS,UKRI - AHRC,03/05/2022,T&S UK - Subsistence,Industrial Strategy Challenge Fund (ISCF) - Creative Clusters,Unspecified,99593790,10.85,T&S UK - Subsistence
BEIS,UKRI - AHRC,03/05/2022,Other Programme Costs,Commissioned Research,University of Warwick,99595714,55778,Other Programme Costs
BEIS,UKRI - AHRC,04/05/2022,Fees (Including College Members),Operations,Unspecified,99594881,170,Fees (Including College Members)
BEIS,UKRI - AHRC,04/05/2022,Other Programme Costs,Public Engagement,Lesley Paterson and Associates Ltd,99608714,15020,Other Programme Costs
BEIS,UKRI - AHRC,05/05/2022,Unspecified,Infrastruture Roadmap,ICF Consulting Services Ltd,99574921,12090,Legal & Professional Services
BEIS,UKRI - AHRC,05/05/2022,Research Grant Expenditure,Skills Strategy,Zinc Ventures Ltd,99592733,60000,Research Grant Expenditure
BEIS,UKRI - AHRC,05/05/2022,Unspecified,Infrastruture Roadmap,ICF Consulting Services Ltd,99594735,-1500.36,Legal & Professional Services
BEIS,UKRI - AHRC,05/05/2022,T&S UK - Other Charges,International Partnership and Engagement,Unspecified,99626714,10.11,T&S UK - Other Charges
BEIS,UKRI - AHRC,06/05/2022,Fees (Including College Members),Operations,Unspecified,99629745,170,Fees (Including College Members)
BEIS,UKRI - AHRC,06/05/2022,Non-staff travel and subsistance,Operations,Unspecified,99629746,270.7,Non-staff travel and subsistance
BEIS,UKRI - AHRC,06/05/2022,Non-staff travel and subsistance,Operations,Unspecified,99629747,183.56,Non-staff travel and subsistance
BEIS,UKRI - AHRC,06/05/2022,Fees (Including College Members),Infrastruture Roadmap,Unspecified,99629748,170,Fees (Including College Members)
BEIS,UKRI - AHRC,06/05/2022,Non-staff travel and subsistance,Operations,Unspecified,99629749,70.4,Non-staff travel and subsistance
BEIS,UKRI - AHRC,09/05/2022,Fees (Including College Members),Operations,Unspecified,99636914,340,Fees (Including College Members)
BEIS,UKRI - AHRC,09/05/2022,Fees (Including College Members),Operations,Unspecified,99636915,340,Fees (Including College Members)
BEIS,UKRI - AHRC,09/05/2022,Fees (Including College Members),Operations,Unspecified,99636916,170,Fees (Including College Members)
BEIS,UKRI - AHRC,09/05/2022,Fees (Including College Members),Operations,Unspecified,99636917,400,Fees (Including College Members)
BEIS,UKRI - AHRC,09/05/2022,Unspecified,Infrastruture Roadmap,Alexander Mann Solutions Ltd,99636922,1386.12,Legal & Professional Services
BEIS,UKRI - AHRC,09/05/2022,Conferences & Seminars,Operations,Calder Conference Ltd,99641791,2157.77,Conferences & Seminars
BEIS,UKRI - AHRC,11/05/2022,Non-staff travel and subsistance,Operations,Unspecified,99656048,184.6,Non-staff travel and subsistance
BEIS,UKRI - AHRC,11/05/2022,T&S UK - Accommodation,Industrial Strategy Challenge Fund (ISCF) - Creative Clusters,Corporate Travel Management (North) Ltd,99661780,0.8,T&S UK - Accommodation
BEIS,UKRI - AHRC,11/05/2022,T&S UK - Accommodation,Industrial Strategy Challenge Fund (ISCF) - Creative Clusters,Corporate Travel Management (North) Ltd,99661780,110,T&S UK - Accommodation
BEIS,UKRI - AHRC,11/05/2022,T&S UK - Accommodation,Industrial Strategy Challenge Fund (ISCF) - Creative Clusters,Corporate Travel Management (North) Ltd,99661780,0.8,T&S UK - Accommodation
BEIS,UKRI - AHRC,11/05/2022,T&S UK - Accommodation,Industrial Strategy Challenge Fund (ISCF) - Creative Clusters,Corporate Travel Management (North) Ltd,99661780,119,T&S UK - Accommodation
BEIS,UKRI - AHRC,11/05/2022,T&S UK - Accommodation,Industrial Strategy Challenge Fund (ISCF) - Creative Clusters,Corporate Travel Management (North) Ltd,99661780,0.8,T&S UK - Accommodation
BEIS,UKRI - AHRC,11/05/2022,T&S UK - Accommodation,Industrial Strategy Challenge Fund (ISCF) - Creative Clusters,Corporate Travel Management (North) Ltd,99661780,86,T&S UK - Accommodation
BEIS,UKRI - AHRC,11/05/2022,T&S UK - Accommodation,Industrial Strategy Challenge Fund (ISCF) - Creative Clusters,Corporate Travel Management (North) Ltd,99661780,0.48,T&S UK - Accommodation
BEIS,UKRI - AHRC,11/05/2022,T&S UK - Accommodation,Infrastruture Roadmap,Corporate Travel Management (North) Ltd,99661780,0.8,T&S UK - Accommodation
BEIS,UKRI - AHRC,11/05/2022,T&S UK - Accommodation,Infrastruture Roadmap,Corporate Travel Management (North) Ltd,99661780,166,T&S UK - Accommodation
BEIS,UKRI - AHRC,11/05/2022,T&S UK - Accommodation,Infrastruture Roadmap,Corporate Travel Management (North) Ltd,99661780,0.8,T&S UK - Accommodation
BEIS,UKRI - AHRC,11/05/2022,T&S UK - Accommodation,Infrastruture Roadmap,Corporate Travel Management (North) Ltd,99661780,166,T&S UK - Accommodation
BEIS,UKRI - AHRC,11/05/2022,T&S UK - Accommodation,Infrastruture Roadmap,Corporate Travel Management (North) Ltd,99661780,0.32,T&S UK - Accommodation
BEIS,UKRI - AHRC,11/05/2022,T&S UK - Accommodation,SMT,Corporate Travel Management (North) Ltd,99661780,0.8,T&S UK - Accommodation
BEIS,UKRI - AHRC,11/05/2022,T&S UK - Accommodation,SMT,Corporate Travel Management (North) Ltd,99661780,590,T&S UK - Accommodation
BEIS,UKRI - AHRC,11/05/2022,T&S UK - Accommodation,SMT,Corporate Travel Management (North) Ltd,99661780,0.8,T&S UK - Accommodation
BEIS,UKRI - AHRC,11/05/2022,T&S UK - Accommodation,SMT,Corporate Travel Management (North) Ltd,99661780,626,T&S UK - Accommodation
BEIS,UKRI - AHRC,11/05/2022,T&S UK - Accommodation,SMT,Corporate Travel Management (North) Ltd,99661780,0.32,T&S UK - Accommodation
BEIS,UKRI - AHRC,11/05/2022,T&S UK - Flights,HERA JRP Project,Corporate Travel Management (North) Ltd,99661780,2.5,T&S UK - Flights
BEIS,UKRI - AHRC,11/05/2022,T&S UK - Flights,HERA JRP Project,Corporate Travel Management (North) Ltd,99661780,157.96,T&S UK - Flights
BEIS,UKRI - AHRC,11/05/2022,T&S UK - Flights,Industrial Strategy Challenge Fund (ISCF) - Creative Clusters,Corporate Travel Management (North) Ltd,99661780,2.5,T&S UK - Flights
BEIS,UKRI - AHRC,11/05/2022,T&S UK - Flights,Industrial Strategy Challenge Fund (ISCF) - Creative Clusters,Corporate Travel Management (North) Ltd,99661780,119.46,T&S UK - Flights
BEIS,UKRI - AHRC,11/05/2022,T&S UK - Flights,SMT,Corporate Travel Management (North) Ltd,99661780,4.5,T&S UK - Flights
BEIS,UKRI - AHRC,11/05/2022,T&S UK - Flights,SMT,Corporate Travel Management (North) Ltd,99661780,233.1,T&S UK - Flights
BEIS,UKRI - AHRC,11/05/2022,T&S UK - Flights,SMT,Corporate Travel Management (North) Ltd,99661780,2.5,T&S UK - Flights
BEIS,UKRI - AHRC,11/05/2022,T&S UK - Flights,SMT,Corporate Travel Management (North) Ltd,99661780,345.33,T&S UK - Flights
BEIS,UKRI - AHRC,11/05/2022,T&S UK - Public Transport,AI&Design,Corporate Travel Management (North) Ltd,99661780,0.25,T&S UK - Public Transport
BEIS,UKRI - AHRC,11/05/2022,T&S UK - Public Transport,AI&Design,Corporate Travel Management (North) Ltd,99661780,43.8,T&S UK - Public Transport
BEIS,UKRI - AHRC,11/05/2022,T&S UK - Public Transport,Executive Office,Corporate Travel Management (North) Ltd,99661780,0.25,T&S UK - Public Transport
BEIS,UKRI - AHRC,11/05/2022,T&S UK - Public Transport,Executive Office,Corporate Travel Management (North) Ltd,99661780,136.6,T&S UK - Public Transport
BEIS,UKRI - AHRC,11/05/2022,T&S UK - Public Transport,Industrial Strategy Challenge Fund (ISCF) - Creative Clusters,Corporate Travel Management (North) Ltd,99661780,0.25,T&S UK - Public Transport
BEIS,UKRI - AHRC,11/05/2022,T&S UK - Public Transport,Industrial Strategy Challenge Fund (ISCF) - Creative Clusters,Corporate Travel Management (North) Ltd,99661780,167.6,T&S UK - Public Transport
BEIS,UKRI - AHRC,11/05/2022,T&S UK - Public Transport,Industrial Strategy Challenge Fund (ISCF) - Creative Clusters,Corporate Travel Management (North) Ltd,99661780,0.25,T&S UK - Public Transport
BEIS,UKRI - AHRC,11/05/2022,T&S UK - Public Transport,Industrial Strategy Challenge Fund (ISCF) - Creative Clusters,Corporate Travel Management (North) Ltd,99661780,40.7,T&S UK - Public Transport
BEIS,UKRI - AHRC,11/05/2022,T&S UK - Public Transport,Industrial Strategy Challenge Fund (ISCF) - Creative Clusters,Corporate Travel Management (North) Ltd,99661780,0.25,T&S UK - Public Transport
BEIS,UKRI - AHRC,11/05/2022,T&S UK - Public Transport,Industrial Strategy Challenge Fund (ISCF) - Creative Clusters,Corporate Travel Management (North) Ltd,99661780,32.2,T&S UK - Public Transport
BEIS,UKRI - AHRC,11/05/2022,T&S UK - Public Transport,Infrastruture Roadmap,Corporate Travel Management (North) Ltd,99661780,0.25,T&S UK - Public Transport
BEIS,UKRI - AHRC,11/05/2022,T&S UK - Public Transport,Infrastruture Roadmap,Corporate Travel Management (North) Ltd,99661780,483.2,T&S UK - Public Transport
BEIS,UKRI - AHRC,11/05/2022,T&S UK - Public Transport,Infrastruture Roadmap,Corporate Travel Management (North) Ltd,99661780,0.25,T&S UK - Public Transport
BEIS,UKRI - AHRC,11/05/2022,T&S UK - Public Transport,Infrastruture Roadmap,Corporate Travel Management (North) Ltd,99661780,352.4,T&S UK - Public Transport
BEIS,UKRI - AHRC,11/05/2022,T&S UK - Public Transport,Infrastruture Roadmap,Corporate Travel Management (North) Ltd,99661780,0.25,T&S UK - Public Transport
BEIS,UKRI - AHRC,11/05/2022,T&S UK - Public Transport,Infrastruture Roadmap,Corporate Travel Management (North) Ltd,99661780,309.5,T&S UK - Public Transport
BEIS,UKRI - AHRC,11/05/2022,T&S UK - Public Transport,Infrastruture Roadmap,Corporate Travel Management (North) Ltd,99661780,0.25,T&S UK - Public Transport
BEIS,UKRI - AHRC,11/05/2022,T&S UK - Public Transport,Infrastruture Roadmap,Corporate Travel Management (North) Ltd,99661780,233.2,T&S UK - Public Transport
BEIS,UKRI - AHRC,11/05/2022,T&S UK - Public Transport,International Partnership and Engagement,Corporate Travel Management (North) Ltd,99661780,0.25,T&S UK - Public Transport
BEIS,UKRI - AHRC,11/05/2022,T&S UK - Public Transport,International Partnership and Engagement,Corporate Travel Management (North) Ltd,99661780,39.7,T&S UK - Public Transport
BEIS,UKRI - AHRC,11/05/2022,T&S UK - Public Transport,International Partnership and Engagement,Corporate Travel Management (North) Ltd,99661780,0.25,T&S UK - Public Transport
BEIS,UKRI - AHRC,11/05/2022,T&S UK - Public Transport,International Partnership and Engagement,Corporate Travel Management (North) Ltd,99661780,39.8,T&S UK - Public Transport
BEIS,UKRI - AHRC,11/05/2022,T&S UK - Public Transport,International Partnership and Engagement,Corporate Travel Management (North) Ltd,99661780,0.25,T&S UK - Public Transport
BEIS,UKRI - AHRC,11/05/2022,T&S UK - Public Transport,International Partnership and Engagement,Corporate Travel Management (North) Ltd,99661780,30.3,T&S UK - Public Transport
BEIS,UKRI - AHRC,11/05/2022,T&S UK - Public Transport,International Partnership and Engagement,Corporate Travel Management (North) Ltd,99661780,0.25,T&S UK - Public Transport
BEIS,UKRI - AHRC,11/05/2022,T&S UK - Public Transport,International Partnership and Engagement,Corporate Travel Management (North) Ltd,99661780,46.45,T&S UK - Public Transport
BEIS,UKRI - AHRC,11/05/2022,T&S UK - Public Transport,International Partnership and Engagement,Corporate Travel Management (North) Ltd,99661780,0.25,T&S UK - Public Transport
BEIS,UKRI - AHRC,11/05/2022,T&S UK - Public Transport,International Partnership and Engagement,Corporate Travel Management (North) Ltd,99661780,39.4,T&S UK - Public Transport
BEIS,UKRI - AHRC,11/05/2022,T&S UK - Public Transport,Operations,Corporate Travel Management (North) Ltd,99661780,5,T&S UK - Public Transport
BEIS,UKRI - AHRC,11/05/2022,T&S UK - Public Transport,Operations,Corporate Travel Management (North) Ltd,99661780,-152.2,T&S UK - Public Transport
BEIS,UKRI - AHRC,11/05/2022,T&S UK - Public Transport,Operations,Corporate Travel Management (North) Ltd,99661780,5,T&S UK - Public Transport
BEIS,UKRI - AHRC,11/05/2022,T&S UK - Public Transport,Operations,Corporate Travel Management (North) Ltd,99661780,-152.2,T&S UK - Public Transport
BEIS,UKRI - AHRC,11/05/2022,T&S UK - Public Transport,Operations,Corporate Travel Management (North) Ltd,99661780,5,T&S UK - Public Transport
BEIS,UKRI - AHRC,11/05/2022,T&S UK - Public Transport,Operations,Corporate Travel Management (North) Ltd,99661780,-21.2,T&S UK - Public Transport
BEIS,UKRI - AHRC,11/05/2022,T&S UK - Public Transport,Operations,Corporate Travel Management (North) Ltd,99661780,5,T&S UK - Public Transport
BEIS,UKRI - AHRC,11/05/2022,T&S UK - Public Transport,Operations,Corporate Travel Management (North) Ltd,99661780,-21.2,T&S UK - Public Transport
BEIS,UKRI - AHRC,11/05/2022,T&S UK - Public Transport,Public Engagement,Corporate Travel Management (North) Ltd,99661780,5,T&S UK - Public Transport
BEIS,UKRI - AHRC,11/05/2022,T&S UK - Public Transport,Public Engagement,Corporate Travel Management (North) Ltd,99661780,-8.1,T&S UK - Public Transport
BEIS,UKRI - AHRC,11/05/2022,T&S UK - Public Transport,SMT,Corporate Travel Management (North) Ltd,99661780,0.25,T&S UK - Public Transport
BEIS,UKRI - AHRC,11/05/2022,T&S UK - Public Transport,SMT,Corporate Travel Management (North) Ltd,99661780,188.8,T&S UK - Public Transport
BEIS,UKRI - AHRC,11/05/2022,T&S UK - Public Transport,SMT,Corporate Travel Management (North) Ltd,99661780,0.25,T&S UK - Public Transport
BEIS,UKRI - AHRC,11/05/2022,T&S UK - Public Transport,SMT,Corporate Travel Management (North) Ltd,99661780,25.9,T&S UK - Public Transport
BEIS,UKRI - AHRC,11/05/2022,T&S UK - Public Transport,SMT,Corporate Travel Management (North) Ltd,99661780,0.25,T&S UK - Public Transport
BEIS,UKRI - AHRC,11/05/2022,T&S UK - Public Transport,SMT,Corporate Travel Management (North) Ltd,99661780,57.2,T&S UK - Public Transport
BEIS,UKRI - AHRC,11/05/2022,T&S UK - Public Transport,SMT,Corporate Travel Management (North) Ltd,99661780,0.25,T&S UK - Public Transport
BEIS,UKRI - AHRC,11/05/2022,T&S UK - Public Transport,SMT,Corporate Travel Management (North) Ltd,99661780,40.4,T&S UK - Public Transport
BEIS,UKRI - AHRC,11/05/2022,T&S UK - Public Transport,SMT,Corporate Travel Management (North) Ltd,99661780,0.25,T&S UK - Public Transport
BEIS,UKRI - AHRC,11/05/2022,T&S UK - Public Transport,SMT,Corporate Travel Management (North) Ltd,99661780,14.4,T&S UK - Public Transport
BEIS,UKRI - AHRC,11/05/2022,T&S UK - Public Transport,SMT,Corporate Travel Management (North) Ltd,99661780,0.25,T&S UK - Public Transport
BEIS,UKRI - AHRC,11/05/2022,T&S UK - Public Transport,SMT,Corporate Travel Management (North) Ltd,99661780,59,T&S UK - Public Transport
BEIS,UKRI - AHRC,11/05/2022,T&S UK - Public Transport,SMT,Corporate Travel Management (North) Ltd,99661780,0.25,T&S UK - Public Transport
BEIS,UKRI - AHRC,11/05/2022,T&S UK - Public Transport,SMT,Corporate Travel Management (North) Ltd,99661780,15,T&S UK - Public Transport
BEIS,UKRI - AHRC,11/05/2022,T&S UK - Public Transport,SMT,Corporate Travel Management (North) Ltd,99661780,0.25,T&S UK - Public Transport
BEIS,UKRI - AHRC,11/05/2022,T&S UK - Public Transport,SMT,Corporate Travel Management (North) Ltd,99661780,50.9,T&S UK - Public Transport
BEIS,UKRI - AHRC,11/05/2022,T&S UK - Public Transport,SMT,Corporate Travel Management (North) Ltd,99661780,0.25,T&S UK - Public Transport
BEIS,UKRI - AHRC,11/05/2022,T&S UK - Public Transport,SMT,Corporate Travel Management (North) Ltd,99661780,25.9,T&S UK - Public Transport
BEIS,UKRI - AHRC,11/05/2022,T&S UK - Public Transport,SMT,Corporate Travel Management (North) Ltd,99661780,0.25,T&S UK - Public Transport
BEIS,UKRI - AHRC,11/05/2022,T&S UK - Public Transport,SMT,Corporate Travel Management (North) Ltd,99661780,57.2,T&S UK - Public Transport
BEIS,UKRI - AHRC,11/05/2022,T&S UK - Public Transport,SMT,Corporate Travel Management (North) Ltd,99661780,0.25,T&S UK - Public Transport
BEIS,UKRI - AHRC,11/05/2022,T&S UK - Public Transport,SMT,Corporate Travel Management (North) Ltd,99661780,57.2,T&S UK - Public Transport
BEIS,UKRI - AHRC,11/05/2022,T&S UK - Public Transport,SMT,Corporate Travel Management (North) Ltd,99661780,0.25,T&S UK - Public Transport
BEIS,UKRI - AHRC,11/05/2022,T&S UK - Public Transport,SMT,Corporate Travel Management (North) Ltd,99661780,57.2,T&S UK - Public Transport
BEIS,UKRI - AHRC,11/05/2022,T&S UK - Public Transport,SMT,Corporate Travel Management (North) Ltd,99661780,2.6,T&S UK - Public Transport
BEIS,UKRI - AHRC,11/05/2022,T&S UK - Public Transport,SMT,Corporate Travel Management (North) Ltd,99661780,25.9,T&S UK - Public Transport
BEIS,UKRI - AHRC,11/05/2022,T&S UK - Public Transport,SMT,Corporate Travel Management (North) Ltd,99661780,10,T&S UK - Public Transport
BEIS,UKRI - AHRC,11/05/2022,T&S UK - Public Transport,SMT,Corporate Travel Management (North) Ltd,99661780,-225.6,T&S UK - Public Transport
BEIS,UKRI - AHRC,11/05/2022,T&S UK - Public Transport,Secretariat,Corporate Travel Management (North) Ltd,99661780,0.25,T&S UK - Public Transport
BEIS,UKRI - AHRC,11/05/2022,T&S UK - Public Transport,Secretariat,Corporate Travel Management (North) Ltd,99661780,157.2,T&S UK - Public Transport
BEIS,UKRI - AHRC,11/05/2022,T&S UK - Public Transport,Secretariat,Corporate Travel Management (North) Ltd,99661780,0.25,T&S UK - Public Transport
BEIS,UKRI - AHRC,11/05/2022,T&S UK - Public Transport,Secretariat,Corporate Travel Management (North) Ltd,99661780,158.5,T&S UK - Public Transport
BEIS,UKRI - AHRC,12/05/2022,Unspecified,Balance Sheet,HM Revenue & Customs,99654711,68868.59,NI Payable Salaries
BEIS,UKRI - AHRC,12/05/2022,Unspecified,Balance Sheet,HM Revenue & Customs,99654712,50738.25,PAYE Payable Salaries
BEIS,UKRI - AHRC,12/05/2022,Unspecified,Balance Sheet,HM Revenue & Customs,99654713,4880,Student Loans
BEIS,UKRI - AHRC,12/05/2022,Unspecified,Corporate Services,HM Revenue & Customs,99654714,1698,Apprenticeship Levy
BEIS,UKRI - AHRC,12/05/2022,T&S UK - Accommodation,SMT,Unspecified,99680771,145.8,T&S UK - Accommodation
BEIS,UKRI - AHRC,13/05/2022,Unspecified,Infrastruture Roadmap,Alexander Mann Solutions Ltd,99512768,3638.57,Legal & Professional Services
BEIS,UKRI - AHRC,13/05/2022,Unspecified,Infrastruture Roadmap,Alexander Mann Solutions Ltd,99591749,519.79,Legal & Professional Services
BEIS,UKRI - AHRC,13/05/2022,Voluntary Deductions,Balance Sheet,Swindon Office Sports and Social Club,99654715,24,Voluntary Deductions
BEIS,UKRI - AHRC,13/05/2022,Union Deductions,Balance Sheet,PCS Union,99654716,58.67,Union Deductions
BEIS,UKRI - AHRC,13/05/2022,Unspecified,Balance Sheet,Unspecified,99654717,9652.15,Ees Pension Deductions - JSS
BEIS,UKRI - AHRC,13/05/2022,Unspecified,Balance Sheet,Unspecified,99654718,40987.01,Ers Pension Deductions - JSS
BEIS,UKRI - AHRC,13/05/2022,Unspecified,Balance Sheet,Scottish Widows,99654719,193.37,Partnership Pension Deductions
BEIS,UKRI - AHRC,13/05/2022,Unspecified,Balance Sheet,Cabinet Office RM Shared Services,99654720,12460.75,Ees Pension Deductions - MyCSP
BEIS,UKRI - AHRC,13/05/2022,Unspecified,Balance Sheet,Cabinet Office RM Shared Services,99654721,53722.28,Ers Pension Deductions - MyCSP
BEIS,UKRI - AHRC,13/05/2022,Unspecified,Balance Sheet,Unspecified,99654722,173.51,Ees Pension Deductions - MRC
BEIS,UKRI - AHRC,13/05/2022,Unspecified,Balance Sheet,Unspecified,99654723,427.09,Ers Pension Deductions - MRC
BEIS,UKRI - AHRC,13/05/2022,Nursery Deductions,Balance Sheet,UKRI - Engineering & Physical Sciences Research Council,99654724,1013,Nursery Deductions
BEIS,UKRI - AHRC,16/05/2022,Non-staff travel and subsistance,Operations,Unspecified,99690735,94.5,Non-staff travel and subsistance
BEIS,UKRI - AHRC,16/05/2022,Non-staff travel and subsistance,Operations,Unspecified,99690736,82.1,Non-staff travel and subsistance
BEIS,UKRI - AHRC,16/05/2022,Non-staff travel and subsistance,Operations,Unspecified,99690737,75.11,Non-staff travel and subsistance
BEIS,UKRI - AHRC,16/05/2022,Unspecified,Infrastruture Roadmap,ICF Consulting Services Ltd,99695734,1500.36,Legal & Professional Services
BEIS,UKRI - AHRC,17/05/2022,Unspecified,Infrastructure Fund - CoSTAR,ICF Consulting Services Ltd,99700740,1465.55,Legal & Professional Services
BEIS,UKRI - AHRC,18/05/2022,Non-staff travel and subsistance,Operations,Unspecified,99707885,32.7,Non-staff travel and subsistance
BEIS,UKRI - AHRC,18/05/2022,Fees (Including College Members),Operations,Unspecified,99714711,340,Fees (Including College Members)
BEIS,UKRI - AHRC,19/05/2022,Conferences & Seminars,Operations,Calder Conference Ltd,99715869,2069.71,Conferences & Seminars
BEIS,UKRI - AHRC,19/05/2022,T&S UK - Other Charges,Operations,Unspecified,99716806,39.99,T&S UK - Other Charges
BEIS,UKRI - AHRC,19/05/2022,T&S UK - Other Charges,International Development and Area Studies,Unspecified,99716807,49.98,T&S UK - Other Charges
BEIS,UKRI - AHRC,19/05/2022,T&S UK - Public Transport,International Partnership and Engagement,Unspecified,99716808,5,T&S UK - Public Transport
BEIS,UKRI - AHRC,19/05/2022,T&S UK - Subsistence,International Partnership and Engagement,Unspecified,99716808,18.68,T&S UK - Subsistence
BEIS,UKRI - AHRC,19/05/2022,T&S UK - Subsistence,International Partnership and Engagement,Unspecified,99716808,11.99,T&S UK - Subsistence
BEIS,UKRI - AHRC,23/05/2022,Fees (Including College Members),Operations,Unspecified,99720742,147.35,Fees (Including College Members)
BEIS,UKRI - AHRC,23/05/2022,Conferences & Seminars,Skills Strategy,Clore Leadership Programme,99722761,5520,Conferences & Seminars
BEIS,UKRI - AHRC,23/05/2022,Conferences & Seminars,Skills Strategy,Clore Leadership Programme,99722761,11280,Conferences & Seminars
BEIS,UKRI - AHRC,23/05/2022,Conferences & Seminars,Skills Strategy,Clore Leadership Programme,99722761,68,Conferences & Seminars
BEIS,UKRI - AHRC,23/05/2022,Unspecified,Infrastruture Roadmap,Alexander Mann Solutions Ltd,99730739,1559.39,Legal & Professional Services
BEIS,UKRI - AHRC,23/05/2022,T&S UK - Subsistence,Public and Stakeholder Engagement,Unspecified,99731784,15,T&S UK - Subsistence
BEIS,UKRI - AHRC,24/05/2022,Fees (Including College Members),Infrastructure Fund - CoSTAR,Unspecified,99734962,340,Fees (Including College Members)
BEIS,UKRI - AHRC,24/05/2022,Non-staff travel and subsistance,Operations,Unspecified,99734963,275.05,Non-staff travel and subsistance
BEIS,UKRI - AHRC,24/05/2022,Unspecified,Public Engagement,Giggabox Ltd,99734983,5388.3,Legal & Professional Services
BEIS,UKRI - AHRC,24/05/2022,T&S UK - Public Transport,SMT,Unspecified,99736038,26.3,T&S UK - Public Transport
BEIS,UKRI - AHRC,24/05/2022,T&S UK - Subsistence,SMT,Unspecified,99736038,19.9,T&S UK - Subsistence
BEIS,UKRI - AHRC,25/05/2022,Fees (Including College Members),Operations,Unspecified,99735397,425,Fees (Including College Members)
BEIS,UKRI - AHRC,25/05/2022,Non-staff travel and subsistance,International Partnership and Engagement,Unspecified,99735398,45.65,Non-staff travel and subsistance
BEIS,UKRI - AHRC,25/05/2022,Fees (Including College Members),Executive Office,Unspecified,99736135,500,Fees (Including College Members)
BEIS,UKRI - AHRC,25/05/2022,Fees (Including College Members),Executive Office,Unspecified,99736136,500,Fees (Including College Members)
BEIS,UKRI - AHRC,25/05/2022,Fees (Including College Members),Operations,Unspecified,99736181,170,Fees (Including College Members)
BEIS,UKRI - AHRC,25/05/2022,T&S UK - Mileage,AI&Design,Unspecified,99736260,45,T&S UK - Mileage
BEIS,UKRI - AHRC,25/05/2022,T&S UK - Other Charges,AI&Design,Unspecified,99736260,59.6,T&S UK - Other Charges
BEIS,UKRI - AHRC,25/05/2022,T&S UK - Parking Tolls Congestion Charges,AI&Design,Unspecified,99736260,7,T&S UK - Parking Tolls Congestion Charges
BEIS,UKRI - AHRC,25/05/2022,T&S UK - Subsistence,AI&Design,Unspecified,99736260,74.3,T&S UK - Subsistence
BEIS,UKRI - AHRC,25/05/2022,T&S UK - Mileage,AI&Design,Unspecified,99736261,67,T&S UK - Mileage
BEIS,UKRI - AHRC,25/05/2022,T&S UK - Parking Tolls Congestion Charges,AI&Design,Unspecified,99736261,6.8,T&S UK - Parking Tolls Congestion Charges
BEIS,UKRI - AHRC,26/05/2022,Non-staff travel and subsistance,International Partnership and Engagement,Unspecified,99736403,245.33,Non-staff travel and subsistance
BEIS,UKRI - AHRC,26/05/2022,Fees (Including College Members),Operations,Unspecified,99736404,230,Fees (Including College Members)
BEIS,UKRI - AHRC,26/05/2022,Non-staff travel and subsistance,International Partnership and Engagement,Unspecified,99736405,131.1,Non-staff travel and subsistance
BEIS,UKRI - AHRC,26/05/2022,T&S UK - Other Charges,International Partnership and Engagement,Unspecified,99737001,3,T&S UK - Other Charges
BEIS,UKRI - AHRC,26/05/2022,T&S UK - Subsistence,International Partnership and Engagement,Unspecified,99737001,15,T&S UK - Subsistence
BEIS,UKRI - AHRC,26/05/2022,T&S UK - Subsistence,International Partnership and Engagement,Unspecified,99737002,25.63,T&S UK - Subsistence
BEIS,UKRI - AHRC,26/05/2022,T&S UK - Other Charges,Skills Strategy,Unspecified,99737003,13.99,T&S UK - Other Charges
BEIS,UKRI - AHRC,27/05/2022,Fees (Including College Members),Infrastructure Fund - CoSTAR,Unspecified,99737766,170,Fees (Including College Members)
BEIS,UKRI - AHRC,27/05/2022,Corporate Events,International Partnership and Engagement,Calder Conference Ltd,99737776,20405.02,Corporate Events
BEIS,UKRI - AHRC,30/05/2022,Fees (Including College Members),Operations,Unspecified,99737186,85,Fees (Including College Members)
BEIS,UKRI - AHRC,30/05/2022,Fees (Including College Members),Operations,Unspecified,99737187,115,Fees (Including College Members)
BEIS,UKRI - AHRC,30/05/2022,Fees (Including College Members),Operations,Unspecified,99737188,230,Fees (Including College Members)
BEIS,UKRI - AHRC,30/05/2022,Fees (Including College Members),Operations,Unspecified,99737189,170,Fees (Including College Members)
BEIS,UKRI - AHRC,30/05/2022,Unspecified,Infrastruture Roadmap,Alexander Mann Solutions Ltd,99738032,2252.45,Legal & Professional Services
BEIS,UKRI - AHRC,30/05/2022,T&S UK - Subsistence,AI&Design,Unspecified,99738169,27.96,T&S UK - Subsistence
BEIS,UKRI - AHRC,31/05/2022,UK - Professional Memberships & Subscriptions,Executive Office,CREATIVE INDUSTRIES FEDERATION,99713783,7200,UK - Professional Memberships & Subscriptions
BEIS,UKRI - AHRC,31/05/2022,Unspecified,Finance,Unspecified,99737835,98092.46,Other Income
BEIS,UKRI - AHRC,31/05/2022,Unspecified,Finance,Unspecified,99737836,115894.3,Other Income
BEIS,UKRI - AHRC,31/05/2022,T&S UK - Other Charges,Executive Office,Unspecified,99738589,114.62,T&S UK - Other Charges
BEIS,UKRI - AHRC,31/05/2022,Fees (Including College Members),Executive Office,Unspecified,99738740,500,Fees (Including College Members)
BEIS,UKRI - AHRC,31/05/2022,Fees (Including College Members),Executive Office,Unspecified,99738741,500,Fees (Including College Members)
BEIS,UKRI - AHRC,31/05/2022,Non-staff travel and subsistance,International Partnership and Engagement,Unspecified,99738742,9,Non-staff travel and subsistance
BEIS,UKRI - AHRC,31/05/2022,Non-staff travel and subsistance,International Partnership and Engagement,Unspecified,99738743,71.5,Non-staff travel and subsistance
BEIS,UKRI - AHRC,31/05/2022,Fees (Including College Members),Operations,Unspecified,99738744,170,Fees (Including College Members)
BEIS,UKRI - AHRC,31/05/2022,Non-staff travel and subsistance,International Partnership and Engagement,Unspecified,99738745,101.6,Non-staff travel and subsistance
BEIS,UKRI - AHRC,31/05/2022,Fees (Including College Members),Operations,Unspecified,99738746,170,Fees (Including College Members)
BEIS,UKRI - AHRC,31/05/2022,Non-staff travel and subsistance,Operations,Unspecified,99738747,29.8,Non-staff travel and subsistance
BEIS,UKRI - AHRC,31/05/2022,Fees (Including College Members),Operations,Unspecified,99738748,115,Fees (Including College Members)
BEIS,UKRI - BBSRC,03/05/2022,Research Institutes - Capital Grants: Minor Works,Rothamsted Research,Rothamsted Research Ltd,99478773,113040.96,Research Institutes - Capital Grants: Minor Works
BEIS,UKRI - BBSRC,03/05/2022,Research Grant Expenditure,International,UKRI - Medical Research Council,99537807,386434.5,Research Grant Expenditure
BEIS,UKRI - BBSRC,03/05/2022,Research Grant Expenditure,International,UKRI - Medical Research Council,99537807,862945.94,Research Grant Expenditure
BEIS,UKRI - BBSRC,03/05/2022,Research Grant Expenditure,International,UKRI - Medical Research Council,99537807,128811.5,Research Grant Expenditure
BEIS,UKRI - BBSRC,03/05/2022,Research Grant Expenditure,International,UKRI - Medical Research Council,99537807,287648.65,Research Grant Expenditure
BEIS,UKRI - BBSRC,03/05/2022,Fees (Including College Members),Science Group - Delivery Function,Unspecified,99588710,460,Fees (Including College Members)
BEIS,UKRI - BBSRC,03/05/2022,Fees (Including College Members),Science Group - Delivery Function,Unspecified,99588711,340,Fees (Including College Members)
BEIS,UKRI - BBSRC,03/05/2022,Fees (Including College Members),Science Group - Delivery Function,Unspecified,99588712,340,Fees (Including College Members)
BEIS,UKRI - BBSRC,03/05/2022,Fees (Including College Members),Science Group - Delivery Function,Unspecified,99588713,340,Fees (Including College Members)
BEIS,UKRI - BBSRC,03/05/2022,Fees (Including College Members),Science Group - Delivery Function,Unspecified,99588714,340,Fees (Including College Members)
BEIS,UKRI - BBSRC,03/05/2022,Fees (Including College Members),Science Group - Delivery Function,Unspecified,99588715,340,Fees (Including College Members)
BEIS,UKRI - BBSRC,03/05/2022,Research Institutes - Capital Grants: Minor Works,Rothamsted Research,Rothamsted Research Ltd,99590713,-26032.57,Research Institutes - Capital Grants: Minor Works
BEIS,UKRI - BBSRC,04/05/2022,Research Institutes - Capital Grants: Minor Works,Estates - Projects,EMBL (European Molecular Biology Laboratory),99506796,67072.56,Research Institutes - Capital Grants: Minor Works
BEIS,UKRI - BBSRC,04/05/2022,Fees (Including College Members),Science Group - Delivery Function,Unspecified,99599715,170,Fees (Including College Members)
BEIS,UKRI - BBSRC,04/05/2022,Fees (Including College Members),Science Group – Admin Function,Unspecified,99599717,170,Fees (Including College Members)
BEIS,UKRI - BBSRC,04/05/2022,Fees (Including College Members),Science Group – Admin Function,Unspecified,99599718,170,Fees (Including College Members)
BEIS,UKRI - BBSRC,04/05/2022,Fees (Including College Members),Science Group – Admin Function,Unspecified,99599719,170,Fees (Including College Members)
BEIS,UKRI - BBSRC,04/05/2022,Fees (Including College Members),Science Group – Admin Function,Unspecified,99599720,170,Fees (Including College Members)
BEIS,UKRI - BBSRC,04/05/2022,Fees (Including College Members),Science Group – Admin Function,Unspecified,99599721,170,Fees (Including College Members)
BEIS,UKRI - BBSRC,04/05/2022,Fees (Including College Members),Science Group – Admin Function,Unspecified,99599722,170,Fees (Including College Members)
BEIS,UKRI - BBSRC,04/05/2022,Fees (Including College Members),Science Group – Admin Function,Unspecified,99599723,170,Fees (Including College Members)
BEIS,UKRI - BBSRC,04/05/2022,Fees (Including College Members),Science Group – Admin Function,Unspecified,99599724,170,Fees (Including College Members)
BEIS,UKRI - BBSRC,04/05/2022,Fees (Including College Members),Science Group – Admin Function,Unspecified,99599725,170,Fees (Including College Members)
BEIS,UKRI - BBSRC,04/05/2022,Fees (Including College Members),Science Group – Admin Function,Unspecified,99599726,340,Fees (Including College Members)
BEIS,UKRI - BBSRC,04/05/2022,Fees (Including College Members),Science Group – Admin Function,Unspecified,99599727,170,Fees (Including College Members)
BEIS,UKRI - BBSRC,04/05/2022,Fees (Including College Members),Science Group – Admin Function,Unspecified,99599728,170,Fees (Including College Members)
BEIS,UKRI - BBSRC,04/05/2022,Fees (Including College Members),Science Group – Admin Function,Unspecified,99599729,170,Fees (Including College Members)
BEIS,UKRI - BBSRC,04/05/2022,Research Institutes - Capital Grants: Minor Works,Rothamsted Research,Rothamsted Research Ltd,99612711,9872.94,Research Institutes - Capital Grants: Minor Works
BEIS,UKRI - BBSRC,04/05/2022,T&S UK - Subsistence,Science Group,Unspecified,99614761,40.95,T&S UK - Subsistence
BEIS,UKRI - BBSRC,04/05/2022,T&S UK - Other Charges,Science Group,Unspecified,99614762,499.01,T&S UK - Other Charges
BEIS,UKRI - BBSRC,05/05/2022,Staff Training,Innovation and Skills Group,#N/A,99589917,3150,Staff Training
BEIS,UKRI - BBSRC,06/05/2022,Research Institutes - Capital Grants: Minor Works,Rothamsted Research,Rothamsted Research Ltd,99628742,15285.53,Research Institutes - Capital Grants: Minor Works
BEIS,UKRI - BBSRC,06/05/2022,Research Institutes - Capital Grants: Minor Works,Rothamsted Research,Rothamsted Research Ltd,99628744,7251.6,Research Institutes - Capital Grants: Minor Works
BEIS,UKRI - BBSRC,09/05/2022,Fees (Including College Members),Science Group - Delivery Function,Unspecified,99636927,340,Fees (Including College Members)
BEIS,UKRI - BBSRC,09/05/2022,Fees (Including College Members),Science Group - Delivery Function,Unspecified,99636928,340,Fees (Including College Members)
BEIS,UKRI - BBSRC,09/05/2022,Fees (Including College Members),Science Group - Delivery Function,Unspecified,99636929,340,Fees (Including College Members)
BEIS,UKRI - BBSRC,09/05/2022,Fees (Including College Members),Science Group - Delivery Function,Unspecified,99636930,340,Fees (Including College Members)
BEIS,UKRI - BBSRC,09/05/2022,Conferences & Seminars,Innovation and Skills Group,Calder Conference Ltd,99641790,740.46,Conferences & Seminars
BEIS,UKRI - BBSRC,10/05/2022,Research Grant Expenditure,Research: Responsive,UKRI - Medical Research Council,99572749,92250,Research Grant Expenditure
BEIS,UKRI - BBSRC,10/05/2022,T&S Overseas - Flights,Science Group,Corporate Travel Management (North) Ltd,99641950,9.5,T&S Overseas - Flights
BEIS,UKRI - BBSRC,10/05/2022,T&S Overseas - Flights,Science Group,Corporate Travel Management (North) Ltd,99641950,1076.16,T&S Overseas - Flights
BEIS,UKRI - BBSRC,10/05/2022,T&S UK - Accommodation,CIMG - Director,Corporate Travel Management (North) Ltd,99641950,0.8,T&S UK - Accommodation
BEIS,UKRI - BBSRC,10/05/2022,T&S UK - Accommodation,CIMG - Director,Corporate Travel Management (North) Ltd,99641950,0.8,T&S UK - Accommodation
BEIS,UKRI - BBSRC,10/05/2022,T&S UK - Accommodation,CIMG - Director,Corporate Travel Management (North) Ltd,99641950,102.6,T&S UK - Accommodation
BEIS,UKRI - BBSRC,10/05/2022,T&S UK - Accommodation,CIMG - Director,Corporate Travel Management (North) Ltd,99641950,0.32,T&S UK - Accommodation
BEIS,UKRI - BBSRC,10/05/2022,T&S UK - Accommodation,FG - Estates,Corporate Travel Management (North) Ltd,99641950,0.8,T&S UK - Accommodation
BEIS,UKRI - BBSRC,10/05/2022,T&S UK - Accommodation,FG - Estates,Corporate Travel Management (North) Ltd,99641950,103.5,T&S UK - Accommodation
BEIS,UKRI - BBSRC,10/05/2022,T&S UK - Accommodation,FG - Estates,Corporate Travel Management (North) Ltd,99641950,0.16,T&S UK - Accommodation
BEIS,UKRI - BBSRC,10/05/2022,T&S UK - Accommodation,Innovation and Skills Group,Corporate Travel Management (North) Ltd,99641950,0.8,T&S UK - Accommodation
BEIS,UKRI - BBSRC,10/05/2022,T&S UK - Accommodation,Innovation and Skills Group,Corporate Travel Management (North) Ltd,99641950,99,T&S UK - Accommodation
BEIS,UKRI - BBSRC,10/05/2022,T&S UK - Accommodation,Innovation and Skills Group,Corporate Travel Management (North) Ltd,99641950,0.16,T&S UK - Accommodation
BEIS,UKRI - BBSRC,10/05/2022,T&S UK - Accommodation,Science Group,Corporate Travel Management (North) Ltd,99641950,0.8,T&S UK - Accommodation
BEIS,UKRI - BBSRC,10/05/2022,T&S UK - Accommodation,Science Group,Corporate Travel Management (North) Ltd,99641950,380.48,T&S UK - Accommodation
BEIS,UKRI - BBSRC,10/05/2022,T&S UK - Accommodation,Science Group,Corporate Travel Management (North) Ltd,99641950,0.8,T&S UK - Accommodation
BEIS,UKRI - BBSRC,10/05/2022,T&S UK - Accommodation,Science Group,Corporate Travel Management (North) Ltd,99641950,327,T&S UK - Accommodation
BEIS,UKRI - BBSRC,10/05/2022,T&S UK - Accommodation,Science Group,Corporate Travel Management (North) Ltd,99641950,0.8,T&S UK - Accommodation
BEIS,UKRI - BBSRC,10/05/2022,T&S UK - Accommodation,Science Group,Corporate Travel Management (North) Ltd,99641950,147.86,T&S UK - Accommodation
BEIS,UKRI - BBSRC,10/05/2022,T&S UK - Accommodation,Science Group,Corporate Travel Management (North) Ltd,99641950,0.8,T&S UK - Accommodation
BEIS,UKRI - BBSRC,10/05/2022,T&S UK - Accommodation,Science Group,Corporate Travel Management (North) Ltd,99641950,116.5,T&S UK - Accommodation
BEIS,UKRI - BBSRC,10/05/2022,T&S UK - Accommodation,Science Group,Corporate Travel Management (North) Ltd,99641950,0.8,T&S UK - Accommodation
BEIS,UKRI - BBSRC,10/05/2022,T&S UK - Accommodation,Science Group,Corporate Travel Management (North) Ltd,99641950,116.85,T&S UK - Accommodation
BEIS,UKRI - BBSRC,10/05/2022,T&S UK - Accommodation,Science Group,Corporate Travel Management (North) Ltd,99641950,0.8,T&S UK - Accommodation
BEIS,UKRI - BBSRC,10/05/2022,T&S UK - Accommodation,Science Group,Corporate Travel Management (North) Ltd,99641950,116.85,T&S UK - Accommodation
BEIS,UKRI - BBSRC,10/05/2022,T&S UK - Accommodation,Science Group,Corporate Travel Management (North) Ltd,99641950,0.96,T&S UK - Accommodation
BEIS,UKRI - BBSRC,10/05/2022,T&S UK - Accommodation,Science Group – Admin Function,Corporate Travel Management (North) Ltd,99641950,2,T&S UK - Accommodation
BEIS,UKRI - BBSRC,10/05/2022,T&S UK - Accommodation,Science Group – Admin Function,Corporate Travel Management (North) Ltd,99641950,130.15,T&S UK - Accommodation
BEIS,UKRI - BBSRC,10/05/2022,T&S UK - Accommodation,Science Group – Admin Function,Corporate Travel Management (North) Ltd,99641950,0.4,T&S UK - Accommodation
BEIS,UKRI - BBSRC,10/05/2022,T&S UK - Public Transport,CE - CPS,Corporate Travel Management (North) Ltd,99641950,0.25,T&S UK - Public Transport
BEIS,UKRI - BBSRC,10/05/2022,T&S UK - Public Transport,CE - CPS,Corporate Travel Management (North) Ltd,99641950,202.3,T&S UK - Public Transport
BEIS,UKRI - BBSRC,10/05/2022,T&S UK - Public Transport,CE - CPS,Corporate Travel Management (North) Ltd,99641950,0.25,T&S UK - Public Transport
BEIS,UKRI - BBSRC,10/05/2022,T&S UK - Public Transport,CE - CPS,Corporate Travel Management (North) Ltd,99641950,65.5,T&S UK - Public Transport
BEIS,UKRI - BBSRC,10/05/2022,T&S UK - Public Transport,CE - CPS,Corporate Travel Management (North) Ltd,99641950,0.25,T&S UK - Public Transport
BEIS,UKRI - BBSRC,10/05/2022,T&S UK - Public Transport,CE - CPS,Corporate Travel Management (North) Ltd,99641950,67.9,T&S UK - Public Transport
BEIS,UKRI - BBSRC,10/05/2022,T&S UK - Public Transport,CE - Chief Executive,Corporate Travel Management (North) Ltd,99641950,0.25,T&S UK - Public Transport
BEIS,UKRI - BBSRC,10/05/2022,T&S UK - Public Transport,CE - Chief Executive,Corporate Travel Management (North) Ltd,99641950,195,T&S UK - Public Transport
BEIS,UKRI - BBSRC,10/05/2022,T&S UK - Public Transport,CE - Chief Executive,Corporate Travel Management (North) Ltd,99641950,5,T&S UK - Public Transport
BEIS,UKRI - BBSRC,10/05/2022,T&S UK - Public Transport,CE - Chief Executive,Corporate Travel Management (North) Ltd,99641950,-58.9,T&S UK - Public Transport
BEIS,UKRI - BBSRC,10/05/2022,T&S UK - Public Transport,CE - Chief Executive,Corporate Travel Management (North) Ltd,99641950,0.25,T&S UK - Public Transport
BEIS,UKRI - BBSRC,10/05/2022,T&S UK - Public Transport,CE - Chief Executive,Corporate Travel Management (North) Ltd,99641950,124.8,T&S UK - Public Transport
BEIS,UKRI - BBSRC,10/05/2022,T&S UK - Public Transport,CE - Chief Executive,Corporate Travel Management (North) Ltd,99641950,0.25,T&S UK - Public Transport
BEIS,UKRI - BBSRC,10/05/2022,T&S UK - Public Transport,CE - Chief Executive,Corporate Travel Management (North) Ltd,99641950,77.3,T&S UK - Public Transport
BEIS,UKRI - BBSRC,10/05/2022,T&S UK - Public Transport,CE - Chief Executive,Corporate Travel Management (North) Ltd,99641950,0.25,T&S UK - Public Transport
BEIS,UKRI - BBSRC,10/05/2022,T&S UK - Public Transport,CE - Chief Executive,Corporate Travel Management (North) Ltd,99641950,77.3,T&S UK - Public Transport
BEIS,UKRI - BBSRC,10/05/2022,T&S UK - Public Transport,CE - Chief Executive,Corporate Travel Management (North) Ltd,99641950,0.25,T&S UK - Public Transport
BEIS,UKRI - BBSRC,10/05/2022,T&S UK - Public Transport,CE - Chief Executive,Corporate Travel Management (North) Ltd,99641950,132.2,T&S UK - Public Transport
BEIS,UKRI - BBSRC,10/05/2022,T&S UK - Public Transport,CE - IRU,Corporate Travel Management (North) Ltd,99641950,0.25,T&S UK - Public Transport
BEIS,UKRI - BBSRC,10/05/2022,T&S UK - Public Transport,CE - IRU,Corporate Travel Management (North) Ltd,99641950,157.2,T&S UK - Public Transport
BEIS,UKRI - BBSRC,10/05/2022,T&S UK - Public Transport,CIMG - Director,Corporate Travel Management (North) Ltd,99641950,0.25,T&S UK - Public Transport
BEIS,UKRI - BBSRC,10/05/2022,T&S UK - Public Transport,CIMG - Director,Corporate Travel Management (North) Ltd,99641950,95.3,T&S UK - Public Transport
BEIS,UKRI - BBSRC,10/05/2022,T&S UK - Public Transport,Innovation and Skills Group,Corporate Travel Management (North) Ltd,99641950,0.25,T&S UK - Public Transport
BEIS,UKRI - BBSRC,10/05/2022,T&S UK - Public Transport,Innovation and Skills Group,Corporate Travel Management (North) Ltd,99641950,158.5,T&S UK - Public Transport
BEIS,UKRI - BBSRC,10/05/2022,T&S UK - Public Transport,Innovation and Skills Group,Corporate Travel Management (North) Ltd,99641950,0.25,T&S UK - Public Transport
BEIS,UKRI - BBSRC,10/05/2022,T&S UK - Public Transport,Innovation and Skills Group,Corporate Travel Management (North) Ltd,99641950,83.75,T&S UK - Public Transport
BEIS,UKRI - BBSRC,10/05/2022,T&S UK - Public Transport,Innovation and Skills Group,Corporate Travel Management (North) Ltd,99641950,5,T&S UK - Public Transport
BEIS,UKRI - BBSRC,10/05/2022,T&S UK - Public Transport,Innovation and Skills Group,Corporate Travel Management (North) Ltd,99641950,-52.2,T&S UK - Public Transport
BEIS,UKRI - BBSRC,10/05/2022,T&S UK - Public Transport,Innovation and Skills Group,Corporate Travel Management (North) Ltd,99641950,0.25,T&S UK - Public Transport
BEIS,UKRI - BBSRC,10/05/2022,T&S UK - Public Transport,Innovation and Skills Group,Corporate Travel Management (North) Ltd,99641950,209.7,T&S UK - Public Transport
BEIS,UKRI - BBSRC,10/05/2022,T&S UK - Public Transport,Innovation and Skills Group,Corporate Travel Management (North) Ltd,99641950,0.25,T&S UK - Public Transport
BEIS,UKRI - BBSRC,10/05/2022,T&S UK - Public Transport,Innovation and Skills Group,Corporate Travel Management (North) Ltd,99641950,101.8,T&S UK - Public Transport
BEIS,UKRI - BBSRC,10/05/2022,T&S UK - Public Transport,Science Group,Corporate Travel Management (North) Ltd,99641950,0.25,T&S UK - Public Transport
BEIS,UKRI - BBSRC,10/05/2022,T&S UK - Public Transport,Science Group,Corporate Travel Management (North) Ltd,99641950,105.8,T&S UK - Public Transport
BEIS,UKRI - BBSRC,10/05/2022,T&S UK - Public Transport,Science Group,Corporate Travel Management (North) Ltd,99641950,0.25,T&S UK - Public Transport
BEIS,UKRI - BBSRC,10/05/2022,T&S UK - Public Transport,Science Group,Corporate Travel Management (North) Ltd,99641950,244.8,T&S UK - Public Transport
BEIS,UKRI - BBSRC,10/05/2022,T&S UK - Public Transport,Science Group,Corporate Travel Management (North) Ltd,99641950,0.25,T&S UK - Public Transport
BEIS,UKRI - BBSRC,10/05/2022,T&S UK - Public Transport,Science Group,Corporate Travel Management (North) Ltd,99641950,30.1,T&S UK - Public Transport
BEIS,UKRI - BBSRC,10/05/2022,T&S UK - Public Transport,Science Group,Corporate Travel Management (North) Ltd,99641950,0.25,T&S UK - Public Transport
BEIS,UKRI - BBSRC,10/05/2022,T&S UK - Public Transport,Science Group,Corporate Travel Management (North) Ltd,99641950,11,T&S UK - Public Transport
BEIS,UKRI - BBSRC,10/05/2022,T&S UK - Public Transport,Science Group,Corporate Travel Management (North) Ltd,99641950,0.25,T&S UK - Public Transport
BEIS,UKRI - BBSRC,10/05/2022,T&S UK - Public Transport,Science Group,Corporate Travel Management (North) Ltd,99641950,193.8,T&S UK - Public Transport
BEIS,UKRI - BBSRC,10/05/2022,T&S UK - Public Transport,Science Group,Corporate Travel Management (North) Ltd,99641950,0.25,T&S UK - Public Transport
BEIS,UKRI - BBSRC,10/05/2022,T&S UK - Public Transport,Science Group,Corporate Travel Management (North) Ltd,99641950,124.8,T&S UK - Public Transport
BEIS,UKRI - BBSRC,10/05/2022,T&S UK - Public Transport,Science Group,Corporate Travel Management (North) Ltd,99641950,0.25,T&S UK - Public Transport
BEIS,UKRI - BBSRC,10/05/2022,T&S UK - Public Transport,Science Group,Corporate Travel Management (North) Ltd,99641950,124.8,T&S UK - Public Transport
BEIS,UKRI - BBSRC,10/05/2022,T&S UK - Public Transport,Science Group,Corporate Travel Management (North) Ltd,99641950,0.5,T&S UK - Public Transport
BEIS,UKRI - BBSRC,10/05/2022,T&S UK - Public Transport,Science Group,Corporate Travel Management (North) Ltd,99641950,34.6,T&S UK - Public Transport
BEIS,UKRI - BBSRC,10/05/2022,T&S UK - Public Transport,Science Group,Corporate Travel Management (North) Ltd,99641950,86.8,T&S UK - Public Transport
BEIS,UKRI - BBSRC,10/05/2022,T&S UK - Public Transport,Science Group,Corporate Travel Management (North) Ltd,99641950,10,T&S UK - Public Transport
BEIS,UKRI - BBSRC,10/05/2022,T&S UK - Public Transport,Science Group,Corporate Travel Management (North) Ltd,99641950,-147.2,T&S UK - Public Transport
BEIS,UKRI - BBSRC,10/05/2022,T&S UK - Public Transport,Science Group,Corporate Travel Management (North) Ltd,99641950,0.25,T&S UK - Public Transport
BEIS,UKRI - BBSRC,10/05/2022,T&S UK - Public Transport,Science Group,Corporate Travel Management (North) Ltd,99641950,133.2,T&S UK - Public Transport
BEIS,UKRI - BBSRC,10/05/2022,T&S UK - Public Transport,Science Group – Admin Function,Corporate Travel Management (North) Ltd,99641950,0.25,T&S UK - Public Transport
BEIS,UKRI - BBSRC,10/05/2022,T&S UK - Public Transport,Science Group – Admin Function,Corporate Travel Management (North) Ltd,99641950,105.8,T&S UK - Public Transport
BEIS,UKRI - BBSRC,10/05/2022,T&S UK - Public Transport,Science Group – Admin Function,Corporate Travel Management (North) Ltd,99641950,0.25,T&S UK - Public Transport
BEIS,UKRI - BBSRC,10/05/2022,T&S UK - Public Transport,Science Group – Admin Function,Corporate Travel Management (North) Ltd,99641950,201.2,T&S UK - Public Transport
BEIS,UKRI - BBSRC,10/05/2022,Research Institutes - Capital Grants: Minor Works,Pirbright,The Pirbright Institute,99647715,4920,Research Institutes - Capital Grants: Minor Works
BEIS,UKRI - BBSRC,10/05/2022,Research Institutes - Capital Grants: Minor Works,Pirbright,The Pirbright Institute,99647722,1003.2,Research Institutes - Capital Grants: Minor Works
BEIS,UKRI - BBSRC,10/05/2022,Research Institutes - Capital Grants: Minor Works,Pirbright,The Pirbright Institute,99647723,425.24,Research Institutes - Capital Grants: Minor Works
BEIS,UKRI - BBSRC,10/05/2022,Meetings & Catering,CE - Chief Executive,CH and Co Catering Ltd,99655745,267,Meetings & Catering
BEIS,UKRI - BBSRC,10/05/2022,Research Grant Expenditure,Impact & Knowledge Exchange,Agriculture And Horticulture Development Board (AHDB),99665716,588208.64,Research Grant Expenditure
BEIS,UKRI - BBSRC,10/05/2022,Research Grant Expenditure,Impact & Knowledge Exchange,Agriculture And Horticulture Development Board (AHDB),99665718,-588208.64,Research Grant Expenditure
BEIS,UKRI - BBSRC,11/05/2022,Staff Training,PDG - Director,Transition15 Ltd,99658764,8394,Staff Training
BEIS,UKRI - BBSRC,11/05/2022,Fees (Including College Members),Science Group - Delivery Function,Unspecified,99663840,340,Fees (Including College Members)
BEIS,UKRI - BBSRC,11/05/2022,Fees (Including College Members),Science Group - Delivery Function,Unspecified,99663841,340,Fees (Including College Members)
BEIS,UKRI - BBSRC,12/05/2022,Unspecified,Balance Sheet,HM Revenue & Customs,99643721,2264.2,PAYE Payable Salaries
BEIS,UKRI - BBSRC,12/05/2022,Unspecified,Balance Sheet,HM Revenue & Customs,99643722,6.38,NI Payable Salaries
BEIS,UKRI - BBSRC,12/05/2022,Unspecified,Balance Sheet,HM Revenue & Customs,99654738,81535.25,PAYE Payable Salaries
BEIS,UKRI - BBSRC,12/05/2022,Unspecified,Balance Sheet,HM Revenue & Customs,99654739,6866,Student Loans
BEIS,UKRI - BBSRC,12/05/2022,Unspecified,Balance Sheet,HM Revenue & Customs,99654740,112668.44,NI Payable Salaries
BEIS,UKRI - BBSRC,12/05/2022,Unspecified,FG - Accounts & Business Planning,HM Revenue & Customs,99654741,2769,Apprenticeship Levy
BEIS,UKRI - BBSRC,12/05/2022,Marketing & PR,CE - CPS,Unspecified,99655921,800,Marketing & PR
BEIS,UKRI - BBSRC,12/05/2022,Staff Training,PDG - Director,The University of Manchester,99663838,2000,Staff Training
BEIS,UKRI - BBSRC,12/05/2022,T&S UK - Mileage,CE - IRU,Unspecified,99679727,97.2,T&S UK - Mileage
BEIS,UKRI - BBSRC,12/05/2022,T&S UK - Parking Tolls Congestion Charges,CE - IRU,Unspecified,99679727,10,T&S UK - Parking Tolls Congestion Charges
BEIS,UKRI - BBSRC,12/05/2022,T&S UK - Vehicle Hire,CE - IRU,Unspecified,99679728,25.21,T&S UK - Vehicle Hire
BEIS,UKRI - BBSRC,13/05/2022,Research Institutes - Capital Grants: Minor Works,Rothamsted Research,Rothamsted Research Ltd,99611719,31320,Research Institutes - Capital Grants: Minor Works
BEIS,UKRI - BBSRC,13/05/2022,Research Institutes - Capital Grants: Minor Works,Pirbright,The Pirbright Institute,99647716,42441.86,Research Institutes - Capital Grants: Minor Works
BEIS,UKRI - BBSRC,13/05/2022,Research Institutes - Capital Grants: Minor Works,Mid-Range Equipment,The Pirbright Institute,99647719,8184,Research Institutes - Capital Grants: Minor Works
BEIS,UKRI - BBSRC,13/05/2022,Research Institutes - Capital Grants: Minor Works,Mid-Range Equipment,The Pirbright Institute,99648712,166048.54,Research Institutes - Capital Grants: Minor Works
BEIS,UKRI - BBSRC,13/05/2022,Union Deductions,Balance Sheet,PCS Union,99654742,45.21,Union Deductions
BEIS,UKRI - BBSRC,13/05/2022,Voluntary Deductions,Balance Sheet,Swindon Office Sports and Social Club,99654743,46,Voluntary Deductions
BEIS,UKRI - BBSRC,13/05/2022,Unspecified,Balance Sheet,Unspecified,99654744,20046.73,Ees Pension Deductions - JSS
BEIS,UKRI - BBSRC,13/05/2022,Unspecified,Balance Sheet,Unspecified,99654745,82767.71,Ers Pension Deductions - JSS
BEIS,UKRI - BBSRC,13/05/2022,Unspecified,Balance Sheet,Scottish Widows Life Assurance,99654746,447.16,Partnership Pension Deductions
BEIS,UKRI - BBSRC,13/05/2022,Unspecified,Balance Sheet,Scottish Widows Life Assurance,99654747,10,Other Pension Deductions
BEIS,UKRI - BBSRC,13/05/2022,Unspecified,Balance Sheet,Cabinet Office RM Shared Services,99654748,10.71,Ers Pension Deductions - JSS
BEIS,UKRI - BBSRC,13/05/2022,Unspecified,Balance Sheet,Cabinet Office RM Shared Services,99654749,13371.9,Ees Pension Deductions - MyCSP
BEIS,UKRI - BBSRC,13/05/2022,Unspecified,Balance Sheet,Cabinet Office RM Shared Services,99654750,67824.08,Ers Pension Deductions - MyCSP
BEIS,UKRI - BBSRC,13/05/2022,Unspecified,Balance Sheet,Unspecified,99654752,388.26,Ees Pension Deductions - MRC
BEIS,UKRI - BBSRC,13/05/2022,Unspecified,Balance Sheet,Unspecified,99654753,955.72,Ers Pension Deductions - MRC
BEIS,UKRI - BBSRC,13/05/2022,Research Institutes - Capital Grants: Minor Works,Rothamsted Research,Rothamsted Research Ltd,99655969,18133.2,Research Institutes - Capital Grants: Minor Works
BEIS,UKRI - BBSRC,13/05/2022,Research Grant Expenditure,OpEx SPF W2 GGR,Aberystwyth University,99686712,750,Research Grant Expenditure
BEIS,UKRI - BBSRC,16/05/2022,Fees (Including College Members),Science Group - Delivery Function,Unspecified,99690744,230,Fees (Including College Members)
BEIS,UKRI - BBSRC,16/05/2022,Fees (Including College Members),Science Group - Delivery Function,Unspecified,99690745,170,Fees (Including College Members)
BEIS,UKRI - BBSRC,16/05/2022,Fees (Including College Members),Science Group - Delivery Function,Unspecified,99690746,170,Fees (Including College Members)
BEIS,UKRI - BBSRC,16/05/2022,Fees (Including College Members),Science Group - Delivery Function,Unspecified,99690747,170,Fees (Including College Members)
BEIS,UKRI - BBSRC,16/05/2022,Fees (Including College Members),Science Group - Delivery Function,Unspecified,99690748,170,Fees (Including College Members)
BEIS,UKRI - BBSRC,16/05/2022,Fees (Including College Members),Science Group - Delivery Function,Unspecified,99690749,170,Fees (Including College Members)
BEIS,UKRI - BBSRC,16/05/2022,Fees (Including College Members),Science Group - Delivery Function,Unspecified,99690750,170,Fees (Including College Members)
BEIS,UKRI - BBSRC,16/05/2022,Fees (Including College Members),Science Group - Delivery Function,Unspecified,99690751,340,Fees (Including College Members)
BEIS,UKRI - BBSRC,16/05/2022,Fees (Including College Members),Science Group - Delivery Function,Unspecified,99690753,340,Fees (Including College Members)
BEIS,UKRI - BBSRC,16/05/2022,Fees (Including College Members),Science Group - Delivery Function,Unspecified,99690754,340,Fees (Including College Members)
BEIS,UKRI - BBSRC,16/05/2022,Fees (Including College Members),Science Group - Delivery Function,Unspecified,99690755,340,Fees (Including College Members)
BEIS,UKRI - BBSRC,17/05/2022,Training Awards - Postgraduates,Innovation and Skills Group,UKRI - Economic & Social Research Council,99682720,45651.18,Training Awards - Postgraduates
BEIS,UKRI - BBSRC,18/05/2022,Research Institutes - Competitive Strategic Grant,Research: Strategic National Capability,Babraham Institute,99618789,352459.91,Research Institutes - Competitive Strategic Grant
BEIS,UKRI - BBSRC,18/05/2022,Research Institutes - Competitive Strategic Grant,Research: Strategic National Capability,Babraham Institute,99618789,48750.01,Research Institutes - Competitive Strategic Grant
BEIS,UKRI - BBSRC,18/05/2022,Research Institutes - Competitive Strategic Grant,Research: Strategic National Capability,Babraham Institute,99618789,395666.75,Research Institutes - Competitive Strategic Grant
BEIS,UKRI - BBSRC,18/05/2022,Research Institutes - Competitive Strategic Grant,Research: Strategic National Capability,Babraham Institute,99618789,5833.33,Research Institutes - Competitive Strategic Grant
BEIS,UKRI - BBSRC,18/05/2022,Research Institutes - Competitive Strategic Grant,Research: Strategic National Capability,John Innes Centre,99618848,21999.99,Research Institutes - Competitive Strategic Grant
BEIS,UKRI - BBSRC,18/05/2022,Research Institutes - Competitive Strategic Grant,Research: Strategic National Capability,John Innes Centre,99618848,511416.52,Research Institutes - Competitive Strategic Grant
BEIS,UKRI - BBSRC,18/05/2022,Research Institutes - Competitive Strategic Grant,Research: Strategic National Capability,John Innes Centre,99618848,65333.31,Research Institutes - Competitive Strategic Grant
BEIS,UKRI - BBSRC,18/05/2022,Research Institutes - Competitive Strategic Grant,Research: Strategic National Capability,John Innes Centre,99618848,501249.85,Research Institutes - Competitive Strategic Grant
BEIS,UKRI - BBSRC,18/05/2022,Research Institutes - Competitive Strategic Grant,Research: Strategic National Capability,John Innes Centre,99618848,7083.33,Research Institutes - Competitive Strategic Grant
BEIS,UKRI - BBSRC,18/05/2022,Research Institutes - Competitive Strategic Grant,Research: Strategic National Capability,Aberystwyth University,99623714,86360.99,Research Institutes - Competitive Strategic Grant
BEIS,UKRI - BBSRC,18/05/2022,Research Institutes - Competitive Strategic Grant,Research: Strategic National Capability,Aberystwyth University,99623714,46980.67,Research Institutes - Competitive Strategic Grant
BEIS,UKRI - BBSRC,18/05/2022,Research Institutes - Competitive Strategic Grant,Research: Strategic National Capability,Aberystwyth University,99623714,2916.67,Research Institutes - Competitive Strategic Grant
BEIS,UKRI - BBSRC,18/05/2022,Research Institutes - Competitive Strategic Grant,Research: Strategic National Capability,Earlham Institute,99628803,163172.03,Research Institutes - Competitive Strategic Grant
BEIS,UKRI - BBSRC,18/05/2022,Research Institutes - Competitive Strategic Grant,Research: Strategic National Capability,Earlham Institute,99628803,81239.48,Research Institutes - Competitive Strategic Grant
BEIS,UKRI - BBSRC,18/05/2022,Research Institutes - Competitive Strategic Grant,Research: Strategic National Capability,Earlham Institute,99628803,42166.7,Research Institutes - Competitive Strategic Grant
BEIS,UKRI - BBSRC,18/05/2022,Research Institutes - Competitive Strategic Grant,Research: Strategic National Capability,Earlham Institute,99628803,33333.36,Research Institutes - Competitive Strategic Grant
BEIS,UKRI - BBSRC,18/05/2022,Research Institutes - Competitive Strategic Grant,Research: Strategic National Capability,Earlham Institute,99628803,121088.76,Research Institutes - Competitive Strategic Grant
BEIS,UKRI - BBSRC,18/05/2022,Research Institutes - Competitive Strategic Grant,Research: Strategic National Capability,Earlham Institute,99628803,2916.67,Research Institutes - Competitive Strategic Grant
BEIS,UKRI - BBSRC,18/05/2022,Research Institutes - Competitive Strategic Grant,Research: Strategic National Capability,Quadram Institute Bioscience,99628828,23624.41,Research Institutes - Competitive Strategic Grant
BEIS,UKRI - BBSRC,18/05/2022,Research Institutes - Competitive Strategic Grant,Research: Strategic National Capability,Quadram Institute Bioscience,99628828,347920.37,Research Institutes - Competitive Strategic Grant
BEIS,UKRI - BBSRC,18/05/2022,Research Institutes - Competitive Strategic Grant,Research: Strategic National Capability,Quadram Institute Bioscience,99628828,46083.32,Research Institutes - Competitive Strategic Grant
BEIS,UKRI - BBSRC,18/05/2022,Research Institutes - Competitive Strategic Grant,Research: Strategic National Capability,Quadram Institute Bioscience,99628828,261521.57,Research Institutes - Competitive Strategic Grant
BEIS,UKRI - BBSRC,18/05/2022,Research Institutes - Competitive Strategic Grant,Research: Strategic National Capability,Quadram Institute Bioscience,99628828,5833.33,Research Institutes - Competitive Strategic Grant
BEIS,UKRI - BBSRC,18/05/2022,Research Institutes - Competitive Strategic Grant,Research: Strategic National Capability,Rothamsted Research Ltd,99628839,111253.33,Research Institutes - Competitive Strategic Grant
BEIS,UKRI - BBSRC,18/05/2022,Research Institutes - Competitive Strategic Grant,Research: Strategic National Capability,Rothamsted Research Ltd,99628839,418416.67,Research Institutes - Competitive Strategic Grant
BEIS,UKRI - BBSRC,18/05/2022,Research Institutes - Competitive Strategic Grant,Research: Strategic National Capability,Rothamsted Research Ltd,99628839,64666.67,Research Institutes - Competitive Strategic Grant
BEIS,UKRI - BBSRC,18/05/2022,Research Institutes - Competitive Strategic Grant,Research: Strategic National Capability,Rothamsted Research Ltd,99628839,197000,Research Institutes - Competitive Strategic Grant
BEIS,UKRI - BBSRC,18/05/2022,Research Institutes - Competitive Strategic Grant,Research: Strategic National Capability,Rothamsted Research Ltd,99628839,7083.33,Research Institutes - Competitive Strategic Grant
BEIS,UKRI - BBSRC,18/05/2022,Institute Grant Expenditure,Research: Strategic National Capability,Rothamsted Research Ltd,99628840,53166.66,Institute Grant Expenditure
BEIS,UKRI - BBSRC,18/05/2022,Research Institutes - Competitive Strategic Grant,Research: Strategic National Capability,University of Edinburgh,99646915,277179.92,Research Institutes - Competitive Strategic Grant
BEIS,UKRI - BBSRC,18/05/2022,Research Institutes - Competitive Strategic Grant,Research: Strategic National Capability,University of Edinburgh,99646915,206087.5,Research Institutes - Competitive Strategic Grant
BEIS,UKRI - BBSRC,18/05/2022,Research Institutes - Competitive Strategic Grant,Research: Strategic National Capability,University of Edinburgh,99646915,5833.33,Research Institutes - Competitive Strategic Grant
BEIS,UKRI - BBSRC,18/05/2022,Unspecified,Science Group,Earlham Institute,99652727,47300,Legal & Professional Services
BEIS,UKRI - BBSRC,18/05/2022,Conferences & Seminars,Science Group,Calder Conference Ltd,99684744,144.36,Conferences & Seminars
BEIS,UKRI - BBSRC,18/05/2022,Research Institutes - Competitive Strategic Grant,Research: Strategic National Capability,The Pirbright Institute,99691882,817500.04,Research Institutes - Competitive Strategic Grant
BEIS,UKRI - BBSRC,18/05/2022,Research Institutes - Competitive Strategic Grant,Research: Strategic National Capability,The Pirbright Institute,99691882,231500.01,Research Institutes - Competitive Strategic Grant
BEIS,UKRI - BBSRC,18/05/2022,Research Institutes - Competitive Strategic Grant,Research: Strategic National Capability,The Pirbright Institute,99691882,33333.34,Research Institutes - Competitive Strategic Grant
BEIS,UKRI - BBSRC,18/05/2022,Research Institutes - Competitive Strategic Grant,Research: Strategic National Capability,The Pirbright Institute,99691882,201083.35,Research Institutes - Competitive Strategic Grant
BEIS,UKRI - BBSRC,18/05/2022,Research Institutes - Competitive Strategic Grant,Research: Strategic National Capability,The Pirbright Institute,99691882,4166.67,Research Institutes - Competitive Strategic Grant
BEIS,UKRI - BBSRC,18/05/2022,Fees (Including College Members),Science Group - Delivery Function,Unspecified,99713712,460,Fees (Including College Members)
BEIS,UKRI - BBSRC,18/05/2022,Research Institutes - Capital Grants: Minor Works,JIC,John Innes Centre,99714755,6285.7,Research Institutes - Capital Grants: Minor Works
BEIS,UKRI - BBSRC,18/05/2022,Research Institutes - Capital Grants: Minor Works,IFR,Quadram Institute Bioscience,99714764,5823.65,Research Institutes - Capital Grants: Minor Works
BEIS,UKRI - BBSRC,18/05/2022,T&S UK - Public Transport,CE - Chief Executive,Unspecified,99715733,11.2,T&S UK - Public Transport
BEIS,UKRI - BBSRC,18/05/2022,T&S UK - Subsistence,CE - Chief Executive,Unspecified,99715733,5.29,T&S UK - Subsistence
BEIS,UKRI - BBSRC,18/05/2022,T&S UK - Subsistence,CE - Chief Executive,Unspecified,99715733,7,T&S UK - Subsistence
BEIS,UKRI - BBSRC,18/05/2022,T&S UK - Subsistence,CE - Chief Executive,Unspecified,99715733,5,T&S UK - Subsistence
BEIS,UKRI - BBSRC,19/05/2022,Conferences & Seminars,Innovation and Skills Group,Unspecified,99715877,204,Conferences & Seminars
BEIS,UKRI - BBSRC,23/05/2022,T&S UK - Subsistence,Innovation and Skills Group,Unspecified,99679729,29.28,T&S UK - Subsistence
BEIS,UKRI - BBSRC,23/05/2022,Fees (Including College Members),Science Group - Delivery Function,Unspecified,99720743,510,Fees (Including College Members)
BEIS,UKRI - BBSRC,23/05/2022,Fees (Including College Members),Science Group - Delivery Function,Unspecified,99720744,510,Fees (Including College Members)
BEIS,UKRI - BBSRC,23/05/2022,Fees (Including College Members),Science Group - Delivery Function,Unspecified,99720745,510,Fees (Including College Members)
BEIS,UKRI - BBSRC,23/05/2022,Fees (Including College Members),Science Group - Delivery Function,Unspecified,99720746,170,Fees (Including College Members)
BEIS,UKRI - BBSRC,23/05/2022,Fees (Including College Members),Science Group - Delivery Function,Unspecified,99720747,510,Fees (Including College Members)
BEIS,UKRI - BBSRC,23/05/2022,Fees (Including College Members),Science Group - Delivery Function,Unspecified,99720748,510,Fees (Including College Members)
BEIS,UKRI - BBSRC,23/05/2022,Fees (Including College Members),Science Group - Delivery Function,Unspecified,99720749,510,Fees (Including College Members)
BEIS,UKRI - BBSRC,23/05/2022,Fees (Including College Members),Science Group - Delivery Function,Unspecified,99720750,510,Fees (Including College Members)
BEIS,UKRI - BBSRC,23/05/2022,Fees (Including College Members),Science Group - Delivery Function,Unspecified,99720751,510,Fees (Including College Members)
BEIS,UKRI - BBSRC,23/05/2022,Fees (Including College Members),Science Group - Delivery Function,Unspecified,99720752,510,Fees (Including College Members)
BEIS,UKRI - BBSRC,23/05/2022,Fees (Including College Members),Science Group - Delivery Function,Unspecified,99720753,510,Fees (Including College Members)
BEIS,UKRI - BBSRC,23/05/2022,Fees (Including College Members),Science Group - Delivery Function,Unspecified,99720754,510,Fees (Including College Members)
BEIS,UKRI - BBSRC,23/05/2022,Fees (Including College Members),Science Group - Delivery Function,Unspecified,99720755,510,Fees (Including College Members)
BEIS,UKRI - BBSRC,23/05/2022,Fees (Including College Members),Science Group - Delivery Function,Unspecified,99720756,510,Fees (Including College Members)
BEIS,UKRI - BBSRC,23/05/2022,Fees (Including College Members),Science Group - Delivery Function,Unspecified,99720757,510,Fees (Including College Members)
BEIS,UKRI - BBSRC,23/05/2022,Fees (Including College Members),Science Group - Delivery Function,Unspecified,99720758,510,Fees (Including College Members)
BEIS,UKRI - BBSRC,23/05/2022,Non-staff travel and subsistance,Science Group - Delivery Function,Unspecified,99720759,58.5,Non-staff travel and subsistance
BEIS,UKRI - BBSRC,23/05/2022,Fees (Including College Members),Science Group - Delivery Function,Unspecified,99720760,690,Fees (Including College Members)
BEIS,UKRI - BBSRC,23/05/2022,Fees (Including College Members),Science Group - Delivery Function,Unspecified,99720761,510,Fees (Including College Members)
BEIS,UKRI - BBSRC,23/05/2022,Fees (Including College Members),Science Group - Delivery Function,Unspecified,99720762,510,Fees (Including College Members)
BEIS,UKRI - BBSRC,23/05/2022,Fees (Including College Members),Science Group - Delivery Function,Unspecified,99720763,510,Fees (Including College Members)
BEIS,UKRI - BBSRC,23/05/2022,Fees (Including College Members),Science Group - Delivery Function,Unspecified,99720764,510,Fees (Including College Members)
BEIS,UKRI - BBSRC,23/05/2022,Research Grant Expenditure,SPF W1 EMBL EBI,EMBL (European Molecular Biology Laboratory),99721714,2037.22,Research Grant Expenditure
BEIS,UKRI - BBSRC,23/05/2022,T&S UK - Public Transport,Innovation and Skills Group,Unspecified,99729731,15.7,T&S UK - Public Transport
BEIS,UKRI - BBSRC,23/05/2022,T&S UK - Public Transport,Innovation and Skills Group,Unspecified,99729731,289.9,T&S UK - Public Transport
BEIS,UKRI - BBSRC,23/05/2022,Research Institutes - Capital Grants: Minor Works,Rothamsted Research,Rothamsted Research Ltd,99730734,8400,Research Institutes - Capital Grants: Minor Works
BEIS,UKRI - BBSRC,23/05/2022,T&S UK - Other Charges,CIMG - Information Management,Unspecified,99733757,278,T&S UK - Other Charges
BEIS,UKRI - BBSRC,24/05/2022,Research Institutes - Capital Grants: Minor Works,JIC,John Innes Centre,99714744,75584.98,Research Institutes - Capital Grants: Minor Works
BEIS,UKRI - BBSRC,24/05/2022,Research Institutes - Capital Grants: Minor Works,JIC,John Innes Centre,99714757,28775.31,Research Institutes - Capital Grants: Minor Works
BEIS,UKRI - BBSRC,24/05/2022,Research Institutes - Capital Grants: Minor Works,IFR,Quadram Institute Bioscience,99714760,44498.23,Research Institutes - Capital Grants: Minor Works
BEIS,UKRI - BBSRC,24/05/2022,Research Institutes - Capital Grants: Minor Works,TGAC,Earlham Institute,99714763,4800,Research Institutes - Capital Grants: Minor Works
BEIS,UKRI - BBSRC,24/05/2022,Research Grant Expenditure,SPF W1 EMBL EBI,EMBL (European Molecular Biology Laboratory),99716742,143999.43,Research Grant Expenditure
BEIS,UKRI - BBSRC,24/05/2022,Research Grant Expenditure,SPF W1 EMBL EBI,EMBL (European Molecular Biology Laboratory),99716762,143999.43,Research Grant Expenditure
BEIS,UKRI - BBSRC,24/05/2022,Research Grant Expenditure,SPF W1 EMBL EBI,EMBL (European Molecular Biology Laboratory),99722711,3000,Research Grant Expenditure
BEIS,UKRI - BBSRC,24/05/2022,Research Grant Expenditure,SPF W1 EMBL EBI,EMBL (European Molecular Biology Laboratory),99722712,11804.24,Research Grant Expenditure
BEIS,UKRI - BBSRC,24/05/2022,Research Institutes - Capital Grants: Minor Works,Pirbright,The Pirbright Institute,99722959,75285.83,Research Institutes - Capital Grants: Minor Works
BEIS,UKRI - BBSRC,24/05/2022,Research Institutes - Capital Grants: Minor Works,Pirbright,The Pirbright Institute,99727710,128539.2,Research Institutes - Capital Grants: Minor Works
BEIS,UKRI - BBSRC,24/05/2022,Research Institutes - Capital Grants: Minor Works,Mid-Range Equipment,Babraham Institute,99735020,101942.23,Research Institutes - Capital Grants: Minor Works
BEIS,UKRI - BBSRC,24/05/2022,Research Grant Expenditure,SPF W1 EMBL EBI,EMBL (European Molecular Biology Laboratory),99735085,16146.01,Research Grant Expenditure
BEIS,UKRI - BBSRC,24/05/2022,Research Grant Expenditure,SPF W1 EMBL EBI,EMBL (European Molecular Biology Laboratory),99735087,158975.48,Research Grant Expenditure
BEIS,UKRI - BBSRC,24/05/2022,T&S UK - Other Charges,FG - Estates,Unspecified,99735105,7.15,T&S UK - Other Charges
BEIS,UKRI - BBSRC,24/05/2022,T&S UK - Vehicle Hire,FG - Estates,Unspecified,99735105,32.08,T&S UK - Vehicle Hire
BEIS,UKRI - BBSRC,24/05/2022,T&S UK - Subsistence,Innovation and Skills Group,Unspecified,99735106,3.29,T&S UK - Subsistence
BEIS,UKRI - BBSRC,24/05/2022,T&S UK - Subsistence,Innovation and Skills Group,Unspecified,99735106,25,T&S UK - Subsistence
BEIS,UKRI - BBSRC,24/05/2022,T&S UK - Subsistence,Innovation and Skills Group,Unspecified,99735106,6.84,T&S UK - Subsistence
BEIS,UKRI - BBSRC,24/05/2022,Research Grant Expenditure,SPF W1 EMBL EBI,EMBL (European Molecular Biology Laboratory),99735804,1529.57,Research Grant Expenditure
BEIS,UKRI - BBSRC,24/05/2022,T&S UK - Vehicle Hire,FG - Estates,Enterprise Rent-A-Car UK Ltd,99735940,66.77,T&S UK - Vehicle Hire
BEIS,UKRI - BBSRC,24/05/2022,T&S UK - Vehicle Hire,FG - Estates,Enterprise Rent-A-Car UK Ltd,99735940,13.35,T&S UK - Vehicle Hire
BEIS,UKRI - BBSRC,25/05/2022,Fees (Including College Members),Science Group - Delivery Function,Unspecified,99736137,340,Fees (Including College Members)
BEIS,UKRI - BBSRC,25/05/2022,Fees (Including College Members),Science Group - Delivery Function,Unspecified,99736184,460,Fees (Including College Members)
BEIS,UKRI - BBSRC,25/05/2022,Unspecified,Science Group – Admin Function,Unspecified,99736198,170,Council & Committee Honoraria
BEIS,UKRI - BBSRC,25/05/2022,Unspecified,Science Group – Admin Function,Unspecified,99736199,170,Council & Committee Honoraria
BEIS,UKRI - BBSRC,25/05/2022,Unspecified,Science Group – Admin Function,Unspecified,99736200,170,Council & Committee Honoraria
BEIS,UKRI - BBSRC,25/05/2022,Unspecified,Science Group – Admin Function,Unspecified,99736201,170,Council & Committee Honoraria
BEIS,UKRI - BBSRC,25/05/2022,T&S UK - Mileage,CIMG - Director,Unspecified,99736256,38.25,T&S UK - Mileage
BEIS,UKRI - BBSRC,25/05/2022,T&S UK - Parking Tolls Congestion Charges,CIMG - Director,Unspecified,99736256,6,T&S UK - Parking Tolls Congestion Charges
BEIS,UKRI - BBSRC,25/05/2022,T&S UK - Other Charges,Innovation and Skills Group,Unspecified,99736257,193,T&S UK - Other Charges
BEIS,UKRI - BBSRC,25/05/2022,T&S UK - Parking Tolls Congestion Charges,Innovation and Skills Group,Unspecified,99736258,7.8,T&S UK - Parking Tolls Congestion Charges
BEIS,UKRI - BBSRC,26/05/2022,Conferences & Seminars,Innovation and Skills Group,Calder Conference Ltd,99684738,1446.6,Conferences & Seminars
BEIS,UKRI - BBSRC,26/05/2022,Fees (Including College Members),Science Group - Delivery Function,Unspecified,99735567,340,Fees (Including College Members)
BEIS,UKRI - BBSRC,26/05/2022,Fees (Including College Members),Science Group - Delivery Function,Unspecified,99735568,340,Fees (Including College Members)
BEIS,UKRI - BBSRC,26/05/2022,Fees (Including College Members),Science Group - Delivery Function,Unspecified,99735569,460,Fees (Including College Members)
BEIS,UKRI - BBSRC,26/05/2022,Fees (Including College Members),Science Group - Delivery Function,Unspecified,99735570,460,Fees (Including College Members)
BEIS,UKRI - BBSRC,26/05/2022,Fees (Including College Members),Science Group - Delivery Function,Unspecified,99735571,340,Fees (Including College Members)
BEIS,UKRI - BBSRC,26/05/2022,Fees (Including College Members),Science Group - Delivery Function,Unspecified,99735572,340,Fees (Including College Members)
BEIS,UKRI - BBSRC,26/05/2022,Fees (Including College Members),Science Group - Delivery Function,Unspecified,99735573,340,Fees (Including College Members)
BEIS,UKRI - BBSRC,26/05/2022,Fees (Including College Members),Science Group – Admin Function,Unspecified,99735574,340,Fees (Including College Members)
BEIS,UKRI - BBSRC,26/05/2022,Fees (Including College Members),Science Group - Delivery Function,Unspecified,99735575,340,Fees (Including College Members)
BEIS,UKRI - BBSRC,26/05/2022,Fees (Including College Members),Science Group - Delivery Function,Unspecified,99735576,340,Fees (Including College Members)
BEIS,UKRI - BBSRC,26/05/2022,Fees (Including College Members),Science Group - Delivery Function,Unspecified,99735578,340,Fees (Including College Members)
BEIS,UKRI - BBSRC,26/05/2022,Fees (Including College Members),Science Group - Delivery Function,Unspecified,99735579,340,Fees (Including College Members)
BEIS,UKRI - BBSRC,26/05/2022,Fees (Including College Members),Science Group - Delivery Function,Unspecified,99735580,340,Fees (Including College Members)
BEIS,UKRI - BBSRC,26/05/2022,Fees (Including College Members),Science Group - Delivery Function,Unspecified,99735581,340,Fees (Including College Members)
BEIS,UKRI - BBSRC,26/05/2022,Fees (Including College Members),Science Group - Delivery Function,Unspecified,99735582,340,Fees (Including College Members)
BEIS,UKRI - BBSRC,26/05/2022,Fees (Including College Members),Science Group - Delivery Function,Unspecified,99735583,340,Fees (Including College Members)
BEIS,UKRI - BBSRC,26/05/2022,Fees (Including College Members),Science Group - Delivery Function,Unspecified,99735584,340,Fees (Including College Members)
BEIS,UKRI - BBSRC,26/05/2022,Fees (Including College Members),Science Group - Delivery Function,Unspecified,99735585,340,Fees (Including College Members)
BEIS,UKRI - BBSRC,26/05/2022,Unspecified,Science Group - Delivery Function,Unspecified,99736441,230,Council & Committee Honoraria
BEIS,UKRI - BBSRC,26/05/2022,Staff Training,PDG - Director,International Centre for Parliamentary Studies Ltd T/A Government Exchange,99736482,1368,Staff Training
BEIS,UKRI - BBSRC,26/05/2022,Research Grant Expenditure,SPF W1 EMBL EBI,EMBL (European Molecular Biology Laboratory),99736497,1994.75,Research Grant Expenditure
BEIS,UKRI - BBSRC,26/05/2022,Research Grant Expenditure,SPF W1 EMBL EBI,EMBL (European Molecular Biology Laboratory),99736789,282824.46,Research Grant Expenditure
BEIS,UKRI - BBSRC,27/05/2022,Corporate Events,CE - Chief Executive,Calder Conference Ltd,99494768,7422.94,Corporate Events
BEIS,UKRI - BBSRC,27/05/2022,Research Grant Expenditure,SPF W1 EMBL EBI,EMBL (European Molecular Biology Laboratory),99737757,74663.4,Research Grant Expenditure
BEIS,UKRI - BBSRC,30/05/2022,Research Grant Expenditure,CE - CPS,University of Liverpool,99339282,-2000,Research Grant Expenditure
BEIS,UKRI - BBSRC,30/05/2022,Research Institutes - Capital Grants: Minor Works,Rothamsted Research,Rothamsted Research Ltd,99687742,98835.88,Research Institutes - Capital Grants: Minor Works
BEIS,UKRI - BBSRC,30/05/2022,Unspecified,OpEx SPF W2 Food Systems,University of Southampton,99713924,28335.28,Secondments
BEIS,UKRI - BBSRC,30/05/2022,Conferences & Seminars,Innovation and Skills Group CDSU,BBStem Ltd,99714806,288,Conferences & Seminars
BEIS,UKRI - BBSRC,30/05/2022,T&S UK - Subsistence,Science Group – Admin Function,Unspecified,99738171,8.25,T&S UK - Subsistence
BEIS,UKRI - BBSRC,30/05/2022,T&S UK - Subsistence,Science Group – Admin Function,Unspecified,99738171,3.3,T&S UK - Subsistence
BEIS,UKRI - BBSRC,30/05/2022,T&S UK - Subsistence,Science Group,Unspecified,99738173,19.4,T&S UK - Subsistence
BEIS,UKRI - BBSRC,30/05/2022,T&S UK - Subsistence,Science Group,Unspecified,99738173,4.5,T&S UK - Subsistence
BEIS,UKRI - BBSRC,30/05/2022,T&S UK - Subsistence,Science Group,Unspecified,99738173,5,T&S UK - Subsistence
BEIS,UKRI - BBSRC,31/05/2022,Fees (Including College Members),Science Group - Delivery Function,Unspecified,99737700,340,Fees (Including College Members)
BEIS,UKRI - BBSRC,31/05/2022,Non-staff travel and subsistance,OpEx SPF W1 UK Animal & Plant Health,Unspecified,99737701,248.5,Non-staff travel and subsistance
BEIS,UKRI - BBSRC,31/05/2022,T&S UK - Other Charges,Science Group,Unspecified,99738781,348.22,T&S UK - Other Charges
BEIS,UKRI - Research England,03/05/2022,Recruitment Costs,RE - Research Excellence Framework (REF),Alexander Mann Solutions Ltd,99345623,1343.46,Recruitment Costs
BEIS,UKRI - Research England,03/05/2022,Recruitment Costs,RE - Research Excellence Framework (REF),Alexander Mann Solutions Ltd,99359051,746.36,Recruitment Costs
BEIS,UKRI - UKRI,03/05/2022,Printing & Stationery,UKRI - Financial Accounting,Banner Group Ltd,99537770,28.68,Printing & Stationery
BEIS,UKRI - UKRI,03/05/2022,Unspecified,UKRI - Communications Content,Joel Knight T/A Joel Knight Photography,99578782,700,Legal & Professional Services
BEIS,UKRI - UKRI,03/05/2022,Hardware/Software Maintenance,UKRI - JRS,#N/A,99585714,1345.35,Hardware/Software Maintenance
BEIS,UKRI - UKRI,03/05/2022,Unspecified,UKRI - Digital Data and Technology Project Costs,Precision Resource Group Ltd T/A iO,99587737,2472,Contract Staff
BEIS,UKRI - EPSRC,03/05/2022,Fees (Including College Members),Business Improvement,Unspecified,99588717,80,Fees (Including College Members)
BEIS,UKRI - EPSRC,03/05/2022,Fees (Including College Members),Business Improvement,Unspecified,99588718,80,Fees (Including College Members)
BEIS,UKRI - EPSRC,03/05/2022,Fees (Including College Members),Business Improvement,Unspecified,99588719,160,Fees (Including College Members)
BEIS,UKRI - Research England,03/05/2022,Unspecified,RE - Research Excellence Framework (REF),Unspecified,99588732,1500,Council & Committee Honoraria
BEIS,UKRI - Research England,03/05/2022,Unspecified,RE - Research Excellence Framework (REF),Unspecified,99588733,1500,Council & Committee Honoraria
BEIS,UKRI - UKRI,03/05/2022,Unspecified,UKRI - Funding Service,Alexander Mann Solutions Ltd,99588747,3695.62,Contract Staff
BEIS,UKRI - UKRI,03/05/2022,Unspecified,UKRI People and Organisation Development,Alexander Mann Solutions Ltd,99588750,1109.52,Agency Staff
BEIS,UKRI - UKRI,03/05/2022,Computer Software Licences,UKRI - Digital Data and Technology BAU Costs,PatSnap (UK) Ltd,99589839,24544.3,Computer Software Licences
BEIS,UKRI - UKRI,03/05/2022,Unspecified,UKRI - Digital Data and Technology BAU Costs,Alexander Mann Solutions Ltd,99590714,3024.29,Contract Staff
BEIS,UKRI - UKRI,03/05/2022,Unspecified,UKRI - Information Governance,Alexander Mann Solutions Ltd,99591717,5670.54,Agency Staff
BEIS,UKRI - UKRI,03/05/2022,Unspecified,UKRI - Digital Data and Technology BAU Costs,Alexander Mann Solutions Ltd,99591719,2520.24,Contract Staff
BEIS,UKRI - UKRI,03/05/2022,Unspecified,UKRI-SHARP,Alexander Mann Solutions Ltd,99591728,2340.53,Contract Staff
BEIS,UKRI - UKRI,03/05/2022,Unspecified,UKRI-SHARP,Alexander Mann Solutions Ltd,99591747,2463.7,Contract Staff
BEIS,UKRI - UKRI,03/05/2022,Unspecified,UKRI-SHARP,Hays Specialist Recruitment Ltd,99591756,7631.21,Contract Staff
BEIS,UKRI - UKRI,03/05/2022,Unspecified,UKRI - Digital Data and Technology Project Costs,Alexander Mann Solutions Ltd,99591759,1847.77,Contract Staff
BEIS,UKRI - UKRI,03/05/2022,Unspecified,Horizon Europe Scoping Phase OPEX,Alexander Mann Solutions Ltd,99592710,6374.84,Agency Staff
BEIS,UKRI - UKRI,03/05/2022,Unspecified,UKRI People and Organisation Development,Alexander Mann Solutions Ltd,99593717,1008.1,Contract Staff
BEIS,UKRI - UKRI,03/05/2022,Unspecified,UKRI People and Organisation Development,Alexander Mann Solutions Ltd,99593718,2520.19,Contract Staff
BEIS,UKRI - UKRI,03/05/2022,Unspecified,UKRI - Digital Data and Technology Project Costs,Alexander Mann Solutions Ltd,99593733,90,Contract Staff
BEIS,UKRI - UKRI,03/05/2022,Unspecified,UKRI - Digital Data and Technology Project Costs,Alexander Mann Solutions Ltd,99593742,2463.7,Contract Staff
BEIS,UKRI - UKRI,03/05/2022,Unspecified,UKRI - Digital Data and Technology BAU Costs,Alexander Mann Solutions Ltd,99593759,3361.18,Contract Staff
BEIS,UKRI - UKRI,03/05/2022,Unspecified,UKRI - Funding Service,Alexander Mann Solutions Ltd,99593760,3079.63,Contract Staff
BEIS,UKRI - EPSRC,03/05/2022,T&S UK - Public Transport,Programme Delivery Quantum Technology,Unspecified,99593806,9.57,T&S UK - Public Transport
BEIS,UKRI - EPSRC,03/05/2022,T&S UK - Subsistence,Programme Delivery Quantum Technology,Unspecified,99593806,12.4,T&S UK - Subsistence
BEIS,UKRI - EPSRC,03/05/2022,T&S UK - Subsistence,Programme Delivery Quantum Technology,Unspecified,99593806,10,T&S UK - Subsistence
BEIS,UKRI - UKRI,03/05/2022,T&S UK - Public Transport,UKRI - Communications Themes and Partnerships,Unspecified,99593807,10,T&S UK - Public Transport
BEIS,UKRI - UKRI,03/05/2022,T&S UK - Parking Tolls Congestion Charges,UKRI Strategic HR Business Partners,Unspecified,99593808,14.2,T&S UK - Parking Tolls Congestion Charges
BEIS,UKRI - UKRI,03/05/2022,T&S UK - Subsistence,UKRI Strategic HR Business Partners,Unspecified,99593808,13.7,T&S UK - Subsistence
BEIS,UKRI - UKRI,03/05/2022,T&S UK - Mileage,UKRI - Communications Projects and Services,Unspecified,99593809,23.4,T&S UK - Mileage
BEIS,UKRI - UKRI,03/05/2022,T&S UK - Other Charges,UKRI - Communications Projects and Services,Unspecified,99593809,46.95,T&S UK - Other Charges
BEIS,UKRI - UKRI,03/05/2022,T&S UK - Other Charges,UKRI - Communications Content,Unspecified,99593810,23.8,T&S UK - Other Charges
BEIS,UKRI - UKRI,03/05/2022,T&S UK - Mileage,UKRI - Strategic Finance Business Partners,Unspecified,99593811,37.8,T&S UK - Mileage
BEIS,UKRI - UKRI,03/05/2022,Unspecified,UKRI - Digital Data and Technology BAU Costs,Precision Resource Group Ltd T/A iO,99594728,2832,Contract Staff
BEIS,UKRI - UKRI,03/05/2022,T&S UK - Mileage,UKRI - Digital Data and Technology BAU Costs,Unspecified,99594827,198,T&S UK - Mileage
BEIS,UKRI - EPSRC,03/05/2022,T&S UK - Mileage,Programme Delivery Energy,Unspecified,99594828,55.35,T&S UK - Mileage
BEIS,UKRI - UKRI,03/05/2022,T&S UK - Parking Tolls Congestion Charges,UKRI Strategic HR Business Partners,Unspecified,99594830,14.2,T&S UK - Parking Tolls Congestion Charges
BEIS,UKRI - UKRI,03/05/2022,T&S UK - Subsistence,UKRI Strategic HR Business Partners,Unspecified,99594830,25,T&S UK - Subsistence
BEIS,UKRI - UKRI,03/05/2022,T&S UK - Subsistence,UKRI Strategic HR Business Partners,Unspecified,99594830,7.25,T&S UK - Subsistence
BEIS,UKRI - UKRI,03/05/2022,T&S UK - Subsistence,UKRI Strategic HR Business Partners,Unspecified,99594830,5,T&S UK - Subsistence
BEIS,UKRI - UKRI,03/05/2022,T&S UK - Vehicle Hire,UKRI Strategic HR Business Partners,Unspecified,99594830,60.11,T&S UK - Vehicle Hire
BEIS,UKRI - EPSRC,04/05/2022,Research Grant Expenditure,National Quantum Computing Centre - NQCC,Hays Specialist Recruitment Ltd,99207350,13088.55,Research Grant Expenditure
BEIS,UKRI - EPSRC,04/05/2022,Research Grant Expenditure,National Quantum Computing Centre - NQCC,Hays Specialist Recruitment Ltd,99207350,790.72,Research Grant Expenditure
BEIS,UKRI - UKRI,04/05/2022,Staff Training,UKRI - Executive Group,University of the West of England,99359812,813,Staff Training
BEIS,UKRI - Research England,04/05/2022,Unspecified,RE - Research Excellence Framework (REF),University of Surrey,99395868,10260.11,Council & Committee Honoraria
BEIS,UKRI - EPSRC,04/05/2022,T&S UK - Subsistence,Programme Delivery Physical Sciences,Unspecified,99442723,2.3,T&S UK - Subsistence
BEIS,UKRI - UKRI,04/05/2022,Mechanical & Electrical Maintenance,UKRI - Financial Accounting,VWR International Ltd,99462754,16.81,Mechanical & Electrical Maintenance
BEIS,UKRI - Research England,04/05/2022,Unspecified,RE - Operations and Private Office,LA International Computer Consultants Ltd,99537801,2993.4,Agency Staff
BEIS,UKRI - Research England,04/05/2022,Unspecified,RE - Research Excellence Framework (REF),University of Sheffield,99578741,13393,Council & Committee Honoraria
BEIS,UKRI - Research England,04/05/2022,Unspecified,RE - Research Excellence Framework (REF),University of Sheffield,99591739,750,Council & Committee Honoraria
BEIS,UKRI - UKRI,04/05/2022,Consumables,UKRI - JRS,Antalis Ltd t/a Antalis Document Supplies,99593721,-518.04,Consumables
BEIS,UKRI - UKRI,04/05/2022,Unspecified,UKRI - Strategic Finance Business Partners,Alexander Mann Solutions Ltd,99593765,1008.1,Agency Staff
BEIS,UKRI - UKRI,04/05/2022,Health & Safety (inc. Medicals & Opticians),UKRI - Health and Safety,AM Health & Safety Ltd,99594824,1089,Health & Safety (inc. Medicals & Opticians)
BEIS,UKRI - UKRI,04/05/2022,Consumables,UKRI - JRS,Antalis Ltd t/a Antalis Document Supplies,99594868,184.92,Consumables
BEIS,UKRI - UKRI,04/05/2022,Consumables,UKRI - JRS,Antalis Ltd t/a Antalis Document Supplies,99594870,0.01,Consumables
BEIS,UKRI - UKRI,04/05/2022,Consumables,UKRI - JRS,Antalis Ltd t/a Antalis Document Supplies,99594870,518.04,Consumables
BEIS,UKRI - UKRI,04/05/2022,Consumables,UKRI - JRS,Antalis Ltd t/a Antalis Document Supplies,99594877,139.1,Consumables
BEIS,UKRI - Research England,04/05/2022,Unspecified,RE - Research Excellence Framework (REF),Bournemouth University,99594894,16690.39,Council & Committee Honoraria
BEIS,UKRI - EPSRC,04/05/2022,Unspecified,Directors and Deputy Directors,University of Edinburgh,99594903,7597.6,Secondments
BEIS,UKRI - EPSRC,04/05/2022,Non-staff travel and subsistance,Programme Delivery Maths,Unspecified,99601718,105.15,Non-staff travel and subsistance
BEIS,UKRI - EPSRC,04/05/2022,Fees (Including College Members),Programme Delivery Maths,Unspecified,99601719,160,Fees (Including College Members)
BEIS,UKRI - EPSRC,04/05/2022,Non-staff travel and subsistance,Programme Delivery Maths,Unspecified,99601720,54,Non-staff travel and subsistance
BEIS,UKRI - EPSRC,04/05/2022,Fees (Including College Members),Programme Delivery Maths,Unspecified,99601721,160,Fees (Including College Members)
BEIS,UKRI - EPSRC,04/05/2022,Fees (Including College Members),EDI and People,Unspecified,99601722,80,Fees (Including College Members)
BEIS,UKRI - EPSRC,04/05/2022,Fees (Including College Members),EDI and People,Unspecified,99601723,80,Fees (Including College Members)
BEIS,UKRI - EPSRC,04/05/2022,Fees (Including College Members),EDI and People,Unspecified,99601724,80,Fees (Including College Members)
BEIS,UKRI - EPSRC,04/05/2022,Fees (Including College Members),EDI and People,Unspecified,99601725,80,Fees (Including College Members)
BEIS,UKRI - EPSRC,04/05/2022,Fees (Including College Members),EDI and People,Unspecified,99601726,80,Fees (Including College Members)
BEIS,UKRI - EPSRC,04/05/2022,Fees (Including College Members),EDI and People,Unspecified,99601727,80,Fees (Including College Members)
BEIS,UKRI - EPSRC,04/05/2022,Fees (Including College Members),EDI and People,Unspecified,99601728,80,Fees (Including College Members)
BEIS,UKRI - UKRI,04/05/2022,Computer Software Licences,UKRI - Digital Data and Technology BAU Costs,Phoenix Software Ltd,99601732,36.96,Computer Software Licences
BEIS,UKRI - UKRI,04/05/2022,Computer Software Licences,UKRI - Digital Data and Technology BAU Costs,Phoenix Software Ltd,99601737,7.08,Computer Software Licences
BEIS,UKRI - UKRI,04/05/2022,Computer Software Licences,UKRI - Digital Data and Technology BAU Costs,Phoenix Software Ltd,99601753,99.04,Computer Software Licences
BEIS,UKRI - UKRI,04/05/2022,Mechanical & Electrical Maintenance,UKRI - JBOS,ISS Mediclean Ltd,99605724,2603.64,Mechanical & Electrical Maintenance
BEIS,UKRI - EPSRC,04/05/2022,Corporate Events,Programme Delivery ICT,Compass Contract Services (UK) Ltd,99605730,810,Corporate Events
BEIS,UKRI - UKRI,04/05/2022,Other Staff Benefits,UKRI - UKRO,Unspecified,99611710,965.12,Other Staff Benefits
BEIS,UKRI - UKRI,04/05/2022,Advertising & Promotion,UKRI - Communications Themes and Partnerships,Rachel Everington Marketing Ltd,99612721,4725,Advertising & Promotion
BEIS,UKRI - Research England,04/05/2022,Unspecified,RE - Research Excellence Framework (REF),Unspecified,99614722,540,Council & Committee Honoraria
BEIS,UKRI - Research England,04/05/2022,Non-staff travel and subsistance,RE - Research Excellence Framework (REF),RSPB (Royal Society For The Protection Of Birds),99614729,59.4,Non-staff travel and subsistance
BEIS,UKRI - Research England,04/05/2022,Unspecified,RE - Research Excellence Framework (REF),University of Lincoln,99615715,1500,Council & Committee Honoraria
BEIS,UKRI - Research England,04/05/2022,Non-staff travel and subsistance,RE - Research Excellence Framework (REF),University of Lincoln,99615716,131,Non-staff travel and subsistance
BEIS,UKRI - UKRI,04/05/2022,T&S UK - Other Charges,"UKRI - Data Policy, Governance and MI",Unspecified,99615723,60.98,T&S UK - Other Charges
BEIS,UKRI - UKRI,04/05/2022,Conferences & Seminars,UKRI - Strategic Finance Business Partners,Unspecified,99615724,120,Conferences & Seminars
BEIS,UKRI - UKRI,04/05/2022,T&S UK - Other Charges,UKRI - External Communications,Unspecified,99615725,36.89,T&S UK - Other Charges
BEIS,UKRI - UKRI,04/05/2022,T&S UK - Other Charges,UKRI - External Communications,Unspecified,99615725,1.5,T&S UK - Other Charges
BEIS,UKRI - UKRI,04/05/2022,T&S UK - Subsistence,UKRI - External Communications,Unspecified,99615725,5.54,T&S UK - Subsistence
BEIS,UKRI - UKRI,04/05/2022,Education Fees & Study Materials,UKRI - Strategic Finance Business Partners,Unspecified,99615726,49,Education Fees & Study Materials
BEIS,UKRI - EPSRC,04/05/2022,T&S UK - Public Transport,Programme Delivery ICT,Unspecified,99615727,18.8,T&S UK - Public Transport
BEIS,UKRI - UKRI,04/05/2022,T&S UK - Mileage,UKRI - International Communications,Unspecified,99615729,5.85,T&S UK - Mileage
BEIS,UKRI - UKRI,04/05/2022,T&S UK - Public Transport,UKRI - International Communications,Unspecified,99615729,16,T&S UK - Public Transport
BEIS,UKRI - UKRI,04/05/2022,T&S UK - Subsistence,UKRI - International Communications,Unspecified,99615729,11.23,T&S UK - Subsistence
BEIS,UKRI - UKRI,04/05/2022,T&S UK - Subsistence,UKRI - International Communications,Unspecified,99615729,29.6,T&S UK - Subsistence
BEIS,UKRI - UKRI,04/05/2022,T&S UK - Subsistence,UKRI - International Communications,Unspecified,99615729,15.8,T&S UK - Subsistence
BEIS,UKRI - UKRI,04/05/2022,T&S UK - Subsistence,UKRI - International Communications,Unspecified,99615729,10,T&S UK - Subsistence
BEIS,UKRI - UKRI,04/05/2022,T&S UK - Mileage,UKRI - Legal,Unspecified,99615730,26.55,T&S UK - Mileage
BEIS,UKRI - UKRI,04/05/2022,T&S UK - Other Charges,UKRI - Legal,Unspecified,99615730,12.05,T&S UK - Other Charges
BEIS,UKRI - EPSRC,04/05/2022,T&S UK - Public Transport,Programme Delivery Manufacturing,Unspecified,99615732,5.4,T&S UK - Public Transport
BEIS,UKRI - EPSRC,04/05/2022,T&S UK - Public Transport,Programme Delivery Manufacturing,Unspecified,99615732,118.9,T&S UK - Public Transport
BEIS,UKRI - EPSRC,04/05/2022,T&S UK - Subsistence,Programme Delivery Manufacturing,Unspecified,99615732,23.02,T&S UK - Subsistence
BEIS,UKRI - EPSRC,04/05/2022,T&S UK - Subsistence,Programme Delivery Manufacturing,Unspecified,99615732,4.75,T&S UK - Subsistence
BEIS,UKRI - EPSRC,04/05/2022,T&S UK - Subsistence,Programme Delivery Manufacturing,Unspecified,99615732,5,T&S UK - Subsistence
BEIS,UKRI - UKRI,04/05/2022,T&S UK - Mileage,UKRI - COO,Unspecified,99615734,59.4,T&S UK - Mileage
BEIS,UKRI - UKRI,04/05/2022,T&S UK - Parking Tolls Congestion Charges,UKRI - COO,Unspecified,99615734,50,T&S UK - Parking Tolls Congestion Charges
BEIS,UKRI - UKRI,05/05/2022,Computer Software,UKRI - Risk and Counter Fraud,Corporate Governance Risk Ltd,99109516,11479.2,Computer Software
BEIS,UKRI - UKRI,05/05/2022,Computer Software,UKRI - Risk and Counter Fraud,Corporate Governance Risk Ltd,99109516,28520.4,Computer Software
BEIS,UKRI - UKRI,05/05/2022,Computer Software,UKRI - Risk and Counter Fraud,Corporate Governance Risk Ltd,99177809,-11479.2,Computer Software
BEIS,UKRI - UKRI,05/05/2022,Computer Software,UKRI - Risk and Counter Fraud,Corporate Governance Risk Ltd,99177809,-28520.4,Computer Software
BEIS,UKRI - Research England,05/05/2022,Unspecified,RE - Research Excellence Framework (REF),Early Intervention Foundation,99395913,450,Council & Committee Honoraria
BEIS,UKRI - Research England,05/05/2022,Unspecified,RE - Research Excellence Framework (REF),Early Intervention Foundation,99428711,450,Council & Committee Honoraria
BEIS,UKRI - UKRI,05/05/2022,T&S UK - Parking Tolls Congestion Charges,"UKRI People, Policies and Management",Unspecified,99536809,14.2,T&S UK - Parking Tolls Congestion Charges
BEIS,UKRI - UKRI,05/05/2022,T&S UK - Subsistence,"UKRI People, Policies and Management",Unspecified,99536809,20.95,T&S UK - Subsistence
BEIS,UKRI - UKRI,05/05/2022,T&S UK - Subsistence,"UKRI People, Policies and Management",Unspecified,99536809,25,T&S UK - Subsistence
BEIS,UKRI - UKRI,05/05/2022,T&S UK - Subsistence,"UKRI People, Policies and Management",Unspecified,99536809,10,T&S UK - Subsistence
BEIS,UKRI - UKRI,05/05/2022,Staff Training,UKRI - Financial Accounting,First Intuition Ltd,99577716,1050,Staff Training
BEIS,UKRI - Research England,05/05/2022,Unspecified,RE - Research Excellence Framework (REF),University of Cambridge,99583717,14102.5,Council & Committee Honoraria
BEIS,UKRI - Research England,05/05/2022,Unspecified,RE - Research Excellence Framework (REF),University of Cambridge,99594748,1499.99,Council & Committee Honoraria
BEIS,UKRI - UKRI,05/05/2022,Staff Training,UKRI - Communication and Engagement,Content Design London Ltd,99594841,834,Staff Training
BEIS,UKRI - UKRI,05/05/2022,Printing & Stationery,UKRI - JBOS,Banner Group Ltd,99597876,72,Printing & Stationery
BEIS,UKRI - UKRI,05/05/2022,Consumables,UKRI - JRS,Antalis Ltd t/a Antalis Document Supplies,99599711,0.02,Consumables
BEIS,UKRI - UKRI,05/05/2022,Consumables,UKRI - JRS,Antalis Ltd t/a Antalis Document Supplies,99599711,624.03,Consumables
BEIS,UKRI - UKRI,05/05/2022,Consumables,UKRI - JRS,Antalis Ltd t/a Antalis Document Supplies,99599711,41.18,Consumables
BEIS,UKRI - UKRI,05/05/2022,Consumables,UKRI - JRS,Antalis Ltd t/a Antalis Document Supplies,99599711,43.56,Consumables
BEIS,UKRI - UKRI,05/05/2022,Consumables,UKRI - JRS,Antalis Ltd t/a Antalis Document Supplies,99599711,32.57,Consumables
BEIS,UKRI - UKRI,05/05/2022,Consumables,UKRI - JRS,Antalis Ltd t/a Antalis Document Supplies,99599711,30.02,Consumables
BEIS,UKRI - EPSRC,05/05/2022,Unspecified,Exec Chair Support,University of Cambridge,99605725,51571.97,Secondments
BEIS,UKRI - EPSRC,05/05/2022,Unspecified,Exec Chair Support,University of Cambridge,99605725,13969.64,Secondments
BEIS,UKRI - UKRI,05/05/2022,Staff Training,UKRI - Project Management Office,Eliesha Training Ltd,99617798,88326,Staff Training
BEIS,UKRI - Research England,05/05/2022,Unspecified,RE - Research Excellence Framework (REF),Early Intervention Foundation,99617811,900,Council & Committee Honoraria
BEIS,UKRI - UKRI,05/05/2022,Unspecified,UKRI - Digital Data and Technology Recharges,Unspecified,99617823,19566.95,Networking Maintenance
BEIS,UKRI - UKRI,05/05/2022,Computer Software,UKRI - Risk and Counter Fraud,Corporate Governance Risk Ltd,99617833,6800.4,Computer Software
BEIS,UKRI - UKRI,05/05/2022,Recruitment Costs,UKRI People and Organisation Development,Warwick University Services Ltd,99617883,552,Recruitment Costs
BEIS,UKRI - UKRI,05/05/2022,Recruitment Costs,UKRI People and Organisation Development,Warwick University Services Ltd,99617886,552,Recruitment Costs
BEIS,UKRI - UKRI,05/05/2022,Recruitment Costs,UKRI People and Organisation Development,Warwick University Services Ltd,99617893,552,Recruitment Costs
BEIS,UKRI - UKRI,05/05/2022,Recruitment Costs,UKRI People and Organisation Development,Warwick University Services Ltd,99617903,552,Recruitment Costs
BEIS,UKRI - UKRI,05/05/2022,Staff Training,UKRI - Culture Leadership and Learning,Geoff Holmes T/A Geoff Holmes Counselling & Consultancy,99617905,90,Staff Training
BEIS,UKRI - UKRI,05/05/2022,Recruitment Costs,UKRI People and Organisation Development,Warwick University Services Ltd,99617908,552,Recruitment Costs
BEIS,UKRI - UKRI,05/05/2022,Postage & Courier Services,UKRI - JBOS,Unspecified,99618720,72.53,Postage & Courier Services
BEIS,UKRI - Research England,05/05/2022,Unspecified,RE - Research Excellence Framework (REF),Unspecified,99618728,1500,Council & Committee Honoraria
BEIS,UKRI - Research England,05/05/2022,Unspecified,RE - Research Excellence Framework (REF),Simon Richard Kerridge T/A Kerridge Research Consulting,99618729,1157,Council & Committee Honoraria
BEIS,UKRI - UKRI,05/05/2022,Staff Training,UKRI - Culture Leadership and Learning,ASK Europe PLC,99618802,115.2,Staff Training
BEIS,UKRI - UKRI,05/05/2022,Unspecified,UKRI - Digital Data and Technology Project Costs,LA International Computer Consultants Ltd,99618818,3293.4,Contract Staff
BEIS,UKRI - UKRI,05/05/2022,Printing & Stationery,UKRI - JRS,This Way Ltd,99618840,3240,Printing & Stationery
BEIS,UKRI - UKRI,05/05/2022,Computer Software Licences,UKRI - Digital Data and Technology BAU Costs,New Relic Inc.,99619718,1861.29,Computer Software Licences
BEIS,UKRI - UKRI,05/05/2022,Books Professional Journals & Guides,UKRI - Digital Data and Technology Library Services,The British Library,99621712,3,Books Professional Journals & Guides
BEIS,UKRI - UKRI,05/05/2022,Books Professional Journals & Guides,UKRI - Digital Data and Technology Library Services,The British Library,99621712,81.55,Books Professional Journals & Guides
BEIS,UKRI - UKRI,05/05/2022,Computer Hardware,UKRI - Digital Data and Technology Project Costs,Academia Ltd,99623710,41127.48,Computer Hardware
BEIS,UKRI - Research England,05/05/2022,Unspecified,RE - Research Excellence Framework (REF),Research Consulting Ltd,99625715,1800,Council & Committee Honoraria
BEIS,UKRI - UKRI,05/05/2022,General Building Maintenance,UKRI - JBOS,Swindon Asbestos Surveying Ltd,99625722,399.6,General Building Maintenance
BEIS,UKRI - UKRI,05/05/2022,General Building Maintenance,UKRI - JBOS,Swindon Asbestos Surveying Ltd,99625723,298.8,General Building Maintenance
BEIS,UKRI - UKRI,05/05/2022,General Building Maintenance,UKRI - JBOS,Swindon Asbestos Surveying Ltd,99625724,1228.5,General Building Maintenance
BEIS,UKRI - UKRI,05/05/2022,T&S UK - Mileage,UKRI - Communications Projects and Services,Unspecified,99625731,75.6,T&S UK - Mileage
BEIS,UKRI - UKRI,05/05/2022,T&S UK - Other Charges,UKRI - Communications Projects and Services,Unspecified,99625731,118.41,T&S UK - Other Charges
BEIS,UKRI - UKRI,05/05/2022,T&S UK - Other Charges,"UKRI People, Policies and Management",Unspecified,99625732,122.89,T&S UK - Other Charges
BEIS,UKRI - UKRI,05/05/2022,T&S UK - Vehicle Hire,"UKRI People, Policies and Management",Unspecified,99625732,29.7,T&S UK - Vehicle Hire
BEIS,UKRI - UKRI,05/05/2022,T&S UK - Public Transport,UKRI - Strategic Finance Business Partners,Unspecified,99625733,12.87,T&S UK - Public Transport
BEIS,UKRI - EPSRC,05/05/2022,T&S UK - Public Transport,Programme Delivery ICT,Unspecified,99625735,22,T&S UK - Public Transport
BEIS,UKRI - EPSRC,05/05/2022,T&S UK - Public Transport,Programme Delivery ICT,Unspecified,99625735,5.91,T&S UK - Public Transport
BEIS,UKRI - EPSRC,05/05/2022,T&S UK - Subsistence,Programme Delivery ICT,Unspecified,99625735,7.5,T&S UK - Subsistence
BEIS,UKRI - EPSRC,05/05/2022,T&S UK - Subsistence,Programme Delivery ICT,Unspecified,99625735,16.58,T&S UK - Subsistence
BEIS,UKRI - EPSRC,05/05/2022,T&S UK - Subsistence,Programme Delivery ICT,Unspecified,99625735,15,T&S UK - Subsistence
BEIS,UKRI - UKRI,05/05/2022,T&S UK - Public Transport,UKRI - Strategy,Unspecified,99625736,112.2,T&S UK - Public Transport
BEIS,UKRI - UKRI,05/05/2022,T&S UK - Public Transport,"UKRI People, Policies and Management",Unspecified,99625737,55.4,T&S UK - Public Transport
BEIS,UKRI - UKRI,05/05/2022,T&S UK - Subsistence,"UKRI People, Policies and Management",Unspecified,99625737,5.29,T&S UK - Subsistence
BEIS,UKRI - UKRI,05/05/2022,T&S UK - Subsistence,"UKRI People, Policies and Management",Unspecified,99625737,62.96,T&S UK - Subsistence
BEIS,UKRI - UKRI,05/05/2022,T&S UK - Subsistence,"UKRI People, Policies and Management",Unspecified,99625737,11.1,T&S UK - Subsistence
BEIS,UKRI - UKRI,05/05/2022,T&S UK - Subsistence,"UKRI People, Policies and Management",Unspecified,99625737,25,T&S UK - Subsistence
BEIS,UKRI - UKRI,05/05/2022,T&S UK - Subsistence,"UKRI People, Policies and Management",Unspecified,99625738,13.64,T&S UK - Subsistence
BEIS,UKRI - EPSRC,05/05/2022,T&S UK - Public Transport,Programme Delivery Quantum Technology,Unspecified,99625739,9.4,T&S UK - Public Transport
BEIS,UKRI - UKRI,05/05/2022,T&S UK - Other Charges,UKRI - Risk and Counter Fraud,Unspecified,99625740,9.69,T&S UK - Other Charges
BEIS,UKRI - UKRI,05/05/2022,T&S UK - Subsistence,UKRI - Risk and Counter Fraud,Unspecified,99625740,22.18,T&S UK - Subsistence
BEIS,UKRI - UKRI,05/05/2022,T&S UK - Mileage,UKRI People and Organisation Development,Unspecified,99625741,135,T&S UK - Mileage
BEIS,UKRI - UKRI,05/05/2022,T&S UK - Public Transport,UKRI People and Organisation Development,Unspecified,99625741,22,T&S UK - Public Transport
BEIS,UKRI - EPSRC,06/05/2022,Conferences & Seminars,Programme Delivery Energy,The Chartridge Regency Ltd (Chartridge Venues),99403174,456,Conferences & Seminars
BEIS,UKRI - UKRI,06/05/2022,Recruitment Costs,"UKRI People, Policies and Management","Glassdoor, Inc",99531716,1000,Recruitment Costs
BEIS,UKRI - Research England,06/05/2022,Non-staff travel and subsistance,RE - Research Excellence Framework (REF),Calder Conference Ltd,99585710,9049.73,Non-staff travel and subsistance
BEIS,UKRI - UKRI,06/05/2022,Unspecified,UKRI - Communications Web and Intranet Service,#N/A,99601711,4560,Legal & Professional Services
BEIS,UKRI - UKRI,06/05/2022,T&S UK - Other Charges,UKRI - Strategic Finance Business Partners,Unspecified,99615733,274.8,T&S UK - Other Charges
BEIS,UKRI - UKRI,06/05/2022,Printing & Stationery,UKRI - Financial Accounting,Banner Group Ltd,99617765,2.94,Printing & Stationery
BEIS,UKRI - UKRI,06/05/2022,Printing & Stationery,UKRI - Financial Accounting,Banner Group Ltd,99617765,16.13,Printing & Stationery
BEIS,UKRI - UKRI,06/05/2022,Printing & Stationery,UKRI - Financial Accounting,Banner Group Ltd,99617765,8.21,Printing & Stationery
BEIS,UKRI - UKRI,06/05/2022,Printing & Stationery,UKRI - Financial Accounting,Banner Group Ltd,99617765,10.18,Printing & Stationery
BEIS,UKRI - UKRI,06/05/2022,Printing & Stationery,UKRI - Financial Accounting,Banner Group Ltd,99617765,7.22,Printing & Stationery
BEIS,UKRI - UKRI,06/05/2022,Printing & Stationery,UKRI - Financial Accounting,Banner Group Ltd,99617765,0.55,Printing & Stationery
BEIS,UKRI - UKRI,06/05/2022,Printing & Stationery,UKRI - Financial Accounting,Banner Group Ltd,99617766,28.68,Printing & Stationery
BEIS,UKRI - UKRI,06/05/2022,Recruitment Costs,UKRI People and Organisation Development,Agenda Resource Management Ltd,99618783,4131.43,Recruitment Costs
BEIS,UKRI - UKRI,06/05/2022,Recruitment Costs,UKRI People and Organisation Development,Agenda Resource Management Ltd,99618784,1528.3,Recruitment Costs
BEIS,UKRI - UKRI,06/05/2022,General Building Maintenance,UKRI - JBOS,Roman Glass Ltd,99624720,208.67,General Building Maintenance
BEIS,UKRI - Research England,06/05/2022,Other Bought In Services,RE - Research Excellence Framework (REF),The Digital Accessibility Centre Ltd,99628732,4860,Other Bought In Services
BEIS,UKRI - UKRI,06/05/2022,Insurance,UKRI - Risk and Counter Fraud,IHC Ltd,99628798,8400,Insurance
BEIS,UKRI - UKRI,06/05/2022,Advertising & Promotion,UKRI - Communications Content,Matt Beech T/A Matt Beech Photography,99628800,662.5,Advertising & Promotion
BEIS,UKRI - EPSRC,06/05/2022,Unspecified,SPF - AI & Data Science OpEx,Escott Hunt Ltd,99628878,600,Legal & Professional Services
BEIS,UKRI - EPSRC,06/05/2022,Fees (Including College Members),Business Improvement,Unspecified,99629755,320,Fees (Including College Members)
BEIS,UKRI - EPSRC,06/05/2022,Fees (Including College Members),Business Improvement,Unspecified,99629756,320,Fees (Including College Members)
BEIS,UKRI - EPSRC,06/05/2022,Fees (Including College Members),Programme Delivery Energy,Unspecified,99629757,160,Fees (Including College Members)
BEIS,UKRI - EPSRC,06/05/2022,Fees (Including College Members),Programme Delivery Physical Sciences,Unspecified,99629758,160,Fees (Including College Members)
BEIS,UKRI - EPSRC,06/05/2022,Fees (Including College Members),Programme Delivery Manufacturing,Unspecified,99629759,160,Fees (Including College Members)
BEIS,UKRI - EPSRC,06/05/2022,Non-staff travel and subsistance,Governance and Planning,Unspecified,99629760,8.95,Non-staff travel and subsistance
BEIS,UKRI - UKRI,06/05/2022,Hardware/Software Maintenance,UKRI - JRS,Kodak Ltd,99632711,1726.33,Hardware/Software Maintenance
BEIS,UKRI - UKRI,06/05/2022,Purchase of non capital equipment,UKRI - Project Management Office,Senator International Ltd,99632713,53631.58,Purchase of non capital equipment
BEIS,UKRI - UKRI,06/05/2022,Consumables,UKRI - JRS,Creat3d Ltd,99634733,64.2,Consumables
BEIS,UKRI - UKRI,06/05/2022,Consumables,UKRI - JRS,Creat3d Ltd,99634733,142.2,Consumables
BEIS,UKRI - Research England,06/05/2022,Unspecified,RE - Research Excellence Framework (REF),Swansea University,99634750,1000,Council & Committee Honoraria
BEIS,UKRI - UKRI,06/05/2022,Meetings & Catering,UKRI - International,CH and Co Catering Ltd,99636724,333.28,Meetings & Catering
BEIS,UKRI - UKRI,06/05/2022,Meetings & Catering,UKRI - Secretariat,CH and Co Catering Ltd,99636725,511.49,Meetings & Catering
BEIS,UKRI - UKRI,06/05/2022,Catering Contracts,UKRI - Health and Safety,CH and Co Catering Ltd,99636727,388.54,Catering Contracts
BEIS,UKRI - UKRI,06/05/2022,T&S UK - Other Charges,Research Integrity Support Team OpEx,Unspecified,99636780,102.6,T&S UK - Other Charges
BEIS,UKRI - UKRI,06/05/2022,T&S UK - Subsistence,Research Integrity Support Team OpEx,Unspecified,99636780,62.75,T&S UK - Subsistence
BEIS,UKRI - EPSRC,06/05/2022,T&S UK - Public Transport,Programme Delivery Healthcare,Unspecified,99636781,21.4,T&S UK - Public Transport
BEIS,UKRI - EPSRC,06/05/2022,T&S UK - Public Transport,Programme Delivery Healthcare,Unspecified,99636781,12.8,T&S UK - Public Transport
BEIS,UKRI - EPSRC,06/05/2022,T&S UK - Subsistence,Programme Delivery Healthcare,Unspecified,99636781,5,T&S UK - Subsistence
BEIS,UKRI - UKRI,06/05/2022,Rates,UKRI - JBOS,Swindon Borough Council,99636829,64000,Rates
BEIS,UKRI - UKRI,06/05/2022,Rates,UKRI - Estates,City of London,99636845,18496,Rates
BEIS,UKRI - UKRI,06/05/2022,Rates,UKRI - Estates,City of London,99636849,18496,Rates
BEIS,UKRI - UKRI,09/05/2022,Staff Training,UKRI - Communications External Affairs,Dods Group Ltd,99086661,1008,Staff Training
BEIS,UKRI - UKRI,09/05/2022,Conferences & Seminars,UKRI - Communications Projects and Services,Swindon Borough Council,99342716,267.04,Conferences & Seminars
BEIS,UKRI - UKRI,09/05/2022,Computer Software Licences,UKRI - Digital Data and Technology BAU Costs,Chakray UK Ltd,99506733,3000,Computer Software Licences
BEIS,UKRI - UKRI,09/05/2022,Consumables,UKRI - JRS,Premier Paper Group Ltd,99547711,-67.68,Consumables
BEIS,UKRI - UKRI,09/05/2022,Consumables,UKRI - JRS,Premier Paper Group Ltd,99547712,67.68,Consumables
BEIS,UKRI - UKRI,09/05/2022,Unspecified,UKRI - Digital Data and Technology BAU Costs,Logicalis Uk Ltd,99578777,3383.21,Legal & Professional Services
BEIS,UKRI - UKRI,09/05/2022,IT / Computing Support Services,UKRI - Digital Data and Technology Library Services,ECS Partners Ltd,99614725,12204,IT / Computing Support Services
BEIS,UKRI - EPSRC,09/05/2022,Other Programme Costs,Energy Energy,University of Surrey,99632712,35413.36,Other Programme Costs
BEIS,UKRI - EPSRC,09/05/2022,Other Programme Costs,Fusion CDTs,University of Surrey,99632712,29232,Other Programme Costs
BEIS,UKRI - EPSRC,09/05/2022,Other Programme Costs,ISCF Prosperity Partnerships,University of Surrey,99632712,11985.12,Other Programme Costs
BEIS,UKRI - EPSRC,09/05/2022,Other Programme Costs,ISCF Prosperity Partnerships,University of Surrey,99632712,11692.8,Other Programme Costs
BEIS,UKRI - EPSRC,09/05/2022,Other Programme Costs,Manufacturing Manufacturing,University of Surrey,99632712,152.24,Other Programme Costs
BEIS,UKRI - EPSRC,09/05/2022,Other Programme Costs,NC ICT,University of Surrey,99632712,24379.52,Other Programme Costs
BEIS,UKRI - EPSRC,09/05/2022,Other Programme Costs,NC ICT,University of Surrey,99632712,64354.5,Other Programme Costs
BEIS,UKRI - EPSRC,09/05/2022,Other Programme Costs,Physical Sciences and Materials,University of Surrey,99632712,32298.42,Other Programme Costs
BEIS,UKRI - EPSRC,09/05/2022,Other Programme Costs,Physical Sciences and Materials,University of Surrey,99632712,64354.5,Other Programme Costs
BEIS,UKRI - EPSRC,09/05/2022,Other Programme Costs,Quantum Technology Programme,University of Surrey,99632712,9743.99,Other Programme Costs
BEIS,UKRI - UKRI,09/05/2022,Advertising & Promotion,UKRI - Communications Strategy and Planning,Go Genie Ltd T/A Seventh Element,99636872,8910,Advertising & Promotion
BEIS,UKRI - UKRI,09/05/2022,Postage & Courier Services,UKRI - JBOS,Unspecified,99636878,2002.61,Postage & Courier Services
BEIS,UKRI - EPSRC,09/05/2022,Non-staff travel and subsistance,SPF - AI & Data Science OpEx,Unspecified,99636940,158.98,Non-staff travel and subsistance
BEIS,UKRI - EPSRC,09/05/2022,Non-staff travel and subsistance,SPF - AI & Data Science OpEx,Unspecified,99636941,129.61,Non-staff travel and subsistance
BEIS,UKRI - EPSRC,09/05/2022,Fees (Including College Members),Business Improvement,Unspecified,99636942,160,Fees (Including College Members)
BEIS,UKRI - EPSRC,09/05/2022,Fees (Including College Members),Business Improvement,Unspecified,99636943,320,Fees (Including College Members)
BEIS,UKRI - UKRI,09/05/2022,Unspecified,UKRI - Information Governance,Alexander Mann Solutions Ltd,99636952,3780.36,Agency Staff
BEIS,UKRI - UKRI,09/05/2022,Unspecified,UKRI - Digital Data and Technology BAU Costs,Alexander Mann Solutions Ltd,99636958,3150.3,Contract Staff
BEIS,UKRI - UKRI,09/05/2022,Unspecified,UKRI - Digital Data and Technology BAU Costs,Alexander Mann Solutions Ltd,99636959,3780.36,Contract Staff
BEIS,UKRI - UKRI,09/05/2022,Unspecified,UKRI-SHARP,Alexander Mann Solutions Ltd,99636960,3079.62,Contract Staff
BEIS,UKRI - UKRI,09/05/2022,Unspecified,UKRI - Funding Service,Alexander Mann Solutions Ltd,99636964,3603.2,Contract Staff
BEIS,UKRI - UKRI,09/05/2022,Consumables,UKRI - JRS,Premier Paper Group Ltd,99638773,690,Consumables
BEIS,UKRI - UKRI,09/05/2022,Advertising & Promotion,UKRI - Overseas Office India,University of Southampton,99639723,11019.36,Advertising & Promotion
BEIS,UKRI - UKRI,09/05/2022,Unspecified,UKRI - JRS,Alexander Mann Solutions Ltd,99640737,2767.68,Contract Staff
BEIS,UKRI - UKRI,09/05/2022,Unspecified,UKRI-SHARP,Alexander Mann Solutions Ltd,99640749,2925.66,Contract Staff
BEIS,UKRI - UKRI,09/05/2022,Unspecified,UKRI - Digital Data and Technology Project Costs,Alexander Mann Solutions Ltd,99640750,1231.85,Contract Staff
BEIS,UKRI - UKRI,09/05/2022,Unspecified,UKRI People and Organisation Development,Alexander Mann Solutions Ltd,99640762,1575.12,Contract Staff
BEIS,UKRI - UKRI,09/05/2022,Unspecified,UKRI People and Organisation Development,Alexander Mann Solutions Ltd,99640763,1386.9,Agency Staff
BEIS,UKRI - UKRI,09/05/2022,Unspecified,UKRI-SHARP,Alexander Mann Solutions Ltd,99640765,2255.86,Contract Staff
BEIS,UKRI - UKRI,09/05/2022,Catering Contracts,UKRI - JBOS,Aramark Ltd,99643739,18744.08,Catering Contracts
BEIS,UKRI - UKRI,09/05/2022,T&S UK - Mileage,UKRI - Strategy,Unspecified,99644721,73.8,T&S UK - Mileage
BEIS,UKRI - UKRI,09/05/2022,T&S UK - Subsistence,UKRI - Strategy,Unspecified,99644721,5,T&S UK - Subsistence
BEIS,UKRI - UKRI,09/05/2022,T&S UK - Subsistence,UKRI - Communication and Engagement,Unspecified,99644722,5.48,T&S UK - Subsistence
BEIS,UKRI - UKRI,09/05/2022,T&S UK - Subsistence,UKRI - Communication and Engagement,Unspecified,99644722,7.93,T&S UK - Subsistence
BEIS,UKRI - UKRI,09/05/2022,Health & Safety (inc. Medicals & Opticians),UKRI - Private Office,Unspecified,99644725,25,Health & Safety (inc. Medicals & Opticians)
BEIS,UKRI - UKRI,09/05/2022,T&S UK - Mileage,EDI,Unspecified,99644726,21.6,T&S UK - Mileage
BEIS,UKRI - UKRI,09/05/2022,T&S UK - Parking Tolls Congestion Charges,EDI,Unspecified,99644726,6.8,T&S UK - Parking Tolls Congestion Charges
BEIS,UKRI - UKRI,09/05/2022,T&S UK - Other Charges,UKRI - Private Office,Unspecified,99644727,5.19,T&S UK - Other Charges
BEIS,UKRI - EPSRC,09/05/2022,T&S UK - Other Charges,EDI and People,Unspecified,99644729,169,T&S UK - Other Charges
BEIS,UKRI - EPSRC,09/05/2022,T&S UK - Other Charges,Programme Delivery Engineering,Unspecified,99644730,7.95,T&S UK - Other Charges
BEIS,UKRI - EPSRC,09/05/2022,T&S UK - Public Transport,Programme Delivery Engineering,Unspecified,99644730,9,T&S UK - Public Transport
BEIS,UKRI - UKRI,09/05/2022,T&S UK - Subsistence,UKRI - Corporate Services,Unspecified,99644731,17.75,T&S UK - Subsistence
BEIS,UKRI - UKRI,09/05/2022,T&S UK - Subsistence,UKRI - Corporate Services,Unspecified,99644731,4.1,T&S UK - Subsistence
BEIS,UKRI - UKRI,10/05/2022,Computer Software,UKRI - Risk and Counter Fraud,Corporate Governance Risk Ltd,99168811,450,Computer Software
BEIS,UKRI - UKRI,10/05/2022,Computer Software,UKRI - Risk and Counter Fraud,Corporate Governance Risk Ltd,99168812,5949.6,Computer Software
BEIS,UKRI - UKRI,10/05/2022,Unspecified,UKRI - Digital Data and Technology Project Costs,Alexander Mann Solutions Ltd,99340439,1868.76,Contract Staff
BEIS,UKRI - UKRI,10/05/2022,Unspecified,UKRI - Digital Data and Technology Project Costs,Alexander Mann Solutions Ltd,99345603,1868.76,Contract Staff
BEIS,UKRI - UKRI,10/05/2022,Unspecified,UKRI People and Organisation Development,Alexander Mann Solutions Ltd,99359803,1326.96,Agency Staff
BEIS,UKRI - UKRI,10/05/2022,T&S UK - Parking Tolls Congestion Charges,UKRI - Culture Leadership and Learning,Unspecified,99380745,24,T&S UK - Parking Tolls Congestion Charges
BEIS,UKRI - UKRI,10/05/2022,T&S UK - Public Transport,UKRI - Culture Leadership and Learning,Unspecified,99380745,13.1,T&S UK - Public Transport
BEIS,UKRI - UKRI,10/05/2022,T&S UK - Parking Tolls Congestion Charges,UKRI - Culture Leadership and Learning,Unspecified,99380746,36,T&S UK - Parking Tolls Congestion Charges
BEIS,UKRI - UKRI,10/05/2022,T&S UK - Public Transport,UKRI - Culture Leadership and Learning,Unspecified,99380746,42.6,T&S UK - Public Transport
BEIS,UKRI - UKRI,10/05/2022,Unspecified,UKRI - Digital Data and Technology Project Costs,Alexander Mann Solutions Ltd,99394170,3737.52,Contract Staff
BEIS,UKRI - Research England,10/05/2022,Unspecified,RE - Research Excellence Framework (REF),Queen Mary University of London,99403109,10915.74,Council & Committee Honoraria
BEIS,UKRI - UKRI,10/05/2022,Cleaning Services,UKRI - UKRO,EVG Management SPRL t/a Buserco,99417737,831.21,Cleaning Services
BEIS,UKRI - Research England,10/05/2022,Unspecified,RE - Research Excellence Framework (REF),Early Intervention Foundation,99437716,600,Council & Committee Honoraria
BEIS,UKRI - UKRI,10/05/2022,Unspecified,UKRI - Digital Data and Technology Project Costs,UK Shared Business Services Ltd,99468729,11423.99,Legal & Professional Services
BEIS,UKRI - UKRI,10/05/2022,Unspecified,UKRI - Digital Data and Technology Project Costs,UK Shared Business Services Ltd,99468730,11423.99,Legal & Professional Services
BEIS,UKRI - UKRI,10/05/2022,Unspecified,UKRI - Funding Assurance,HM Treasury Group,99533717,27259.8,Secondments
BEIS,UKRI - UKRI,10/05/2022,Unspecified,UKRI - Digital Data and Technology Project Costs,UK Shared Business Services Ltd,99537800,-11423.99,Legal & Professional Services
BEIS,UKRI - Research England,10/05/2022,Unspecified,RE - Research Excellence Framework (REF),Cardiff University,99552713,13119.7,Council & Committee Honoraria
BEIS,UKRI - EPSRC,10/05/2022,Capital Grants & Equipment to HEIs,NC Infrastructure,UKRI - Medical Research Council,99572748,12600,Capital Grants & Equipment to HEIs
BEIS,UKRI - EPSRC,10/05/2022,Other Programme Costs,NC Infrastructure,UKRI - Medical Research Council,99572748,120250,Other Programme Costs
BEIS,UKRI - UKRI,10/05/2022,Rates,UKRI - UKRO,#N/A,99605736,4363.57,Rates
BEIS,UKRI - UKRI,10/05/2022,Marketing & PR,UKRI - External Communications,Cision Group Ltd,99628711,6164,Marketing & PR
BEIS,UKRI - UKRI,10/05/2022,Unspecified,UKRI-SHARP,Robertson Bell Ltd,99628753,3407.88,Contract Staff
BEIS,UKRI - UKRI,10/05/2022,Computer Software Licences,UKRI - Digital Data and Technology BAU Costs,ReQtest AB,99628852,146.87,Computer Software Licences
BEIS,UKRI - UKRI,10/05/2022,Computer Software Licences,UKRI - Human Resources Support,Monday.com Ltd,99628856,2160,Computer Software Licences
BEIS,UKRI - UKRI,10/05/2022,Cleaning Services,UKRI - UKRO,EVG Management SPRL t/a Buserco,99634767,827.61,Cleaning Services
BEIS,UKRI - UKRI,10/05/2022,Unspecified,UKRI - Strategic Finance Business Partners,Alexander Mann Solutions Ltd,99636965,1260.12,Agency Staff
BEIS,UKRI - UKRI,10/05/2022,Recruitment Costs,UKRI People and Organisation Development,Onefix Recruitment Ltd,99640727,912,Recruitment Costs
BEIS,UKRI - UKRI,10/05/2022,Postage & Courier Services,UKRI - JBOS,Unspecified,99641894,64.6,Postage & Courier Services
BEIS,UKRI - UKRI,10/05/2022,Purchase of non capital equipment,UKRI - Project Management Office,Senator International Ltd,99641902,43702.63,Purchase of non capital equipment
BEIS,UKRI - UKRI,10/05/2022,Computing Consumables,UKRI - Overseas Office India,"Foreign, Commonwealth and Development Office",99641973,1356.21,Computing Consumables
BEIS,UKRI - UKRI,10/05/2022,Mobile Phone Costs,UKRI - Overseas Office India,"Foreign, Commonwealth and Development Office",99641973,126.43,Mobile Phone Costs
BEIS,UKRI - UKRI,10/05/2022,Unspecified,UKRI - Overseas Office India,"Foreign, Commonwealth and Development Office",99641973,7822.67,Secondments
BEIS,UKRI - UKRI,10/05/2022,Mobile Phone Costs,UKRI - Overseas Office USA,"Foreign, Commonwealth and Development Office",99641975,269.5,Mobile Phone Costs
BEIS,UKRI - UKRI,10/05/2022,Unspecified,UKRI - Overseas Office USA,"Foreign, Commonwealth and Development Office",99641975,256.54,Secondments
BEIS,UKRI - UKRI,10/05/2022,Unspecified,UKRI - Overseas Office USA,"Foreign, Commonwealth and Development Office",99641977,2029.57,Secondments
BEIS,UKRI - UKRI,10/05/2022,Unspecified,UKRI - Overseas Office USA,"Foreign, Commonwealth and Development Office",99641979,2358.67,Secondments
BEIS,UKRI - UKRI,10/05/2022,Unspecified,UKRI - Overseas Office USA,"Foreign, Commonwealth and Development Office",99641980,605.9,Secondments
BEIS,UKRI - UKRI,10/05/2022,Unspecified,UKRI-SHARP,Vector Resourcing Ltd,99641998,12070.55,Contract Staff
BEIS,UKRI - UKRI,10/05/2022,Computer Software,UKRI - Risk and Counter Fraud,Corporate Governance Risk Ltd,99646710,45600,Computer Software
BEIS,UKRI - UKRI,10/05/2022,Gas,UKRI - JBOS,Corona Energy,99648713,3459.44,Gas
BEIS,UKRI - UKRI,10/05/2022,Consumables,UKRI - JRS,Premier Paper Group Ltd,99650710,76.18,Consumables
BEIS,UKRI - UKRI,10/05/2022,Consumables,UKRI - JRS,Premier Paper Group Ltd,99650710,516.6,Consumables
BEIS,UKRI - UKRI,10/05/2022,Consumables,UKRI - JRS,Premier Paper Group Ltd,99650710,139.27,Consumables
BEIS,UKRI - UKRI,10/05/2022,External Audit Fees,UKRI - JBOS,Bureau Veritas Certification UK Ltd,99650736,2726.4,External Audit Fees
BEIS,UKRI - UKRI,10/05/2022,Meetings & Catering,UKRI - Overseas Office China,"Foreign, Commonwealth and Development Office",99650748,127.23,Meetings & Catering
BEIS,UKRI - UKRI,10/05/2022,Mobile Phone Costs,UKRI - Overseas Office China,"Foreign, Commonwealth and Development Office",99650748,54.76,Mobile Phone Costs
BEIS,UKRI - UKRI,10/05/2022,Other Staff Benefits,UKRI - Overseas Office China,"Foreign, Commonwealth and Development Office",99650748,2318.32,Other Staff Benefits
BEIS,UKRI - UKRI,10/05/2022,T&S Overseas - Public Transport,UKRI - Overseas Office China,"Foreign, Commonwealth and Development Office",99650748,6.75,T&S Overseas - Public Transport
BEIS,UKRI - UKRI,10/05/2022,Other Staff Benefits,UKRI - Overseas Office China,"Foreign, Commonwealth and Development Office",99651710,9439.87,Other Staff Benefits
BEIS,UKRI - UKRI,10/05/2022,Other Staff Benefits,UKRI - Overseas Office India,"Foreign, Commonwealth and Development Office",99651710,2507.06,Other Staff Benefits
BEIS,UKRI - UKRI,10/05/2022,Other Staff Benefits,UKRI - Overseas Office China,"Foreign, Commonwealth and Development Office",99651728,77.54,Other Staff Benefits
BEIS,UKRI - UKRI,10/05/2022,Unspecified,UKRI - Overseas Office China,"Foreign, Commonwealth and Development Office",99651730,21121.07,Secondments
BEIS,UKRI - EPSRC,10/05/2022,Non-staff travel and subsistance,Programme Delivery Maths,Corporate Travel Management (North) Ltd,99652726,0.8,Non-staff travel and subsistance
BEIS,UKRI - EPSRC,10/05/2022,Non-staff travel and subsistance,Programme Delivery Maths,Corporate Travel Management (North) Ltd,99652726,90,Non-staff travel and subsistance
BEIS,UKRI - EPSRC,10/05/2022,Non-staff travel and subsistance,Programme Delivery Maths,Corporate Travel Management (North) Ltd,99652726,0.16,Non-staff travel and subsistance
BEIS,UKRI - Research England,10/05/2022,Non-staff travel and subsistance,RE - Research Excellence Framework (REF),Corporate Travel Management (North) Ltd,99652726,0.8,Non-staff travel and subsistance
BEIS,UKRI - Research England,10/05/2022,Non-staff travel and subsistance,RE - Research Excellence Framework (REF),Corporate Travel Management (North) Ltd,99652726,0.8,Non-staff travel and subsistance
BEIS,UKRI - Research England,10/05/2022,Non-staff travel and subsistance,RE - Research Excellence Framework (REF),Corporate Travel Management (North) Ltd,99652726,296.65,Non-staff travel and subsistance
BEIS,UKRI - Research England,10/05/2022,Non-staff travel and subsistance,RE - Research Excellence Framework (REF),Corporate Travel Management (North) Ltd,99652726,0.32,Non-staff travel and subsistance
BEIS,UKRI - UKRI,10/05/2022,T&S Overseas - Accommodation,UKRI - Estates,Corporate Travel Management (North) Ltd,99652726,1.17,T&S Overseas - Accommodation
BEIS,UKRI - UKRI,10/05/2022,T&S Overseas - Accommodation,UKRI - Estates,Corporate Travel Management (North) Ltd,99652726,0.23,T&S Overseas - Accommodation
BEIS,UKRI - UKRI,10/05/2022,T&S Overseas - Accommodation,UKRI - UKRO,Corporate Travel Management (North) Ltd,99652726,2,T&S Overseas - Accommodation
BEIS,UKRI - UKRI,10/05/2022,T&S Overseas - Accommodation,UKRI - UKRO,Corporate Travel Management (North) Ltd,99652726,0.4,T&S Overseas - Accommodation
BEIS,UKRI - EPSRC,10/05/2022,T&S Overseas - Flights,Programme Delivery Maths,Corporate Travel Management (North) Ltd,99652726,7,T&S Overseas - Flights
BEIS,UKRI - EPSRC,10/05/2022,T&S Overseas - Flights,Programme Delivery Maths,Corporate Travel Management (North) Ltd,99652726,149.3,T&S Overseas - Flights
BEIS,UKRI - EPSRC,10/05/2022,T&S Overseas - Flights,Programme Delivery Maths,Corporate Travel Management (North) Ltd,99652726,7,T&S Overseas - Flights
BEIS,UKRI - EPSRC,10/05/2022,T&S Overseas - Flights,Programme Delivery Maths,Corporate Travel Management (North) Ltd,99652726,149.3,T&S Overseas - Flights
BEIS,UKRI - UKRI,10/05/2022,T&S Overseas - Flights,UKRI - Overseas Office USA,Corporate Travel Management (North) Ltd,99652726,2.5,T&S Overseas - Flights
BEIS,UKRI - UKRI,10/05/2022,T&S Overseas - Flights,UKRI - Overseas Office USA,Corporate Travel Management (North) Ltd,99652726,1261.56,T&S Overseas - Flights
BEIS,UKRI - UKRI,10/05/2022,T&S Overseas - Flights,UKRI - UKRO,Corporate Travel Management (North) Ltd,99652726,4.5,T&S Overseas - Flights
BEIS,UKRI - UKRI,10/05/2022,T&S Overseas - Flights,UKRI - UKRO,Corporate Travel Management (North) Ltd,99652726,21.98,T&S Overseas - Flights
BEIS,UKRI - EPSRC,10/05/2022,T&S Overseas - Other Charges,Programme Delivery Maths,Corporate Travel Management (North) Ltd,99652726,1.17,T&S Overseas - Other Charges
BEIS,UKRI - EPSRC,10/05/2022,T&S Overseas - Other Charges,Programme Delivery Maths,Corporate Travel Management (North) Ltd,99652726,0.23,T&S Overseas - Other Charges
BEIS,UKRI - EPSRC,10/05/2022,T&S Overseas - Public Transport,Programme Delivery Engineering,Corporate Travel Management (North) Ltd,99652726,0.25,T&S Overseas - Public Transport
BEIS,UKRI - EPSRC,10/05/2022,T&S Overseas - Public Transport,Programme Delivery Engineering,Corporate Travel Management (North) Ltd,99652726,272.4,T&S Overseas - Public Transport
BEIS,UKRI - EPSRC,10/05/2022,T&S UK - Accommodation,Directors and Deputy Directors,Corporate Travel Management (North) Ltd,99652726,0.8,T&S UK - Accommodation
BEIS,UKRI - EPSRC,10/05/2022,T&S UK - Accommodation,Directors and Deputy Directors,Corporate Travel Management (North) Ltd,99652726,55,T&S UK - Accommodation
BEIS,UKRI - EPSRC,10/05/2022,T&S UK - Accommodation,Directors and Deputy Directors,Corporate Travel Management (North) Ltd,99652726,0.16,T&S UK - Accommodation
BEIS,UKRI - EPSRC,10/05/2022,T&S UK - Accommodation,Exec Chair Support,Corporate Travel Management (North) Ltd,99652726,0.8,T&S UK - Accommodation
BEIS,UKRI - EPSRC,10/05/2022,T&S UK - Accommodation,Exec Chair Support,Corporate Travel Management (North) Ltd,99652726,75,T&S UK - Accommodation
BEIS,UKRI - EPSRC,10/05/2022,T&S UK - Accommodation,Exec Chair Support,Corporate Travel Management (North) Ltd,99652726,0.16,T&S UK - Accommodation
BEIS,UKRI - EPSRC,10/05/2022,T&S UK - Accommodation,Programme Delivery - Industrial Strategy Challenge Fund (ISCF),Corporate Travel Management (North) Ltd,99652726,0.8,T&S UK - Accommodation
BEIS,UKRI - EPSRC,10/05/2022,T&S UK - Accommodation,Programme Delivery - Industrial Strategy Challenge Fund (ISCF),Corporate Travel Management (North) Ltd,99652726,95,T&S UK - Accommodation
BEIS,UKRI - EPSRC,10/05/2022,T&S UK - Accommodation,Programme Delivery - Industrial Strategy Challenge Fund (ISCF),Corporate Travel Management (North) Ltd,99652726,0.16,T&S UK - Accommodation
BEIS,UKRI - EPSRC,10/05/2022,T&S UK - Accommodation,Programme Delivery Energy,Corporate Travel Management (North) Ltd,99652726,2,T&S UK - Accommodation
BEIS,UKRI - EPSRC,10/05/2022,T&S UK - Accommodation,Programme Delivery Energy,Corporate Travel Management (North) Ltd,99652726,186,T&S UK - Accommodation
BEIS,UKRI - EPSRC,10/05/2022,T&S UK - Accommodation,Programme Delivery Energy,Corporate Travel Management (North) Ltd,99652726,0.8,T&S UK - Accommodation
BEIS,UKRI - EPSRC,10/05/2022,T&S UK - Accommodation,Programme Delivery Energy,Corporate Travel Management (North) Ltd,99652726,112.53,T&S UK - Accommodation
BEIS,UKRI - EPSRC,10/05/2022,T&S UK - Accommodation,Programme Delivery Energy,Corporate Travel Management (North) Ltd,99652726,2,T&S UK - Accommodation
BEIS,UKRI - EPSRC,10/05/2022,T&S UK - Accommodation,Programme Delivery Energy,Corporate Travel Management (North) Ltd,99652726,90,T&S UK - Accommodation
BEIS,UKRI - EPSRC,10/05/2022,T&S UK - Accommodation,Programme Delivery Energy,Corporate Travel Management (North) Ltd,99652726,2,T&S UK - Accommodation
BEIS,UKRI - EPSRC,10/05/2022,T&S UK - Accommodation,Programme Delivery Energy,Corporate Travel Management (North) Ltd,99652726,90,T&S UK - Accommodation
BEIS,UKRI - EPSRC,10/05/2022,T&S UK - Accommodation,Programme Delivery Energy,Corporate Travel Management (North) Ltd,99652726,2,T&S UK - Accommodation
BEIS,UKRI - EPSRC,10/05/2022,T&S UK - Accommodation,Programme Delivery Energy,Corporate Travel Management (North) Ltd,99652726,90,T&S UK - Accommodation
BEIS,UKRI - EPSRC,10/05/2022,T&S UK - Accommodation,Programme Delivery Energy,Corporate Travel Management (North) Ltd,99652726,2,T&S UK - Accommodation
BEIS,UKRI - EPSRC,10/05/2022,T&S UK - Accommodation,Programme Delivery Energy,Corporate Travel Management (North) Ltd,99652726,90,T&S UK - Accommodation
BEIS,UKRI - EPSRC,10/05/2022,T&S UK - Accommodation,Programme Delivery Energy,Corporate Travel Management (North) Ltd,99652726,0.8,T&S UK - Accommodation
BEIS,UKRI - EPSRC,10/05/2022,T&S UK - Accommodation,Programme Delivery Energy,Corporate Travel Management (North) Ltd,99652726,144,T&S UK - Accommodation
BEIS,UKRI - EPSRC,10/05/2022,T&S UK - Accommodation,Programme Delivery Energy,Corporate Travel Management (North) Ltd,99652726,2.32,T&S UK - Accommodation
BEIS,UKRI - EPSRC,10/05/2022,T&S UK - Accommodation,Programme Delivery Engineering,Corporate Travel Management (North) Ltd,99652726,0.8,T&S UK - Accommodation
BEIS,UKRI - EPSRC,10/05/2022,T&S UK - Accommodation,Programme Delivery Engineering,Corporate Travel Management (North) Ltd,99652726,290,T&S UK - Accommodation
BEIS,UKRI - EPSRC,10/05/2022,T&S UK - Accommodation,Programme Delivery Engineering,Corporate Travel Management (North) Ltd,99652726,0.16,T&S UK - Accommodation
BEIS,UKRI - EPSRC,10/05/2022,T&S UK - Accommodation,Programme Delivery Maths,Corporate Travel Management (North) Ltd,99652726,0.8,T&S UK - Accommodation
BEIS,UKRI - EPSRC,10/05/2022,T&S UK - Accommodation,Programme Delivery Maths,Corporate Travel Management (North) Ltd,99652726,119,T&S UK - Accommodation
BEIS,UKRI - EPSRC,10/05/2022,T&S UK - Accommodation,Programme Delivery Maths,Corporate Travel Management (North) Ltd,99652726,0.16,T&S UK - Accommodation
BEIS,UKRI - EPSRC,10/05/2022,T&S UK - Accommodation,Programme Delivery Physical Sciences,Corporate Travel Management (North) Ltd,99652726,0.8,T&S UK - Accommodation
BEIS,UKRI - EPSRC,10/05/2022,T&S UK - Accommodation,Programme Delivery Physical Sciences,Corporate Travel Management (North) Ltd,99652726,43.29,T&S UK - Accommodation
BEIS,UKRI - EPSRC,10/05/2022,T&S UK - Accommodation,Programme Delivery Physical Sciences,Corporate Travel Management (North) Ltd,99652726,0.16,T&S UK - Accommodation
BEIS,UKRI - Research England,10/05/2022,T&S UK - Accommodation,RE - Insight and Engagement,Corporate Travel Management (North) Ltd,99652726,0.8,T&S UK - Accommodation
BEIS,UKRI - Research England,10/05/2022,T&S UK - Accommodation,RE - Insight and Engagement,Corporate Travel Management (North) Ltd,99652726,73.8,T&S UK - Accommodation
BEIS,UKRI - Research England,10/05/2022,T&S UK - Accommodation,RE - Insight and Engagement,Corporate Travel Management (North) Ltd,99652726,0.8,T&S UK - Accommodation
BEIS,UKRI - Research England,10/05/2022,T&S UK - Accommodation,RE - Insight and Engagement,Corporate Travel Management (North) Ltd,99652726,84,T&S UK - Accommodation
BEIS,UKRI - Research England,10/05/2022,T&S UK - Accommodation,RE - Insight and Engagement,Corporate Travel Management (North) Ltd,99652726,0.32,T&S UK - Accommodation
BEIS,UKRI - Research England,10/05/2022,T&S UK - Accommodation,RE - Knowledge Exchange,Corporate Travel Management (North) Ltd,99652726,0.8,T&S UK - Accommodation
BEIS,UKRI - Research England,10/05/2022,T&S UK - Accommodation,RE - Knowledge Exchange,Corporate Travel Management (North) Ltd,99652726,200,T&S UK - Accommodation
BEIS,UKRI - Research England,10/05/2022,T&S UK - Accommodation,RE - Knowledge Exchange,Corporate Travel Management (North) Ltd,99652726,0.16,T&S UK - Accommodation
BEIS,UKRI - EPSRC,10/05/2022,T&S UK - Accommodation,Regional Engagement - OpEx,Corporate Travel Management (North) Ltd,99652726,0.8,T&S UK - Accommodation
BEIS,UKRI - EPSRC,10/05/2022,T&S UK - Accommodation,Regional Engagement - OpEx,Corporate Travel Management (North) Ltd,99652726,150,T&S UK - Accommodation
BEIS,UKRI - EPSRC,10/05/2022,T&S UK - Accommodation,Regional Engagement - OpEx,Corporate Travel Management (North) Ltd,99652726,0.8,T&S UK - Accommodation
BEIS,UKRI - EPSRC,10/05/2022,T&S UK - Accommodation,Regional Engagement - OpEx,Corporate Travel Management (North) Ltd,99652726,167,T&S UK - Accommodation
BEIS,UKRI - EPSRC,10/05/2022,T&S UK - Accommodation,Regional Engagement - OpEx,Corporate Travel Management (North) Ltd,99652726,0.8,T&S UK - Accommodation
BEIS,UKRI - EPSRC,10/05/2022,T&S UK - Accommodation,Regional Engagement - OpEx,Corporate Travel Management (North) Ltd,99652726,75,T&S UK - Accommodation
BEIS,UKRI - EPSRC,10/05/2022,T&S UK - Accommodation,Regional Engagement - OpEx,Corporate Travel Management (North) Ltd,99652726,0.8,T&S UK - Accommodation
BEIS,UKRI - EPSRC,10/05/2022,T&S UK - Accommodation,Regional Engagement - OpEx,Corporate Travel Management (North) Ltd,99652726,75,T&S UK - Accommodation
BEIS,UKRI - EPSRC,10/05/2022,T&S UK - Accommodation,Regional Engagement - OpEx,Corporate Travel Management (North) Ltd,99652726,0.8,T&S UK - Accommodation
BEIS,UKRI - EPSRC,10/05/2022,T&S UK - Accommodation,Regional Engagement - OpEx,Corporate Travel Management (North) Ltd,99652726,75,T&S UK - Accommodation
BEIS,UKRI - EPSRC,10/05/2022,T&S UK - Accommodation,Regional Engagement - OpEx,Corporate Travel Management (North) Ltd,99652726,0.8,T&S UK - Accommodation
BEIS,UKRI - EPSRC,10/05/2022,T&S UK - Accommodation,Regional Engagement - OpEx,Corporate Travel Management (North) Ltd,99652726,75,T&S UK - Accommodation
BEIS,UKRI - EPSRC,10/05/2022,T&S UK - Accommodation,Regional Engagement - OpEx,Corporate Travel Management (North) Ltd,99652726,0.96,T&S UK - Accommodation
BEIS,UKRI - UKRI,10/05/2022,T&S UK - Accommodation,UKRI - Communication and Engagement,Corporate Travel Management (North) Ltd,99652726,0.8,T&S UK - Accommodation
BEIS,UKRI - UKRI,10/05/2022,T&S UK - Accommodation,UKRI - Communication and Engagement,Corporate Travel Management (North) Ltd,99652726,67,T&S UK - Accommodation
BEIS,UKRI - UKRI,10/05/2022,T&S UK - Accommodation,UKRI - Communication and Engagement,Corporate Travel Management (North) Ltd,99652726,0.8,T&S UK - Accommodation
BEIS,UKRI - UKRI,10/05/2022,T&S UK - Accommodation,UKRI - Communication and Engagement,Corporate Travel Management (North) Ltd,99652726,67,T&S UK - Accommodation
BEIS,UKRI - UKRI,10/05/2022,T&S UK - Accommodation,UKRI - Communication and Engagement,Corporate Travel Management (North) Ltd,99652726,0.8,T&S UK - Accommodation
BEIS,UKRI - UKRI,10/05/2022,T&S UK - Accommodation,UKRI - Communication and Engagement,Corporate Travel Management (North) Ltd,99652726,67,T&S UK - Accommodation
BEIS,UKRI - UKRI,10/05/2022,T&S UK - Accommodation,UKRI - Communication and Engagement,Corporate Travel Management (North) Ltd,99652726,0.48,T&S UK - Accommodation
BEIS,UKRI - UKRI,10/05/2022,T&S UK - Accommodation,UKRI - Communications Content,Corporate Travel Management (North) Ltd,99652726,0.8,T&S UK - Accommodation
BEIS,UKRI - UKRI,10/05/2022,T&S UK - Accommodation,UKRI - Communications Content,Corporate Travel Management (North) Ltd,99652726,125,T&S UK - Accommodation
BEIS,UKRI - UKRI,10/05/2022,T&S UK - Accommodation,UKRI - Communications Content,Corporate Travel Management (North) Ltd,99652726,0.16,T&S UK - Accommodation
BEIS,UKRI - UKRI,10/05/2022,T&S UK - Accommodation,UKRI - Strategy,Corporate Travel Management (North) Ltd,99652726,0.8,T&S UK - Accommodation
BEIS,UKRI - UKRI,10/05/2022,T&S UK - Accommodation,UKRI - Strategy,Corporate Travel Management (North) Ltd,99652726,114,T&S UK - Accommodation
BEIS,UKRI - UKRI,10/05/2022,T&S UK - Accommodation,UKRI - Strategy,Corporate Travel Management (North) Ltd,99652726,0.16,T&S UK - Accommodation
BEIS,UKRI - EPSRC,10/05/2022,T&S UK - Flights,Directors and Deputy Directors,Corporate Travel Management (North) Ltd,99652726,4.5,T&S UK - Flights
BEIS,UKRI - EPSRC,10/05/2022,T&S UK - Flights,Directors and Deputy Directors,Corporate Travel Management (North) Ltd,99652726,84.98,T&S UK - Flights
BEIS,UKRI - EPSRC,10/05/2022,T&S UK - Flights,Programme Delivery Healthcare,Corporate Travel Management (North) Ltd,99652726,2.5,T&S UK - Flights
BEIS,UKRI - EPSRC,10/05/2022,T&S UK - Flights,Programme Delivery Healthcare,Corporate Travel Management (North) Ltd,99652726,147.89,T&S UK - Flights
BEIS,UKRI - EPSRC,10/05/2022,T&S UK - Flights,Programme Delivery Healthcare,Corporate Travel Management (North) Ltd,99652726,2.5,T&S UK - Flights
BEIS,UKRI - EPSRC,10/05/2022,T&S UK - Flights,Programme Delivery Healthcare,Corporate Travel Management (North) Ltd,99652726,170.89,T&S UK - Flights
BEIS,UKRI - EPSRC,10/05/2022,T&S UK - Flights,Programme Delivery Healthcare,Corporate Travel Management (North) Ltd,99652726,4.5,T&S UK - Flights
BEIS,UKRI - EPSRC,10/05/2022,T&S UK - Flights,Programme Delivery Healthcare,Corporate Travel Management (North) Ltd,99652726,227.89,T&S UK - Flights
BEIS,UKRI - EPSRC,10/05/2022,T&S UK - Flights,Programme Delivery ICT,Corporate Travel Management (North) Ltd,99652726,2.5,T&S UK - Flights
BEIS,UKRI - EPSRC,10/05/2022,T&S UK - Flights,Programme Delivery ICT,Corporate Travel Management (North) Ltd,99652726,102.46,T&S UK - Flights
BEIS,UKRI - EPSRC,10/05/2022,T&S UK - Flights,Regional Engagement - OpEx,Corporate Travel Management (North) Ltd,99652726,4.5,T&S UK - Flights
BEIS,UKRI - EPSRC,10/05/2022,T&S UK - Flights,Regional Engagement - OpEx,Corporate Travel Management (North) Ltd,99652726,150.9,T&S UK - Flights
BEIS,UKRI - UKRI,10/05/2022,T&S UK - Flights,UKRI - Communication and Engagement,Corporate Travel Management (North) Ltd,99652726,4.5,T&S UK - Flights
BEIS,UKRI - UKRI,10/05/2022,T&S UK - Flights,UKRI - Communication and Engagement,Corporate Travel Management (North) Ltd,99652726,311.57,T&S UK - Flights
BEIS,UKRI - EPSRC,10/05/2022,T&S UK - Public Transport,AI and Robotics OpEx,Corporate Travel Management (North) Ltd,99652726,0.25,T&S UK - Public Transport
BEIS,UKRI - EPSRC,10/05/2022,T&S UK - Public Transport,AI and Robotics OpEx,Corporate Travel Management (North) Ltd,99652726,157.2,T&S UK - Public Transport
BEIS,UKRI - EPSRC,10/05/2022,T&S UK - Public Transport,Directors and Deputy Directors,Corporate Travel Management (North) Ltd,99652726,5,T&S UK - Public Transport
BEIS,UKRI - EPSRC,10/05/2022,T&S UK - Public Transport,Directors and Deputy Directors,Corporate Travel Management (North) Ltd,99652726,-218.7,T&S UK - Public Transport
BEIS,UKRI - EPSRC,10/05/2022,T&S UK - Public Transport,EPSRC Corporate Services,Corporate Travel Management (North) Ltd,99652726,0.25,T&S UK - Public Transport
BEIS,UKRI - EPSRC,10/05/2022,T&S UK - Public Transport,EPSRC Corporate Services,Corporate Travel Management (North) Ltd,99652726,71.3,T&S UK - Public Transport
BEIS,UKRI - EPSRC,10/05/2022,T&S UK - Public Transport,Exec Chair Support,Corporate Travel Management (North) Ltd,99652726,0.25,T&S UK - Public Transport
BEIS,UKRI - EPSRC,10/05/2022,T&S UK - Public Transport,Exec Chair Support,Corporate Travel Management (North) Ltd,99652726,193.8,T&S UK - Public Transport
BEIS,UKRI - EPSRC,10/05/2022,T&S UK - Public Transport,Exec Chair Support,Corporate Travel Management (North) Ltd,99652726,10,T&S UK - Public Transport
BEIS,UKRI - EPSRC,10/05/2022,T&S UK - Public Transport,Exec Chair Support,Corporate Travel Management (North) Ltd,99652726,-65.4,T&S UK - Public Transport
BEIS,UKRI - EPSRC,10/05/2022,T&S UK - Public Transport,Exec Chair Support,Corporate Travel Management (North) Ltd,99652726,0.25,T&S UK - Public Transport
BEIS,UKRI - EPSRC,10/05/2022,T&S UK - Public Transport,Exec Chair Support,Corporate Travel Management (North) Ltd,99652726,54,T&S UK - Public Transport
BEIS,UKRI - EPSRC,10/05/2022,T&S UK - Public Transport,Governance and Planning,Corporate Travel Management (North) Ltd,99652726,0.25,T&S UK - Public Transport
BEIS,UKRI - EPSRC,10/05/2022,T&S UK - Public Transport,Governance and Planning,Corporate Travel Management (North) Ltd,99652726,25.1,T&S UK - Public Transport
BEIS,UKRI - EPSRC,10/05/2022,T&S UK - Public Transport,Programme Delivery - Industrial Strategy Challenge Fund (ISCF),Corporate Travel Management (North) Ltd,99652726,2.6,T&S UK - Public Transport
BEIS,UKRI - EPSRC,10/05/2022,T&S UK - Public Transport,Programme Delivery - Industrial Strategy Challenge Fund (ISCF),Corporate Travel Management (North) Ltd,99652726,71.3,T&S UK - Public Transport
BEIS,UKRI - EPSRC,10/05/2022,T&S UK - Public Transport,Programme Delivery - Industrial Strategy Challenge Fund (ISCF),Corporate Travel Management (North) Ltd,99652726,5,T&S UK - Public Transport
BEIS,UKRI - EPSRC,10/05/2022,T&S UK - Public Transport,Programme Delivery - Industrial Strategy Challenge Fund (ISCF),Corporate Travel Management (North) Ltd,99652726,-64.6,T&S UK - Public Transport
BEIS,UKRI - EPSRC,10/05/2022,T&S UK - Public Transport,Programme Delivery - Industrial Strategy Challenge Fund (ISCF),Corporate Travel Management (North) Ltd,99652726,0.25,T&S UK - Public Transport
BEIS,UKRI - EPSRC,10/05/2022,T&S UK - Public Transport,Programme Delivery - Industrial Strategy Challenge Fund (ISCF),Corporate Travel Management (North) Ltd,99652726,87.2,T&S UK - Public Transport
BEIS,UKRI - EPSRC,10/05/2022,T&S UK - Public Transport,Programme Delivery - Industrial Strategy Challenge Fund (ISCF),Corporate Travel Management (North) Ltd,99652726,0.25,T&S UK - Public Transport
BEIS,UKRI - EPSRC,10/05/2022,T&S UK - Public Transport,Programme Delivery - Industrial Strategy Challenge Fund (ISCF),Corporate Travel Management (North) Ltd,99652726,88.2,T&S UK - Public Transport
BEIS,UKRI - EPSRC,10/05/2022,T&S UK - Public Transport,Programme Delivery Digital Economy,Corporate Travel Management (North) Ltd,99652726,0.25,T&S UK - Public Transport
BEIS,UKRI - EPSRC,10/05/2022,T&S UK - Public Transport,Programme Delivery Digital Economy,Corporate Travel Management (North) Ltd,99652726,185,T&S UK - Public Transport
BEIS,UKRI - EPSRC,10/05/2022,T&S UK - Public Transport,Programme Delivery Digital Economy,Corporate Travel Management (North) Ltd,99652726,0.25,T&S UK - Public Transport
BEIS,UKRI - EPSRC,10/05/2022,T&S UK - Public Transport,Programme Delivery Digital Economy,Corporate Travel Management (North) Ltd,99652726,31.1,T&S UK - Public Transport
BEIS,UKRI - EPSRC,10/05/2022,T&S UK - Public Transport,Programme Delivery Digital Economy,Corporate Travel Management (North) Ltd,99652726,0.25,T&S UK - Public Transport
BEIS,UKRI - EPSRC,10/05/2022,T&S UK - Public Transport,Programme Delivery Digital Economy,Corporate Travel Management (North) Ltd,99652726,142.5,T&S UK - Public Transport
BEIS,UKRI - EPSRC,10/05/2022,T&S UK - Public Transport,Programme Delivery Digital Economy,Corporate Travel Management (North) Ltd,99652726,0.25,T&S UK - Public Transport
BEIS,UKRI - EPSRC,10/05/2022,T&S UK - Public Transport,Programme Delivery Digital Economy,Corporate Travel Management (North) Ltd,99652726,89.5,T&S UK - Public Transport
BEIS,UKRI - EPSRC,10/05/2022,T&S UK - Public Transport,Programme Delivery Digital Economy,Corporate Travel Management (North) Ltd,99652726,0.25,T&S UK - Public Transport
BEIS,UKRI - EPSRC,10/05/2022,T&S UK - Public Transport,Programme Delivery Digital Economy,Corporate Travel Management (North) Ltd,99652726,52.2,T&S UK - Public Transport
BEIS,UKRI - EPSRC,10/05/2022,T&S UK - Public Transport,Programme Delivery Digital Economy,Corporate Travel Management (North) Ltd,99652726,0.25,T&S UK - Public Transport
BEIS,UKRI - EPSRC,10/05/2022,T&S UK - Public Transport,Programme Delivery Digital Economy,Corporate Travel Management (North) Ltd,99652726,185,T&S UK - Public Transport
BEIS,UKRI - EPSRC,10/05/2022,T&S UK - Public Transport,Programme Delivery Energy,Corporate Travel Management (North) Ltd,99652726,0.25,T&S UK - Public Transport
BEIS,UKRI - EPSRC,10/05/2022,T&S UK - Public Transport,Programme Delivery Energy,Corporate Travel Management (North) Ltd,99652726,31.6,T&S UK - Public Transport
BEIS,UKRI - EPSRC,10/05/2022,T&S UK - Public Transport,Programme Delivery Energy,Corporate Travel Management (North) Ltd,99652726,0.25,T&S UK - Public Transport
BEIS,UKRI - EPSRC,10/05/2022,T&S UK - Public Transport,Programme Delivery Energy,Corporate Travel Management (North) Ltd,99652726,103.75,T&S UK - Public Transport
BEIS,UKRI - EPSRC,10/05/2022,T&S UK - Public Transport,Programme Delivery Energy,Corporate Travel Management (North) Ltd,99652726,0.25,T&S UK - Public Transport
BEIS,UKRI - EPSRC,10/05/2022,T&S UK - Public Transport,Programme Delivery Energy,Corporate Travel Management (North) Ltd,99652726,157.2,T&S UK - Public Transport
BEIS,UKRI - EPSRC,10/05/2022,T&S UK - Public Transport,Programme Delivery Energy,Corporate Travel Management (North) Ltd,99652726,0.25,T&S UK - Public Transport
BEIS,UKRI - EPSRC,10/05/2022,T&S UK - Public Transport,Programme Delivery Energy,Corporate Travel Management (North) Ltd,99652726,147.6,T&S UK - Public Transport
BEIS,UKRI - EPSRC,10/05/2022,T&S UK - Public Transport,Programme Delivery Energy,Corporate Travel Management (North) Ltd,99652726,0.25,T&S UK - Public Transport
BEIS,UKRI - EPSRC,10/05/2022,T&S UK - Public Transport,Programme Delivery Energy,Corporate Travel Management (North) Ltd,99652726,184.7,T&S UK - Public Transport
BEIS,UKRI - EPSRC,10/05/2022,T&S UK - Public Transport,Programme Delivery Energy,Corporate Travel Management (North) Ltd,99652726,0.25,T&S UK - Public Transport
BEIS,UKRI - EPSRC,10/05/2022,T&S UK - Public Transport,Programme Delivery Energy,Corporate Travel Management (North) Ltd,99652726,3.1,T&S UK - Public Transport
BEIS,UKRI - EPSRC,10/05/2022,T&S UK - Public Transport,Programme Delivery Energy,Corporate Travel Management (North) Ltd,99652726,0.25,T&S UK - Public Transport
BEIS,UKRI - EPSRC,10/05/2022,T&S UK - Public Transport,Programme Delivery Energy,Corporate Travel Management (North) Ltd,99652726,100.6,T&S UK - Public Transport
BEIS,UKRI - EPSRC,10/05/2022,T&S UK - Public Transport,Programme Delivery Energy,Corporate Travel Management (North) Ltd,99652726,0.25,T&S UK - Public Transport
BEIS,UKRI - EPSRC,10/05/2022,T&S UK - Public Transport,Programme Delivery Energy,Corporate Travel Management (North) Ltd,99652726,13.4,T&S UK - Public Transport
BEIS,UKRI - EPSRC,10/05/2022,T&S UK - Public Transport,Programme Delivery Energy,Corporate Travel Management (North) Ltd,99652726,0.25,T&S UK - Public Transport
BEIS,UKRI - EPSRC,10/05/2022,T&S UK - Public Transport,Programme Delivery Energy,Corporate Travel Management (North) Ltd,99652726,11.9,T&S UK - Public Transport
BEIS,UKRI - EPSRC,10/05/2022,T&S UK - Public Transport,Programme Delivery Energy,Corporate Travel Management (North) Ltd,99652726,0.25,T&S UK - Public Transport
BEIS,UKRI - EPSRC,10/05/2022,T&S UK - Public Transport,Programme Delivery Energy,Corporate Travel Management (North) Ltd,99652726,105.8,T&S UK - Public Transport
BEIS,UKRI - EPSRC,10/05/2022,T&S UK - Public Transport,Programme Delivery Engineering,Corporate Travel Management (North) Ltd,99652726,0.25,T&S UK - Public Transport
BEIS,UKRI - EPSRC,10/05/2022,T&S UK - Public Transport,Programme Delivery Engineering,Corporate Travel Management (North) Ltd,99652726,65,T&S UK - Public Transport
BEIS,UKRI - EPSRC,10/05/2022,T&S UK - Public Transport,Programme Delivery Engineering,Corporate Travel Management (North) Ltd,99652726,0.25,T&S UK - Public Transport
BEIS,UKRI - EPSRC,10/05/2022,T&S UK - Public Transport,Programme Delivery Engineering,Corporate Travel Management (North) Ltd,99652726,188.2,T&S UK - Public Transport
BEIS,UKRI - EPSRC,10/05/2022,T&S UK - Public Transport,Programme Delivery Engineering,Corporate Travel Management (North) Ltd,99652726,0.25,T&S UK - Public Transport
BEIS,UKRI - EPSRC,10/05/2022,T&S UK - Public Transport,Programme Delivery Engineering,Corporate Travel Management (North) Ltd,99652726,87.3,T&S UK - Public Transport
BEIS,UKRI - EPSRC,10/05/2022,T&S UK - Public Transport,Programme Delivery Engineering,Corporate Travel Management (North) Ltd,99652726,0.25,T&S UK - Public Transport
BEIS,UKRI - EPSRC,10/05/2022,T&S UK - Public Transport,Programme Delivery Engineering,Corporate Travel Management (North) Ltd,99652726,93,T&S UK - Public Transport
BEIS,UKRI - EPSRC,10/05/2022,T&S UK - Public Transport,Programme Delivery Engineering,Corporate Travel Management (North) Ltd,99652726,0.25,T&S UK - Public Transport
BEIS,UKRI - EPSRC,10/05/2022,T&S UK - Public Transport,Programme Delivery Engineering,Corporate Travel Management (North) Ltd,99652726,151.2,T&S UK - Public Transport
BEIS,UKRI - EPSRC,10/05/2022,T&S UK - Public Transport,Programme Delivery Engineering,Corporate Travel Management (North) Ltd,99652726,0.25,T&S UK - Public Transport
BEIS,UKRI - EPSRC,10/05/2022,T&S UK - Public Transport,Programme Delivery Engineering,Corporate Travel Management (North) Ltd,99652726,151.2,T&S UK - Public Transport
BEIS,UKRI - EPSRC,10/05/2022,T&S UK - Public Transport,Programme Delivery Healthcare,Corporate Travel Management (North) Ltd,99652726,0.25,T&S UK - Public Transport
BEIS,UKRI - EPSRC,10/05/2022,T&S UK - Public Transport,Programme Delivery Healthcare,Corporate Travel Management (North) Ltd,99652726,30.2,T&S UK - Public Transport
BEIS,UKRI - EPSRC,10/05/2022,T&S UK - Public Transport,Programme Delivery Healthcare,Corporate Travel Management (North) Ltd,99652726,0.25,T&S UK - Public Transport
BEIS,UKRI - EPSRC,10/05/2022,T&S UK - Public Transport,Programme Delivery Healthcare,Corporate Travel Management (North) Ltd,99652726,40.5,T&S UK - Public Transport
BEIS,UKRI - EPSRC,10/05/2022,T&S UK - Public Transport,Programme Delivery Healthcare,Corporate Travel Management (North) Ltd,99652726,0.25,T&S UK - Public Transport
BEIS,UKRI - EPSRC,10/05/2022,T&S UK - Public Transport,Programme Delivery Healthcare,Corporate Travel Management (North) Ltd,99652726,82.4,T&S UK - Public Transport
BEIS,UKRI - EPSRC,10/05/2022,T&S UK - Public Transport,Programme Delivery Healthcare,Corporate Travel Management (North) Ltd,99652726,0.25,T&S UK - Public Transport
BEIS,UKRI - EPSRC,10/05/2022,T&S UK - Public Transport,Programme Delivery Healthcare,Corporate Travel Management (North) Ltd,99652726,158.5,T&S UK - Public Transport
BEIS,UKRI - EPSRC,10/05/2022,T&S UK - Public Transport,Programme Delivery Healthcare,Corporate Travel Management (North) Ltd,99652726,0.25,T&S UK - Public Transport
BEIS,UKRI - EPSRC,10/05/2022,T&S UK - Public Transport,Programme Delivery Healthcare,Corporate Travel Management (North) Ltd,99652726,158.5,T&S UK - Public Transport
BEIS,UKRI - EPSRC,10/05/2022,T&S UK - Public Transport,Programme Delivery Healthcare,Corporate Travel Management (North) Ltd,99652726,0.25,T&S UK - Public Transport
BEIS,UKRI - EPSRC,10/05/2022,T&S UK - Public Transport,Programme Delivery Healthcare,Corporate Travel Management (North) Ltd,99652726,158.5,T&S UK - Public Transport
BEIS,UKRI - EPSRC,10/05/2022,T&S UK - Public Transport,Programme Delivery Healthcare,Corporate Travel Management (North) Ltd,99652726,0.25,T&S UK - Public Transport
BEIS,UKRI - EPSRC,10/05/2022,T&S UK - Public Transport,Programme Delivery Healthcare,Corporate Travel Management (North) Ltd,99652726,59.4,T&S UK - Public Transport
BEIS,UKRI - EPSRC,10/05/2022,T&S UK - Public Transport,Programme Delivery Healthcare,Corporate Travel Management (North) Ltd,99652726,0.25,T&S UK - Public Transport
BEIS,UKRI - EPSRC,10/05/2022,T&S UK - Public Transport,Programme Delivery Healthcare,Corporate Travel Management (North) Ltd,99652726,39.9,T&S UK - Public Transport
BEIS,UKRI - EPSRC,10/05/2022,T&S UK - Public Transport,Programme Delivery ICT,Corporate Travel Management (North) Ltd,99652726,0.13,T&S UK - Public Transport
BEIS,UKRI - EPSRC,10/05/2022,T&S UK - Public Transport,Programme Delivery ICT,Corporate Travel Management (North) Ltd,99652726,26.2,T&S UK - Public Transport
BEIS,UKRI - EPSRC,10/05/2022,T&S UK - Public Transport,Programme Delivery ICT,Corporate Travel Management (North) Ltd,99652726,0.12,T&S UK - Public Transport
BEIS,UKRI - EPSRC,10/05/2022,T&S UK - Public Transport,Programme Delivery ICT,Corporate Travel Management (North) Ltd,99652726,26.2,T&S UK - Public Transport
BEIS,UKRI - EPSRC,10/05/2022,T&S UK - Public Transport,Programme Delivery ICT,Corporate Travel Management (North) Ltd,99652726,0.25,T&S UK - Public Transport
BEIS,UKRI - EPSRC,10/05/2022,T&S UK - Public Transport,Programme Delivery ICT,Corporate Travel Management (North) Ltd,99652726,157.2,T&S UK - Public Transport
BEIS,UKRI - EPSRC,10/05/2022,T&S UK - Public Transport,Programme Delivery ICT,Corporate Travel Management (North) Ltd,99652726,0.25,T&S UK - Public Transport
BEIS,UKRI - EPSRC,10/05/2022,T&S UK - Public Transport,Programme Delivery ICT,Corporate Travel Management (North) Ltd,99652726,41.65,T&S UK - Public Transport
BEIS,UKRI - EPSRC,10/05/2022,T&S UK - Public Transport,Programme Delivery ICT,Corporate Travel Management (North) Ltd,99652726,0.25,T&S UK - Public Transport
BEIS,UKRI - EPSRC,10/05/2022,T&S UK - Public Transport,Programme Delivery ICT,Corporate Travel Management (North) Ltd,99652726,26.2,T&S UK - Public Transport
BEIS,UKRI - EPSRC,10/05/2022,T&S UK - Public Transport,Programme Delivery ICT,Corporate Travel Management (North) Ltd,99652726,0.25,T&S UK - Public Transport
BEIS,UKRI - EPSRC,10/05/2022,T&S UK - Public Transport,Programme Delivery ICT,Corporate Travel Management (North) Ltd,99652726,111.6,T&S UK - Public Transport
BEIS,UKRI - EPSRC,10/05/2022,T&S UK - Public Transport,Programme Delivery ICT,Corporate Travel Management (North) Ltd,99652726,0.25,T&S UK - Public Transport
BEIS,UKRI - EPSRC,10/05/2022,T&S UK - Public Transport,Programme Delivery ICT,Corporate Travel Management (North) Ltd,99652726,26.2,T&S UK - Public Transport
BEIS,UKRI - EPSRC,10/05/2022,T&S UK - Public Transport,Programme Delivery ICT,Corporate Travel Management (North) Ltd,99652726,0.25,T&S UK - Public Transport
BEIS,UKRI - EPSRC,10/05/2022,T&S UK - Public Transport,Programme Delivery ICT,Corporate Travel Management (North) Ltd,99652726,13.1,T&S UK - Public Transport
BEIS,UKRI - EPSRC,10/05/2022,T&S UK - Public Transport,Programme Delivery ICT,Corporate Travel Management (North) Ltd,99652726,0.25,T&S UK - Public Transport
BEIS,UKRI - EPSRC,10/05/2022,T&S UK - Public Transport,Programme Delivery ICT,Corporate Travel Management (North) Ltd,99652726,5.8,T&S UK - Public Transport
BEIS,UKRI - EPSRC,10/05/2022,T&S UK - Public Transport,Programme Delivery Infrastructure,Corporate Travel Management (North) Ltd,99652726,0.25,T&S UK - Public Transport
BEIS,UKRI - EPSRC,10/05/2022,T&S UK - Public Transport,Programme Delivery Infrastructure,Corporate Travel Management (North) Ltd,99652726,12.5,T&S UK - Public Transport
BEIS,UKRI - EPSRC,10/05/2022,T&S UK - Public Transport,Programme Delivery Manufacturing,Corporate Travel Management (North) Ltd,99652726,0.25,T&S UK - Public Transport
BEIS,UKRI - EPSRC,10/05/2022,T&S UK - Public Transport,Programme Delivery Manufacturing,Corporate Travel Management (North) Ltd,99652726,157.2,T&S UK - Public Transport
BEIS,UKRI - EPSRC,10/05/2022,T&S UK - Public Transport,Programme Delivery Manufacturing,Corporate Travel Management (North) Ltd,99652726,0.25,T&S UK - Public Transport
BEIS,UKRI - EPSRC,10/05/2022,T&S UK - Public Transport,Programme Delivery Manufacturing,Corporate Travel Management (North) Ltd,99652726,211.5,T&S UK - Public Transport
BEIS,UKRI - EPSRC,10/05/2022,T&S UK - Public Transport,Programme Delivery Maths,Corporate Travel Management (North) Ltd,99652726,0.25,T&S UK - Public Transport
BEIS,UKRI - EPSRC,10/05/2022,T&S UK - Public Transport,Programme Delivery Maths,Corporate Travel Management (North) Ltd,99652726,189.15,T&S UK - Public Transport
BEIS,UKRI - EPSRC,10/05/2022,T&S UK - Public Transport,Programme Delivery Maths,Corporate Travel Management (North) Ltd,99652726,0.5,T&S UK - Public Transport
BEIS,UKRI - EPSRC,10/05/2022,T&S UK - Public Transport,Programme Delivery Maths,Corporate Travel Management (North) Ltd,99652726,9.3,T&S UK - Public Transport
BEIS,UKRI - EPSRC,10/05/2022,T&S UK - Public Transport,Programme Delivery Maths,Corporate Travel Management (North) Ltd,99652726,74.9,T&S UK - Public Transport
BEIS,UKRI - EPSRC,10/05/2022,T&S UK - Public Transport,Programme Delivery Maths,Corporate Travel Management (North) Ltd,99652726,0.25,T&S UK - Public Transport
BEIS,UKRI - EPSRC,10/05/2022,T&S UK - Public Transport,Programme Delivery Maths,Corporate Travel Management (North) Ltd,99652726,148.6,T&S UK - Public Transport
BEIS,UKRI - EPSRC,10/05/2022,T&S UK - Public Transport,Programme Delivery Maths,Corporate Travel Management (North) Ltd,99652726,0.25,T&S UK - Public Transport
BEIS,UKRI - EPSRC,10/05/2022,T&S UK - Public Transport,Programme Delivery Maths,Corporate Travel Management (North) Ltd,99652726,10.2,T&S UK - Public Transport
BEIS,UKRI - EPSRC,10/05/2022,T&S UK - Public Transport,Programme Delivery Maths,Corporate Travel Management (North) Ltd,99652726,0.25,T&S UK - Public Transport
BEIS,UKRI - EPSRC,10/05/2022,T&S UK - Public Transport,Programme Delivery Maths,Corporate Travel Management (North) Ltd,99652726,99.85,T&S UK - Public Transport
BEIS,UKRI - EPSRC,10/05/2022,T&S UK - Public Transport,Programme Delivery Maths,Corporate Travel Management (North) Ltd,99652726,0.25,T&S UK - Public Transport
BEIS,UKRI - EPSRC,10/05/2022,T&S UK - Public Transport,Programme Delivery Maths,Corporate Travel Management (North) Ltd,99652726,44.4,T&S UK - Public Transport
BEIS,UKRI - EPSRC,10/05/2022,T&S UK - Public Transport,Programme Delivery Maths,Corporate Travel Management (North) Ltd,99652726,5,T&S UK - Public Transport
BEIS,UKRI - EPSRC,10/05/2022,T&S UK - Public Transport,Programme Delivery Maths,Corporate Travel Management (North) Ltd,99652726,-15,T&S UK - Public Transport
BEIS,UKRI - EPSRC,10/05/2022,T&S UK - Public Transport,Programme Delivery Maths,Corporate Travel Management (North) Ltd,99652726,0.25,T&S UK - Public Transport
BEIS,UKRI - EPSRC,10/05/2022,T&S UK - Public Transport,Programme Delivery Maths,Corporate Travel Management (North) Ltd,99652726,98.3,T&S UK - Public Transport
BEIS,UKRI - EPSRC,10/05/2022,T&S UK - Public Transport,Programme Delivery Maths,Corporate Travel Management (North) Ltd,99652726,0.25,T&S UK - Public Transport
BEIS,UKRI - EPSRC,10/05/2022,T&S UK - Public Transport,Programme Delivery Maths,Corporate Travel Management (North) Ltd,99652726,127.9,T&S UK - Public Transport
BEIS,UKRI - EPSRC,10/05/2022,T&S UK - Public Transport,Programme Delivery Maths,Corporate Travel Management (North) Ltd,99652726,0.25,T&S UK - Public Transport
BEIS,UKRI - EPSRC,10/05/2022,T&S UK - Public Transport,Programme Delivery Maths,Corporate Travel Management (North) Ltd,99652726,74,T&S UK - Public Transport
BEIS,UKRI - EPSRC,10/05/2022,T&S UK - Public Transport,Programme Delivery Maths,Corporate Travel Management (North) Ltd,99652726,0.25,T&S UK - Public Transport
BEIS,UKRI - EPSRC,10/05/2022,T&S UK - Public Transport,Programme Delivery Maths,Corporate Travel Management (North) Ltd,99652726,86.45,T&S UK - Public Transport
BEIS,UKRI - EPSRC,10/05/2022,T&S UK - Public Transport,Programme Delivery Maths,Corporate Travel Management (North) Ltd,99652726,0.25,T&S UK - Public Transport
BEIS,UKRI - EPSRC,10/05/2022,T&S UK - Public Transport,Programme Delivery Maths,Corporate Travel Management (North) Ltd,99652726,48.95,T&S UK - Public Transport
BEIS,UKRI - EPSRC,10/05/2022,T&S UK - Public Transport,Programme Delivery Maths,Corporate Travel Management (North) Ltd,99652726,0.25,T&S UK - Public Transport
BEIS,UKRI - EPSRC,10/05/2022,T&S UK - Public Transport,Programme Delivery Maths,Corporate Travel Management (North) Ltd,99652726,8,T&S UK - Public Transport
BEIS,UKRI - EPSRC,10/05/2022,T&S UK - Public Transport,Programme Delivery Maths,Corporate Travel Management (North) Ltd,99652726,0.25,T&S UK - Public Transport
BEIS,UKRI - EPSRC,10/05/2022,T&S UK - Public Transport,Programme Delivery Maths,Corporate Travel Management (North) Ltd,99652726,92.9,T&S UK - Public Transport
BEIS,UKRI - EPSRC,10/05/2022,T&S UK - Public Transport,Programme Delivery Maths,Corporate Travel Management (North) Ltd,99652726,0.25,T&S UK - Public Transport
BEIS,UKRI - EPSRC,10/05/2022,T&S UK - Public Transport,Programme Delivery Maths,Corporate Travel Management (North) Ltd,99652726,47.4,T&S UK - Public Transport
BEIS,UKRI - EPSRC,10/05/2022,T&S UK - Public Transport,Programme Delivery Physical Sciences,Corporate Travel Management (North) Ltd,99652726,0.25,T&S UK - Public Transport
BEIS,UKRI - EPSRC,10/05/2022,T&S UK - Public Transport,Programme Delivery Physical Sciences,Corporate Travel Management (North) Ltd,99652726,87.9,T&S UK - Public Transport
BEIS,UKRI - EPSRC,10/05/2022,T&S UK - Public Transport,Programme Delivery Physical Sciences,Corporate Travel Management (North) Ltd,99652726,0.25,T&S UK - Public Transport
BEIS,UKRI - EPSRC,10/05/2022,T&S UK - Public Transport,Programme Delivery Physical Sciences,Corporate Travel Management (North) Ltd,99652726,232.2,T&S UK - Public Transport
BEIS,UKRI - EPSRC,10/05/2022,T&S UK - Public Transport,Programme Delivery Physical Sciences,Corporate Travel Management (North) Ltd,99652726,0.25,T&S UK - Public Transport
BEIS,UKRI - EPSRC,10/05/2022,T&S UK - Public Transport,Programme Delivery Physical Sciences,Corporate Travel Management (North) Ltd,99652726,193.8,T&S UK - Public Transport
BEIS,UKRI - EPSRC,10/05/2022,T&S UK - Public Transport,Programme Delivery Quantum Technology,Corporate Travel Management (North) Ltd,99652726,0.25,T&S UK - Public Transport
BEIS,UKRI - EPSRC,10/05/2022,T&S UK - Public Transport,Programme Delivery Quantum Technology,Corporate Travel Management (North) Ltd,99652726,151.2,T&S UK - Public Transport
BEIS,UKRI - EPSRC,10/05/2022,T&S UK - Public Transport,Programme Delivery Quantum Technology,Corporate Travel Management (North) Ltd,99652726,0.25,T&S UK - Public Transport
BEIS,UKRI - EPSRC,10/05/2022,T&S UK - Public Transport,Programme Delivery Quantum Technology,Corporate Travel Management (North) Ltd,99652726,151.2,T&S UK - Public Transport
BEIS,UKRI - Research England,10/05/2022,T&S UK - Public Transport,RE - Executive Group,Corporate Travel Management (North) Ltd,99652726,0.25,T&S UK - Public Transport
BEIS,UKRI - Research England,10/05/2022,T&S UK - Public Transport,RE - Executive Group,Corporate Travel Management (North) Ltd,99652726,169.35,T&S UK - Public Transport
BEIS,UKRI - Research England,10/05/2022,T&S UK - Public Transport,RE - Executive Group,Corporate Travel Management (North) Ltd,99652726,0.25,T&S UK - Public Transport
BEIS,UKRI - Research England,10/05/2022,T&S UK - Public Transport,RE - Executive Group,Corporate Travel Management (North) Ltd,99652726,25.5,T&S UK - Public Transport
BEIS,UKRI - Research England,10/05/2022,T&S UK - Public Transport,RE - Executive Group,Corporate Travel Management (North) Ltd,99652726,5,T&S UK - Public Transport
BEIS,UKRI - Research England,10/05/2022,T&S UK - Public Transport,RE - Executive Group,Corporate Travel Management (North) Ltd,99652726,-112.85,T&S UK - Public Transport
BEIS,UKRI - Research England,10/05/2022,T&S UK - Public Transport,RE - Executive Group,Corporate Travel Management (North) Ltd,99652726,5,T&S UK - Public Transport
BEIS,UKRI - Research England,10/05/2022,T&S UK - Public Transport,RE - Executive Group,Corporate Travel Management (North) Ltd,99652726,-20.5,T&S UK - Public Transport
BEIS,UKRI - Research England,10/05/2022,T&S UK - Public Transport,RE - Executive Group,Corporate Travel Management (North) Ltd,99652726,0.25,T&S UK - Public Transport
BEIS,UKRI - Research England,10/05/2022,T&S UK - Public Transport,RE - Executive Group,Corporate Travel Management (North) Ltd,99652726,25.5,T&S UK - Public Transport
BEIS,UKRI - Research England,10/05/2022,T&S UK - Public Transport,RE - Insight and Engagement,Corporate Travel Management (North) Ltd,99652726,0.25,T&S UK - Public Transport
BEIS,UKRI - Research England,10/05/2022,T&S UK - Public Transport,RE - Insight and Engagement,Corporate Travel Management (North) Ltd,99652726,107.8,T&S UK - Public Transport
BEIS,UKRI - Research England,10/05/2022,T&S UK - Public Transport,RE - Insight and Engagement,Corporate Travel Management (North) Ltd,99652726,0.25,T&S UK - Public Transport
BEIS,UKRI - Research England,10/05/2022,T&S UK - Public Transport,RE - Insight and Engagement,Corporate Travel Management (North) Ltd,99652726,33.6,T&S UK - Public Transport
BEIS,UKRI - Research England,10/05/2022,T&S UK - Public Transport,RE - Insight and Engagement,Corporate Travel Management (North) Ltd,99652726,0.25,T&S UK - Public Transport
BEIS,UKRI - Research England,10/05/2022,T&S UK - Public Transport,RE - Insight and Engagement,Corporate Travel Management (North) Ltd,99652726,44.35,T&S UK - Public Transport
BEIS,UKRI - Research England,10/05/2022,T&S UK - Public Transport,RE - Insight and Engagement,Corporate Travel Management (North) Ltd,99652726,0.25,T&S UK - Public Transport
BEIS,UKRI - Research England,10/05/2022,T&S UK - Public Transport,RE - Insight and Engagement,Corporate Travel Management (North) Ltd,99652726,107.9,T&S UK - Public Transport
BEIS,UKRI - Research England,10/05/2022,T&S UK - Public Transport,RE - Insight and Engagement,Corporate Travel Management (North) Ltd,99652726,0.25,T&S UK - Public Transport
BEIS,UKRI - Research England,10/05/2022,T&S UK - Public Transport,RE - Insight and Engagement,Corporate Travel Management (North) Ltd,99652726,91.3,T&S UK - Public Transport
BEIS,UKRI - Research England,10/05/2022,T&S UK - Public Transport,RE - Insight and Engagement,Corporate Travel Management (North) Ltd,99652726,0.25,T&S UK - Public Transport
BEIS,UKRI - Research England,10/05/2022,T&S UK - Public Transport,RE - Insight and Engagement,Corporate Travel Management (North) Ltd,99652726,90.1,T&S UK - Public Transport
BEIS,UKRI - Research England,10/05/2022,T&S UK - Public Transport,RE - Insight and Engagement,Corporate Travel Management (North) Ltd,99652726,0.25,T&S UK - Public Transport
BEIS,UKRI - Research England,10/05/2022,T&S UK - Public Transport,RE - Insight and Engagement,Corporate Travel Management (North) Ltd,99652726,172.6,T&S UK - Public Transport
BEIS,UKRI - Research England,10/05/2022,T&S UK - Public Transport,RE - Insight and Engagement,Corporate Travel Management (North) Ltd,99652726,0.25,T&S UK - Public Transport
BEIS,UKRI - Research England,10/05/2022,T&S UK - Public Transport,RE - Insight and Engagement,Corporate Travel Management (North) Ltd,99652726,7.8,T&S UK - Public Transport
BEIS,UKRI - Research England,10/05/2022,T&S UK - Public Transport,RE - Insight and Engagement,Corporate Travel Management (North) Ltd,99652726,0.25,T&S UK - Public Transport
BEIS,UKRI - Research England,10/05/2022,T&S UK - Public Transport,RE - Insight and Engagement,Corporate Travel Management (North) Ltd,99652726,182,T&S UK - Public Transport
BEIS,UKRI - Research England,10/05/2022,T&S UK - Public Transport,RE - Insight and Engagement,Corporate Travel Management (North) Ltd,99652726,0.25,T&S UK - Public Transport
BEIS,UKRI - Research England,10/05/2022,T&S UK - Public Transport,RE - Insight and Engagement,Corporate Travel Management (North) Ltd,99652726,141,T&S UK - Public Transport
BEIS,UKRI - Research England,10/05/2022,T&S UK - Public Transport,RE - Knowledge Exchange,Corporate Travel Management (North) Ltd,99652726,0.25,T&S UK - Public Transport
BEIS,UKRI - Research England,10/05/2022,T&S UK - Public Transport,RE - Knowledge Exchange,Corporate Travel Management (North) Ltd,99652726,51.2,T&S UK - Public Transport
BEIS,UKRI - Research England,10/05/2022,T&S UK - Public Transport,RE - Knowledge Exchange,Corporate Travel Management (North) Ltd,99652726,0.25,T&S UK - Public Transport
BEIS,UKRI - Research England,10/05/2022,T&S UK - Public Transport,RE - Knowledge Exchange,Corporate Travel Management (North) Ltd,99652726,51.2,T&S UK - Public Transport
BEIS,UKRI - Research England,10/05/2022,T&S UK - Public Transport,RE - Knowledge Exchange,Corporate Travel Management (North) Ltd,99652726,0.25,T&S UK - Public Transport
BEIS,UKRI - Research England,10/05/2022,T&S UK - Public Transport,RE - Knowledge Exchange,Corporate Travel Management (North) Ltd,99652726,54.65,T&S UK - Public Transport
BEIS,UKRI - Research England,10/05/2022,T&S UK - Public Transport,RE - Knowledge Exchange,Corporate Travel Management (North) Ltd,99652726,0.25,T&S UK - Public Transport
BEIS,UKRI - Research England,10/05/2022,T&S UK - Public Transport,RE - Knowledge Exchange,Corporate Travel Management (North) Ltd,99652726,80.4,T&S UK - Public Transport
BEIS,UKRI - Research England,10/05/2022,T&S UK - Public Transport,RE - Knowledge Exchange,Corporate Travel Management (North) Ltd,99652726,0.25,T&S UK - Public Transport
BEIS,UKRI - Research England,10/05/2022,T&S UK - Public Transport,RE - Knowledge Exchange,Corporate Travel Management (North) Ltd,99652726,18.1,T&S UK - Public Transport
BEIS,UKRI - Research England,10/05/2022,T&S UK - Public Transport,RE - Knowledge Exchange,Corporate Travel Management (North) Ltd,99652726,0.25,T&S UK - Public Transport
BEIS,UKRI - Research England,10/05/2022,T&S UK - Public Transport,RE - Knowledge Exchange,Corporate Travel Management (North) Ltd,99652726,95.2,T&S UK - Public Transport
BEIS,UKRI - Research England,10/05/2022,T&S UK - Public Transport,RE - Knowledge Exchange,Corporate Travel Management (North) Ltd,99652726,0.25,T&S UK - Public Transport
BEIS,UKRI - Research England,10/05/2022,T&S UK - Public Transport,RE - Knowledge Exchange,Corporate Travel Management (North) Ltd,99652726,4.5,T&S UK - Public Transport
BEIS,UKRI - Research England,10/05/2022,T&S UK - Public Transport,RE - Operations and Private Office,Corporate Travel Management (North) Ltd,99652726,5,T&S UK - Public Transport
BEIS,UKRI - Research England,10/05/2022,T&S UK - Public Transport,RE - Operations and Private Office,Corporate Travel Management (North) Ltd,99652726,-114.4,T&S UK - Public Transport
BEIS,UKRI - Research England,10/05/2022,T&S UK - Public Transport,RE - Research,Corporate Travel Management (North) Ltd,99652726,5,T&S UK - Public Transport
BEIS,UKRI - Research England,10/05/2022,T&S UK - Public Transport,RE - Research,Corporate Travel Management (North) Ltd,99652726,-85.1,T&S UK - Public Transport
BEIS,UKRI - Research England,10/05/2022,T&S UK - Public Transport,RE - Research Excellence Framework (REF),Corporate Travel Management (North) Ltd,99652726,0.25,T&S UK - Public Transport
BEIS,UKRI - Research England,10/05/2022,T&S UK - Public Transport,RE - Research Excellence Framework (REF),Corporate Travel Management (North) Ltd,99652726,18.1,T&S UK - Public Transport
BEIS,UKRI - EPSRC,10/05/2022,T&S UK - Public Transport,Regional Engagement - OpEx,Corporate Travel Management (North) Ltd,99652726,0.25,T&S UK - Public Transport
BEIS,UKRI - EPSRC,10/05/2022,T&S UK - Public Transport,Regional Engagement - OpEx,Corporate Travel Management (North) Ltd,99652726,70.6,T&S UK - Public Transport
BEIS,UKRI - EPSRC,10/05/2022,T&S UK - Public Transport,Regional Engagement - OpEx,Corporate Travel Management (North) Ltd,99652726,0.25,T&S UK - Public Transport
BEIS,UKRI - EPSRC,10/05/2022,T&S UK - Public Transport,Regional Engagement - OpEx,Corporate Travel Management (North) Ltd,99652726,32.5,T&S UK - Public Transport
BEIS,UKRI - EPSRC,10/05/2022,T&S UK - Public Transport,Regional Engagement - OpEx,Corporate Travel Management (North) Ltd,99652726,0.25,T&S UK - Public Transport
BEIS,UKRI - EPSRC,10/05/2022,T&S UK - Public Transport,Regional Engagement - OpEx,Corporate Travel Management (North) Ltd,99652726,198.7,T&S UK - Public Transport
BEIS,UKRI - EPSRC,10/05/2022,T&S UK - Public Transport,Regional Engagement - OpEx,Corporate Travel Management (North) Ltd,99652726,2.6,T&S UK - Public Transport
BEIS,UKRI - EPSRC,10/05/2022,T&S UK - Public Transport,Regional Engagement - OpEx,Corporate Travel Management (North) Ltd,99652726,32.8,T&S UK - Public Transport
BEIS,UKRI - EPSRC,10/05/2022,T&S UK - Public Transport,Regional Engagement - OpEx,Corporate Travel Management (North) Ltd,99652726,0.25,T&S UK - Public Transport
BEIS,UKRI - EPSRC,10/05/2022,T&S UK - Public Transport,Regional Engagement - OpEx,Corporate Travel Management (North) Ltd,99652726,207.3,T&S UK - Public Transport
BEIS,UKRI - EPSRC,10/05/2022,T&S UK - Public Transport,Regional Engagement - OpEx,Corporate Travel Management (North) Ltd,99652726,0.25,T&S UK - Public Transport
BEIS,UKRI - EPSRC,10/05/2022,T&S UK - Public Transport,Regional Engagement - OpEx,Corporate Travel Management (North) Ltd,99652726,32.8,T&S UK - Public Transport
BEIS,UKRI - EPSRC,10/05/2022,T&S UK - Public Transport,Regional Engagement - OpEx,Corporate Travel Management (North) Ltd,99652726,0.25,T&S UK - Public Transport
BEIS,UKRI - EPSRC,10/05/2022,T&S UK - Public Transport,Regional Engagement - OpEx,Corporate Travel Management (North) Ltd,99652726,71.5,T&S UK - Public Transport
BEIS,UKRI - EPSRC,10/05/2022,T&S UK - Public Transport,Regional Engagement - OpEx,Corporate Travel Management (North) Ltd,99652726,5,T&S UK - Public Transport
BEIS,UKRI - EPSRC,10/05/2022,T&S UK - Public Transport,Regional Engagement - OpEx,Corporate Travel Management (North) Ltd,99652726,-23.1,T&S UK - Public Transport
BEIS,UKRI - EPSRC,10/05/2022,T&S UK - Public Transport,Regional Engagement - OpEx,Corporate Travel Management (North) Ltd,99652726,0.25,T&S UK - Public Transport
BEIS,UKRI - EPSRC,10/05/2022,T&S UK - Public Transport,Regional Engagement - OpEx,Corporate Travel Management (North) Ltd,99652726,14,T&S UK - Public Transport
BEIS,UKRI - EPSRC,10/05/2022,T&S UK - Public Transport,SPF - ExCALIBUR OpEx,Corporate Travel Management (North) Ltd,99652726,0.08,T&S UK - Public Transport
BEIS,UKRI - EPSRC,10/05/2022,T&S UK - Public Transport,SPF - ExCALIBUR OpEx,Corporate Travel Management (North) Ltd,99652726,98.3,T&S UK - Public Transport
BEIS,UKRI - EPSRC,10/05/2022,T&S UK - Public Transport,SPF - ExCALIBUR OpEx,Corporate Travel Management (North) Ltd,99652726,2.68,T&S UK - Public Transport
BEIS,UKRI - EPSRC,10/05/2022,T&S UK - Public Transport,SPF - ExCALIBUR OpEx,Corporate Travel Management (North) Ltd,99652726,39.4,T&S UK - Public Transport
BEIS,UKRI - EPSRC,10/05/2022,T&S UK - Public Transport,SPF - ExCALIBUR OpEx,Corporate Travel Management (North) Ltd,99652726,98.3,T&S UK - Public Transport
BEIS,UKRI - EPSRC,10/05/2022,T&S UK - Public Transport,SPF - ExCALIBUR OpEx,Corporate Travel Management (North) Ltd,99652726,0.09,T&S UK - Public Transport
BEIS,UKRI - EPSRC,10/05/2022,T&S UK - Public Transport,SPF - ExCALIBUR OpEx,Corporate Travel Management (North) Ltd,99652726,98.3,T&S UK - Public Transport
BEIS,UKRI - EPSRC,10/05/2022,T&S UK - Public Transport,SPF - NICER OpEx,Corporate Travel Management (North) Ltd,99652726,5,T&S UK - Public Transport
BEIS,UKRI - EPSRC,10/05/2022,T&S UK - Public Transport,SPF - NICER OpEx,Corporate Travel Management (North) Ltd,99652726,-146.6,T&S UK - Public Transport
BEIS,UKRI - EPSRC,10/05/2022,T&S UK - Public Transport,SPF - NICER OpEx,Corporate Travel Management (North) Ltd,99652726,5,T&S UK - Public Transport
BEIS,UKRI - EPSRC,10/05/2022,T&S UK - Public Transport,SPF - NICER OpEx,Corporate Travel Management (North) Ltd,99652726,-146.6,T&S UK - Public Transport
BEIS,UKRI - UKRI,10/05/2022,T&S UK - Public Transport,UKRI - Information Governance,Corporate Travel Management (North) Ltd,99652726,0.25,T&S UK - Public Transport
BEIS,UKRI - UKRI,10/05/2022,T&S UK - Public Transport,UKRI - Information Governance,Corporate Travel Management (North) Ltd,99652726,105,T&S UK - Public Transport
BEIS,UKRI - UKRI,10/05/2022,T&S UK - Public Transport,UKRI - Information Governance,Corporate Travel Management (North) Ltd,99652726,0.5,T&S UK - Public Transport
BEIS,UKRI - UKRI,10/05/2022,T&S UK - Public Transport,UKRI - Information Governance,Corporate Travel Management (North) Ltd,99652726,29.9,T&S UK - Public Transport
BEIS,UKRI - UKRI,10/05/2022,T&S UK - Public Transport,UKRI - Information Governance,Corporate Travel Management (North) Ltd,99652726,37,T&S UK - Public Transport
BEIS,UKRI - UKRI,10/05/2022,T&S UK - Public Transport,UKRI - Information Governance,Corporate Travel Management (North) Ltd,99652726,0.25,T&S UK - Public Transport
BEIS,UKRI - UKRI,10/05/2022,T&S UK - Public Transport,UKRI - Information Governance,Corporate Travel Management (North) Ltd,99652726,105,T&S UK - Public Transport
BEIS,UKRI - UKRI,10/05/2022,T&S UK - Public Transport,UKRI - Risk and Counter Fraud,Corporate Travel Management (North) Ltd,99652726,0.13,T&S UK - Public Transport
BEIS,UKRI - UKRI,10/05/2022,T&S UK - Public Transport,UKRI - Risk and Counter Fraud,Corporate Travel Management (North) Ltd,99652726,79.4,T&S UK - Public Transport
BEIS,UKRI - UKRI,10/05/2022,T&S UK - Public Transport,UKRI - Risk and Counter Fraud,Corporate Travel Management (North) Ltd,99652726,0.12,T&S UK - Public Transport
BEIS,UKRI - UKRI,10/05/2022,T&S UK - Public Transport,UKRI - Risk and Counter Fraud,Corporate Travel Management (North) Ltd,99652726,79.4,T&S UK - Public Transport
BEIS,UKRI - UKRI,10/05/2022,T&S UK - Public Transport,UKRI - Risk and Counter Fraud,Corporate Travel Management (North) Ltd,99652726,0.25,T&S UK - Public Transport
BEIS,UKRI - UKRI,10/05/2022,T&S UK - Public Transport,UKRI - Risk and Counter Fraud,Corporate Travel Management (North) Ltd,99652726,99.4,T&S UK - Public Transport
BEIS,UKRI - UKRI,10/05/2022,T&S UK - Public Transport,UKRI - Communication and Engagement,Corporate Travel Management (North) Ltd,99652726,-41.2,T&S UK - Public Transport
BEIS,UKRI - UKRI,10/05/2022,T&S UK - Public Transport,UKRI - Communication and Engagement,Corporate Travel Management (North) Ltd,99652726,0.5,T&S UK - Public Transport
BEIS,UKRI - UKRI,10/05/2022,T&S UK - Public Transport,UKRI - Communication and Engagement,Corporate Travel Management (North) Ltd,99652726,65.2,T&S UK - Public Transport
BEIS,UKRI - UKRI,10/05/2022,T&S UK - Public Transport,UKRI - Communication and Engagement,Corporate Travel Management (North) Ltd,99652726,63.2,T&S UK - Public Transport
BEIS,UKRI - UKRI,10/05/2022,T&S UK - Public Transport,UKRI - Communication and Engagement,Corporate Travel Management (North) Ltd,99652726,0.25,T&S UK - Public Transport
BEIS,UKRI - UKRI,10/05/2022,T&S UK - Public Transport,UKRI - Communication and Engagement,Corporate Travel Management (North) Ltd,99652726,71.3,T&S UK - Public Transport
BEIS,UKRI - UKRI,10/05/2022,T&S UK - Public Transport,UKRI - Communication and Engagement,Corporate Travel Management (North) Ltd,99652726,0.25,T&S UK - Public Transport
BEIS,UKRI - UKRI,10/05/2022,T&S UK - Public Transport,UKRI - Communication and Engagement,Corporate Travel Management (North) Ltd,99652726,63.2,T&S UK - Public Transport
BEIS,UKRI - UKRI,10/05/2022,T&S UK - Public Transport,UKRI - Communication and Engagement,Corporate Travel Management (North) Ltd,99652726,0.25,T&S UK - Public Transport
BEIS,UKRI - UKRI,10/05/2022,T&S UK - Public Transport,UKRI - Communication and Engagement,Corporate Travel Management (North) Ltd,99652726,105.8,T&S UK - Public Transport
BEIS,UKRI - UKRI,10/05/2022,T&S UK - Public Transport,UKRI - Communication and Engagement,Corporate Travel Management (North) Ltd,99652726,0.25,T&S UK - Public Transport
BEIS,UKRI - UKRI,10/05/2022,T&S UK - Public Transport,UKRI - Communication and Engagement,Corporate Travel Management (North) Ltd,99652726,92.4,T&S UK - Public Transport
BEIS,UKRI - UKRI,10/05/2022,T&S UK - Public Transport,UKRI - Communications Content,Corporate Travel Management (North) Ltd,99652726,0.25,T&S UK - Public Transport
BEIS,UKRI - UKRI,10/05/2022,T&S UK - Public Transport,UKRI - Communications Content,Corporate Travel Management (North) Ltd,99652726,96.1,T&S UK - Public Transport
BEIS,UKRI - UKRI,10/05/2022,T&S UK - Public Transport,UKRI - Corporate Services,Corporate Travel Management (North) Ltd,99652726,0.25,T&S UK - Public Transport
BEIS,UKRI - UKRI,10/05/2022,T&S UK - Public Transport,UKRI - Corporate Services,Corporate Travel Management (North) Ltd,99652726,71.3,T&S UK - Public Transport
BEIS,UKRI - UKRI,10/05/2022,T&S UK - Public Transport,UKRI - Corporate Services,Corporate Travel Management (North) Ltd,99652726,0.25,T&S UK - Public Transport
BEIS,UKRI - UKRI,10/05/2022,T&S UK - Public Transport,UKRI - Corporate Services,Corporate Travel Management (North) Ltd,99652726,105.3,T&S UK - Public Transport
BEIS,UKRI - UKRI,10/05/2022,T&S UK - Public Transport,"UKRI - Data Policy, Governance and MI",Corporate Travel Management (North) Ltd,99652726,0.25,T&S UK - Public Transport
BEIS,UKRI - UKRI,10/05/2022,T&S UK - Public Transport,"UKRI - Data Policy, Governance and MI",Corporate Travel Management (North) Ltd,99652726,29.3,T&S UK - Public Transport
BEIS,UKRI - UKRI,10/05/2022,T&S UK - Public Transport,UKRI - Estates,Corporate Travel Management (North) Ltd,99652726,0.25,T&S UK - Public Transport
BEIS,UKRI - UKRI,10/05/2022,T&S UK - Public Transport,UKRI - Estates,Corporate Travel Management (North) Ltd,99652726,104.6,T&S UK - Public Transport
BEIS,UKRI - UKRI,10/05/2022,T&S UK - Public Transport,UKRI - Estates,Corporate Travel Management (North) Ltd,99652726,5,T&S UK - Public Transport
BEIS,UKRI - UKRI,10/05/2022,T&S UK - Public Transport,UKRI - Estates,Corporate Travel Management (North) Ltd,99652726,-27.1,T&S UK - Public Transport
BEIS,UKRI - UKRI,10/05/2022,T&S UK - Public Transport,UKRI - Estates,Corporate Travel Management (North) Ltd,99652726,10,T&S UK - Public Transport
BEIS,UKRI - UKRI,10/05/2022,T&S UK - Public Transport,UKRI - Estates,Corporate Travel Management (North) Ltd,99652726,-13.45,T&S UK - Public Transport
BEIS,UKRI - UKRI,10/05/2022,T&S UK - Public Transport,UKRI - Estates,Corporate Travel Management (North) Ltd,99652726,-18.35,T&S UK - Public Transport
BEIS,UKRI - UKRI,10/05/2022,T&S UK - Public Transport,UKRI - Estates,Corporate Travel Management (North) Ltd,99652726,5,T&S UK - Public Transport
BEIS,UKRI - UKRI,10/05/2022,T&S UK - Public Transport,UKRI - Estates,Corporate Travel Management (North) Ltd,99652726,-102.05,T&S UK - Public Transport
BEIS,UKRI - UKRI,10/05/2022,T&S UK - Public Transport,UKRI - Executive Group,Corporate Travel Management (North) Ltd,99652726,0.25,T&S UK - Public Transport
BEIS,UKRI - UKRI,10/05/2022,T&S UK - Public Transport,UKRI - Executive Group,Corporate Travel Management (North) Ltd,99652726,84.2,T&S UK - Public Transport
BEIS,UKRI - UKRI,10/05/2022,T&S UK - Public Transport,UKRI - International,Corporate Travel Management (North) Ltd,99652726,0.25,T&S UK - Public Transport
BEIS,UKRI - UKRI,10/05/2022,T&S UK - Public Transport,UKRI - International,Corporate Travel Management (North) Ltd,99652726,113.2,T&S UK - Public Transport
BEIS,UKRI - UKRI,10/05/2022,T&S UK - Public Transport,UKRI - International,Corporate Travel Management (North) Ltd,99652726,0.5,T&S UK - Public Transport
BEIS,UKRI - UKRI,10/05/2022,T&S UK - Public Transport,UKRI - International,Corporate Travel Management (North) Ltd,99652726,14.4,T&S UK - Public Transport
BEIS,UKRI - UKRI,10/05/2022,T&S UK - Public Transport,UKRI - International,Corporate Travel Management (North) Ltd,99652726,151.2,T&S UK - Public Transport
BEIS,UKRI - UKRI,10/05/2022,T&S UK - Public Transport,UKRI - International,Corporate Travel Management (North) Ltd,99652726,0.25,T&S UK - Public Transport
BEIS,UKRI - UKRI,10/05/2022,T&S UK - Public Transport,UKRI - International,Corporate Travel Management (North) Ltd,99652726,242.9,T&S UK - Public Transport
BEIS,UKRI - UKRI,10/05/2022,T&S UK - Public Transport,UKRI - International,Corporate Travel Management (North) Ltd,99652726,0.25,T&S UK - Public Transport
BEIS,UKRI - UKRI,10/05/2022,T&S UK - Public Transport,UKRI - International,Corporate Travel Management (North) Ltd,99652726,60.4,T&S UK - Public Transport
BEIS,UKRI - UKRI,10/05/2022,T&S UK - Public Transport,UKRI - Procurement and Commercial,Corporate Travel Management (North) Ltd,99652726,0.5,T&S UK - Public Transport
BEIS,UKRI - UKRI,10/05/2022,T&S UK - Public Transport,UKRI - Procurement and Commercial,Corporate Travel Management (North) Ltd,99652726,326,T&S UK - Public Transport
BEIS,UKRI - UKRI,10/05/2022,T&S UK - Public Transport,UKRI - Procurement and Commercial,Corporate Travel Management (North) Ltd,99652726,0.25,T&S UK - Public Transport
BEIS,UKRI - UKRI,10/05/2022,T&S UK - Public Transport,UKRI - Procurement and Commercial,Corporate Travel Management (North) Ltd,99652726,174.2,T&S UK - Public Transport
BEIS,UKRI - UKRI,10/05/2022,T&S UK - Public Transport,UKRI - Strategic Finance Business Partners,Corporate Travel Management (North) Ltd,99652726,0.25,T&S UK - Public Transport
BEIS,UKRI - UKRI,10/05/2022,T&S UK - Public Transport,UKRI - Strategic Finance Business Partners,Corporate Travel Management (North) Ltd,99652726,112,T&S UK - Public Transport
BEIS,UKRI - UKRI,10/05/2022,T&S UK - Public Transport,UKRI - Strategy,Corporate Travel Management (North) Ltd,99652726,15,T&S UK - Public Transport
BEIS,UKRI - UKRI,10/05/2022,T&S UK - Public Transport,UKRI - Strategy,Corporate Travel Management (North) Ltd,99652726,-122.8,T&S UK - Public Transport
BEIS,UKRI - UKRI,10/05/2022,T&S UK - Public Transport,UKRI - Strategy,Corporate Travel Management (North) Ltd,99652726,0.25,T&S UK - Public Transport
BEIS,UKRI - UKRI,10/05/2022,T&S UK - Public Transport,UKRI - Strategy,Corporate Travel Management (North) Ltd,99652726,61.4,T&S UK - Public Transport
BEIS,UKRI - UKRI,10/05/2022,T&S UK - Public Transport,UKRI - Strategy,Corporate Travel Management (North) Ltd,99652726,0.25,T&S UK - Public Transport
BEIS,UKRI - UKRI,10/05/2022,T&S UK - Public Transport,UKRI - Strategy,Corporate Travel Management (North) Ltd,99652726,128.7,T&S UK - Public Transport
BEIS,UKRI - UKRI,10/05/2022,T&S UK - Public Transport,UKRI - Strategy,Corporate Travel Management (North) Ltd,99652726,0.25,T&S UK - Public Transport
BEIS,UKRI - UKRI,10/05/2022,T&S UK - Public Transport,UKRI - Strategy,Corporate Travel Management (North) Ltd,99652726,61.4,T&S UK - Public Transport
BEIS,UKRI - UKRI,10/05/2022,T&S UK - Public Transport,UKRI - Strategy,Corporate Travel Management (North) Ltd,99652726,0.25,T&S UK - Public Transport
BEIS,UKRI - UKRI,10/05/2022,T&S UK - Public Transport,UKRI - Strategy,Corporate Travel Management (North) Ltd,99652726,122.05,T&S UK - Public Transport
BEIS,UKRI - UKRI,10/05/2022,T&S UK - Public Transport,UKRI - Strategy,Corporate Travel Management (North) Ltd,99652726,0.25,T&S UK - Public Transport
BEIS,UKRI - UKRI,10/05/2022,T&S UK - Public Transport,UKRI - Strategy,Corporate Travel Management (North) Ltd,99652726,195,T&S UK - Public Transport
BEIS,UKRI - UKRI,10/05/2022,T&S UK - Public Transport,UKRI - Strategy,Corporate Travel Management (North) Ltd,99652726,-66.3,T&S UK - Public Transport
BEIS,UKRI - UKRI,10/05/2022,T&S UK - Public Transport,UKRI - Strategy,Corporate Travel Management (North) Ltd,99652726,0.5,T&S UK - Public Transport
BEIS,UKRI - UKRI,10/05/2022,T&S UK - Public Transport,UKRI - Strategy,Corporate Travel Management (North) Ltd,99652726,14.8,T&S UK - Public Transport
BEIS,UKRI - UKRI,10/05/2022,T&S UK - Public Transport,UKRI - Strategy,Corporate Travel Management (North) Ltd,99652726,73,T&S UK - Public Transport
BEIS,UKRI - UKRI,10/05/2022,T&S UK - Public Transport,UKRI - Strategy,Corporate Travel Management (North) Ltd,99652726,0.25,T&S UK - Public Transport
BEIS,UKRI - UKRI,10/05/2022,T&S UK - Public Transport,UKRI - Strategy,Corporate Travel Management (North) Ltd,99652726,128.7,T&S UK - Public Transport
BEIS,UKRI - UKRI,10/05/2022,T&S UK - Public Transport,UKRI - Strategy,Corporate Travel Management (North) Ltd,99652726,0.25,T&S UK - Public Transport
BEIS,UKRI - UKRI,10/05/2022,T&S UK - Public Transport,UKRI - Strategy,Corporate Travel Management (North) Ltd,99652726,94.5,T&S UK - Public Transport
BEIS,UKRI - UKRI,10/05/2022,T&S UK - Public Transport,UKRI Strategic HR Business Partners,Corporate Travel Management (North) Ltd,99652726,0.25,T&S UK - Public Transport
BEIS,UKRI - UKRI,10/05/2022,T&S UK - Public Transport,UKRI Strategic HR Business Partners,Corporate Travel Management (North) Ltd,99652726,139.6,T&S UK - Public Transport
BEIS,UKRI - EPSRC,10/05/2022,T&S UK - Public Transport,University Partnerships,Corporate Travel Management (North) Ltd,99652726,0.25,T&S UK - Public Transport
BEIS,UKRI - EPSRC,10/05/2022,T&S UK - Public Transport,University Partnerships,Corporate Travel Management (North) Ltd,99652726,21.4,T&S UK - Public Transport
BEIS,UKRI - UKRI,10/05/2022,Recruitment Costs,UKRI People and Organisation Development,PERRETT LAVER LTD,99655721,18000,Recruitment Costs
BEIS,UKRI - UKRI,10/05/2022,T&S UK - Other Charges,UKRI - Digital Data and Technology BAU Costs,Unspecified,99655766,179,T&S UK - Other Charges
BEIS,UKRI - UKRI,10/05/2022,T&S UK - Parking Tolls Congestion Charges,Global Mobility & Employee Diversity,Unspecified,99655767,17.4,T&S UK - Parking Tolls Congestion Charges
BEIS,UKRI - UKRI,10/05/2022,T&S UK - Public Transport,Global Mobility & Employee Diversity,Unspecified,99655767,31.55,T&S UK - Public Transport
BEIS,UKRI - UKRI,10/05/2022,T&S UK - Subsistence,Global Mobility & Employee Diversity,Unspecified,99655767,44.9,T&S UK - Subsistence
BEIS,UKRI - UKRI,10/05/2022,Health & Safety (inc. Medicals & Opticians),"UKRI People, Policies and Management",Unspecified,99655768,100,Health & Safety (inc. Medicals & Opticians)
BEIS,UKRI - UKRI,10/05/2022,T&S UK - Mileage,"UKRI People, Policies and Management",Unspecified,99655768,14.49,T&S UK - Mileage
BEIS,UKRI - EPSRC,10/05/2022,T&S UK - Mileage,Programme Delivery Quantum Technology,Unspecified,99655769,135,T&S UK - Mileage
BEIS,UKRI - EPSRC,10/05/2022,T&S UK - Mileage,Regional Engagement - OpEx,Unspecified,99655770,266.4,T&S UK - Mileage
BEIS,UKRI - EPSRC,10/05/2022,T&S UK - Subsistence,Regional Engagement - OpEx,Unspecified,99655770,7.5,T&S UK - Subsistence
BEIS,UKRI - EPSRC,10/05/2022,T&S UK - Subsistence,Regional Engagement - OpEx,Unspecified,99655770,9.35,T&S UK - Subsistence
BEIS,UKRI - EPSRC,10/05/2022,T&S UK - Subsistence,Regional Engagement - OpEx,Unspecified,99655770,49.4,T&S UK - Subsistence
BEIS,UKRI - EPSRC,10/05/2022,T&S UK - Subsistence,Regional Engagement - OpEx,Unspecified,99655770,10,T&S UK - Subsistence
BEIS,UKRI - UKRI,10/05/2022,Waste Management Services,UKRI - Estates,Restore Datashred Ltd T/A Restore DataShred,99657710,85.22,Waste Management Services
BEIS,UKRI - UKRI,10/05/2022,Consumables,UKRI - JRS,Antalis Ltd t/a Antalis Document Supplies,99658712,42,Consumables
BEIS,UKRI - UKRI,11/05/2022,Unspecified,UKRI People and Organisation Development,Alexander Mann Solutions Ltd,99316475,1326.96,Agency Staff
BEIS,UKRI - UKRI,11/05/2022,Advertising & Promotion,UKRI - Communications Projects and Services,Magictouch Promotions LTD,99337374,165.3,Advertising & Promotion
BEIS,UKRI - UKRI,11/05/2022,Advertising & Promotion,UKRI - Communications Projects and Services,Magictouch Promotions LTD,99337374,84,Advertising & Promotion
BEIS,UKRI - UKRI,11/05/2022,Unspecified,UKRI - Digital Data and Technology BAU Costs,Alexander Mann Solutions Ltd,99393850,4725.42,Contract Staff
BEIS,UKRI - UKRI,11/05/2022,Unspecified,UKRI - Communications Web and Intranet Service,Alexander Mann Solutions Ltd,99393851,1908.86,Contract Staff
BEIS,UKRI - UKRI,11/05/2022,Unspecified,UKRI - Digital Data and Technology Project Costs,Alexander Mann Solutions Ltd,99514737,8807.88,Contract Staff
BEIS,UKRI - UKRI,11/05/2022,Recruitment Costs,"UKRI People, Policies and Management","Glassdoor, Inc",99531710,1000,Recruitment Costs
BEIS,UKRI - UKRI,11/05/2022,Telecoms - Maintenance & Repairs,UKRI - Digital Data and Technology BAU Costs,Vodafone Ltd,99574943,962.68,Telecoms - Maintenance & Repairs
BEIS,UKRI - UKRI,11/05/2022,Telecoms - Maintenance & Repairs,UKRI - Digital Data and Technology BAU Costs,Vodafone Ltd,99578712,962.68,Telecoms - Maintenance & Repairs
BEIS,UKRI - UKRI,11/05/2022,Telecoms - Maintenance & Repairs,UKRI - Digital Data and Technology BAU Costs,Vodafone Ltd,99578724,962.68,Telecoms - Maintenance & Repairs
BEIS,UKRI - UKRI,11/05/2022,Telecoms - Maintenance & Repairs,UKRI - Digital Data and Technology BAU Costs,Vodafone Ltd,99578727,962.68,Telecoms - Maintenance & Repairs
BEIS,UKRI - UKRI,11/05/2022,Telecoms - Maintenance & Repairs,UKRI - Digital Data and Technology BAU Costs,Vodafone Ltd,99590716,962.68,Telecoms - Maintenance & Repairs
BEIS,UKRI - UKRI,11/05/2022,Telecoms - Maintenance & Repairs,UKRI - Digital Data and Technology BAU Costs,Vodafone Ltd,99590719,962.68,Telecoms - Maintenance & Repairs
BEIS,UKRI - UKRI,11/05/2022,Telecoms - Maintenance & Repairs,UKRI - Digital Data and Technology BAU Costs,Vodafone Ltd,99590723,962.68,Telecoms - Maintenance & Repairs
BEIS,UKRI - UKRI,11/05/2022,Telecoms - Maintenance & Repairs,UKRI - Digital Data and Technology BAU Costs,Vodafone Ltd,99590730,962.68,Telecoms - Maintenance & Repairs
BEIS,UKRI - UKRI,11/05/2022,Unspecified,UKRI - Funding Service,Alexander Mann Solutions Ltd,99591737,3150.29,Contract Staff
BEIS,UKRI - UKRI,11/05/2022,Unspecified,UKRI - Digital Data and Technology Project Costs,Alexander Mann Solutions Ltd,99593745,4403.94,Contract Staff
BEIS,UKRI - UKRI,11/05/2022,Consultancy Services,UKRI - Project Management Office,TMI Systems Ltd,99601729,1920,Consultancy Services
BEIS,UKRI - UKRI,11/05/2022,Health & Safety (inc. Medicals & Opticians),UKRI - Health and Safety,Posturite Ltd,99617807,100.75,Health & Safety (inc. Medicals & Opticians)
BEIS,UKRI - Research England,11/05/2022,Unspecified,RE - Research Excellence Framework (REF),Staffordshire University,99625713,17142,Council & Committee Honoraria
BEIS,UKRI - UKRI,11/05/2022,Marketing & PR,UKRI - Communications Themes and Partnerships,Adam Sewell Media Ltd,99628739,993.75,Marketing & PR
BEIS,UKRI - UKRI,11/05/2022,Recruitment Costs,"UKRI People, Policies and Management",LinkedIn Ireland Unlimited Company,99633717,95.09,Recruitment Costs
BEIS,UKRI - Research England,11/05/2022,Unspecified,RE - Research Excellence Framework (REF),University of Surrey,99641755,1500,Council & Committee Honoraria
BEIS,UKRI - UKRI,11/05/2022,Consumables,UKRI - JRS,Presco UK Ltd,99641761,13.19,Consumables
BEIS,UKRI - UKRI,11/05/2022,Consumables,UKRI - JRS,Presco UK Ltd,99641761,110.58,Consumables
BEIS,UKRI - UKRI,11/05/2022,Printing & Stationery,UKRI - JBOS,Rapid Electronics Ltd,99648710,15.36,Printing & Stationery
BEIS,UKRI - Research England,11/05/2022,International Subscriptions,RE - Operations and Private Office,Research Research Ltd,99655962,7860,International Subscriptions
BEIS,UKRI - Research England,11/05/2022,Unspecified,RE - Operations and Private Office,LA International Computer Consultants Ltd,99655963,2993.4,Agency Staff
BEIS,UKRI - Research England,11/05/2022,Unspecified,RE - Operations and Private Office,LA International Computer Consultants Ltd,99655964,3293.4,Agency Staff
BEIS,UKRI - EPSRC,11/05/2022,T&S UK - Vehicle Hire,Programme Delivery Physical Sciences,Enterprise Rent-A-Car UK Ltd,99656005,8.79,T&S UK - Vehicle Hire
BEIS,UKRI - EPSRC,11/05/2022,T&S UK - Vehicle Hire,Programme Delivery Physical Sciences,Enterprise Rent-A-Car UK Ltd,99656005,43.96,T&S UK - Vehicle Hire
BEIS,UKRI - EPSRC,11/05/2022,T&S UK - Vehicle Hire,Governance and Planning,Barnes Coaches Ltd,99656026,345,T&S UK - Vehicle Hire
BEIS,UKRI - UKRI,11/05/2022,Staff Relocation,North America Office - Canada,Pickfords Ltd,99656064,938.57,Staff Relocation
BEIS,UKRI - Research England,11/05/2022,Non-staff travel and subsistance,RE - Research Excellence Framework (REF),Unspecified,99656078,222.2,Non-staff travel and subsistance
BEIS,UKRI - Research England,11/05/2022,Postage & Courier Services,RE - Research Excellence Framework (REF),Unspecified,99656079,4.2,Postage & Courier Services
BEIS,UKRI - Research England,11/05/2022,Non-staff travel and subsistance,RE - Research Excellence Framework (REF),Unspecified,99656080,244.32,Non-staff travel and subsistance
BEIS,UKRI - Research England,11/05/2022,Non-staff travel and subsistance,RE - Research Excellence Framework (REF),Unspecified,99656081,355.18,Non-staff travel and subsistance
BEIS,UKRI - Research England,11/05/2022,Non-staff travel and subsistance,RE - Research Excellence Framework (REF),Unspecified,99656082,29.35,Non-staff travel and subsistance
BEIS,UKRI - Research England,11/05/2022,Non-staff travel and subsistance,RE - Research Excellence Framework (REF),Unspecified,99656083,107.8,Non-staff travel and subsistance
